{"text_format":"1","workbook":"xlsx","n_sheets":6,"sheets":["حج","عمرة رمضان","عمرة شعبان","عمرة رجب","عمرة المولد النبوى","Entry"],"not_rendered":{"charts":0,"images":6,"macros":1,"external_links":0,"defined_names":4,"comments":0,"pivot_tables":0},"unopened":[],"bounds":{"document_bytes":16777216,"sheet_cells":100000,"rows_first":2000,"rows_last":500,"rows_between":2000,"halvings":0,"cell_chars":16384,"cell_head_chars":4096},"cells_cut":0,"cells_raw":0,"read":"whole","date_system":"1900"}

{"sheet":"حج","index":0,"n_rows":383,"n_cols":21,"rows_kept":383,"cut":false,"hidden":false,"merged":[[0,1,0,13]]}
[null,"البيانات الأساسية للسادة الحجاج والمعتمرين",null,null,null,null,null,null,null,null,null,null,null,null,null,"الاسم","رقم الصف"]
["م","الرقم القومى","اسم الحاج","الجنسية","رقم جواز السفر","رقم بطاقة الإقامة","تاريخ انتهاء الإقامة","تليفون خاص بالحاج","إسم الفندق","تكلفة الحج أو العمرة","رسوم الحج أوالعمرة","عدد المرافقين","محمد أحمد سعيد","ربح / خسارة",null,"نعمة أدم حسن عقيد",{"$f":"MATCH(P2,C:C,0)","v":4},null,"الجنسية","الوجهة","إسم الفندق"]
[{"$f":"IF(B3=\"\",\"\",COUNTA($B$3:B3))","v":1},32211165221,"محمد أحمد سعيد","مصري",123,222222,"2025-12-14",1010256320,"فندق دار التقوى",78000,80000,3,240000,{"$f":"M3-(L3*J3)","v":6000},null,null,null,null,"مصري","عمرة المولد النبوى","فندق أنوار المدينة موڤنبيك"]
[{"$f":"IF(B4=\"\",\"\",COUNTA($B$3:B4))","v":2},269092272800665,"نعمة أدم حسن عقيد","مصري","A36900868",6118251827,"2024-06-06",1017181537,null,null,18000,3,null,{"$f":"M4-(L4*J4)","v":0},null,null,null,null,"يمنى","عمرة رمضان","Elaf Al Taqwa Hotel‬"]
[{"$f":"IF(B5=\"\",\"\",COUNTA($B$3:B5))","v":""},null,null,null,null,null,null,null,null,null,null,null,null,0,null,null,null,null,"روسى","حج"," هلتون مدينه"]
[{"$f":"IF(B6=\"\",\"\",COUNTA($B$3:B6))","v":""},null,null,null,null,null,null,null,null,null,null,null,null,0,null,null,null,null,"أمريكى",null,"Dallah Taibah Hotel‬"]
[{"$f":"IF(B7=\"\",\"\",COUNTA($B$3:B7))","v":""},null,null,null,null,null,null,null,null,null,null,null,null,0,null,null,null,null,"انجليزى",null,"فندق دار التقوى"]
[{"$f":"IF(B8=\"\",\"\",COUNTA($B$3:B8))","v":""},null,null,null,null,null,null,null,null,null,null,null,null,0,null,null,null,null,null,null,"Sofitel Shahd Al Madinah Hotel‬"]
[{"$f":"IF(B9=\"\",\"\",COUNTA($B$3:B9))","v":""},null,null,null,null,null,null,null,null,null,null,null,null,0,null,null,null,null,null,null,"Saja Al Madinah Hotel‬"]
[{"$f":"IF(B10=\"\",\"\",COUNTA($B$3:B10))","v":""},null,null,null,null,null,null,null,null,null,null,null,null,0,null,null,null,null,null,null,"فندق دار التوحيد إنتركونتينتال"]
[{"$f":"IF(B11=\"\",\"\",COUNTA($B$3:B11))","v":""},null,null,null,null,null,null,null,null,null,null,null,null,0,null,null,null,null,null,null,"جميرا جبل عمر مكه"]
[{"$f":"IF(B12=\"\",\"\",COUNTA($B$3:B12))","v":""},null,null,null,null,null,null,null,null,null,null,null,null,0,null,null,null,null,null,null,"فندق صفوة الغفران مكة"]
[{"$f":"IF(B13=\"\",\"\",COUNTA($B$3:B13))","v":""},null,null,null,null,null,null,null,null,null,null,null,null,0,null,null,null,null,null,null,"فندق قصر مكة رافلز"]
[{"$f":"IF(B14=\"\",\"\",COUNTA($B$3:B14))","v":""},null,null,null,null,null,null,null,null,null,null,null,null,0,null,null,null,null,null,null,"Makkah Hotel"]
[{"$f":"IF(B15=\"\",\"\",COUNTA($B$3:B15))","v":""},null,null,null,null,null,null,null,null,null,null,null,null,0,null,null,null,null,null,null,"Address Jabal Omar Makkah"]
[{"$f":"IF(B16=\"\",\"\",COUNTA($B$3:B16))","v":""},null,null,null,null,null,null,null,null,null,null,null,null,0]
[{"$f":"IF(B17=\"\",\"\",COUNTA($B$3:B17))","v":""},null,null,null,null,null,null,null,null,null,null,null,null,0]
[{"$f":"IF(B18=\"\",\"\",COUNTA($B$3:B18))","v":""},null,null,null,null,null,null,null,null,null,null,null,null,0]
[{"$f":"IF(B19=\"\",\"\",COUNTA($B$3:B19))","v":""},null,null,null,null,null,null,null,null,null,null,null,null,0]
[{"$f":"IF(B20=\"\",\"\",COUNTA($B$3:B20))","v":""},null,null,null,null,null,null,null,null,null,null,null,null,0]
[{"$f":"IF(B21=\"\",\"\",COUNTA($B$3:B21))","v":""},null,null,null,null,null,null,null,null,null,null,null,null,0]
[{"$f":"IF(B22=\"\",\"\",COUNTA($B$3:B22))","v":""},null,null,null,null,null,null,null,null,null,null,null,null,0]
[{"$f":"IF(B23=\"\",\"\",COUNTA($B$3:B23))","v":""},null,null,null,null,null,null,null,null,null,null,null,null,0]
[{"$f":"IF(B24=\"\",\"\",COUNTA($B$3:B24))","v":""},null,null,null,null,null,null,null,null,null,null,null,null,0]
[{"$f":"IF(B25=\"\",\"\",COUNTA($B$3:B25))","v":""},null,null,null,null,null,null,null,null,null,null,null,null,0]
[{"$f":"IF(B26=\"\",\"\",COUNTA($B$3:B26))","v":""},null,null,null,null,null,null,null,null,null,null,null,null,0]
[{"$f":"IF(B27=\"\",\"\",COUNTA($B$3:B27))","v":""},null,null,null,null,null,null,null,null,null,null,null,null,0]
[{"$f":"IF(B28=\"\",\"\",COUNTA($B$3:B28))","v":""},null,null,null,null,null,null,null,null,null,null,null,null,0]
[{"$f":"IF(B29=\"\",\"\",COUNTA($B$3:B29))","v":""},null,null,null,null,null,null,null,null,null,null,null,null,0]
[{"$f":"IF(B30=\"\",\"\",COUNTA($B$3:B30))","v":""},null,null,null,null,null,null,null,null,null,null,null,null,0]
[{"$f":"IF(B31=\"\",\"\",COUNTA($B$3:B31))","v":""},null,null,null,null,null,null,null,null,null,null,null,null,0]
[{"$f":"IF(B32=\"\",\"\",COUNTA($B$3:B32))","v":""},null,null,null,null,null,null,null,null,null,null,null,null,0]
[{"$f":"IF(B33=\"\",\"\",COUNTA($B$3:B33))","v":""},null,null,null,null,null,null,null,null,null,null,null,null,0]
[{"$f":"IF(B34=\"\",\"\",COUNTA($B$3:B34))","v":""},null,null,null,null,null,null,null,null,null,null,null,null,0]
[{"$f":"IF(B35=\"\",\"\",COUNTA($B$3:B35))","v":""},null,null,null,null,null,null,null,null,null,null,null,null,0]
[{"$f":"IF(B36=\"\",\"\",COUNTA($B$3:B36))","v":""},null,null,null,null,null,null,null,null,null,null,null,null,0]
[{"$f":"IF(B37=\"\",\"\",COUNTA($B$3:B37))","v":""},null,null,null,null,null,null,null,null,null,null,null,null,0]
[{"$f":"IF(B38=\"\",\"\",COUNTA($B$3:B38))","v":""},null,null,null,null,null,null,null,null,null,null,null,null,0]
[{"$f":"IF(B39=\"\",\"\",COUNTA($B$3:B39))","v":""},null,null,null,null,null,null,null,null,null,null,null,null,0]
[{"$f":"IF(B40=\"\",\"\",COUNTA($B$3:B40))","v":""},null,null,null,null,null,null,null,null,null,null,null,null,0]
[{"$f":"IF(B41=\"\",\"\",COUNTA($B$3:B41))","v":""},null,null,null,null,null,null,null,null,null,null,null,null,0]
[{"$f":"IF(B42=\"\",\"\",COUNTA($B$3:B42))","v":""},null,null,null,null,null,null,null,null,null,null,null,null,0]
[{"$f":"IF(B43=\"\",\"\",COUNTA($B$3:B43))","v":""},null,null,null,null,null,null,null,null,null,null,null,null,0]
[{"$f":"IF(B44=\"\",\"\",COUNTA($B$3:B44))","v":""},null,null,null,null,null,null,null,null,null,null,null,null,0]
[{"$f":"IF(B45=\"\",\"\",COUNTA($B$3:B45))","v":""},null,null,null,null,null,null,null,null,null,null,null,null,0]
[{"$f":"IF(B46=\"\",\"\",COUNTA($B$3:B46))","v":""},null,null,null,null,null,null,null,null,null,null,null,null,0]
[{"$f":"IF(B47=\"\",\"\",COUNTA($B$3:B47))","v":""},null,null,null,null,null,null,null,null,null,null,null,null,0]
[{"$f":"IF(B48=\"\",\"\",COUNTA($B$3:B48))","v":""},null,null,null,null,null,null,null,null,null,null,null,null,0]
[{"$f":"IF(B49=\"\",\"\",COUNTA($B$3:B49))","v":""},null,null,null,null,null,null,null,null,null,null,null,null,0]
[{"$f":"IF(B50=\"\",\"\",COUNTA($B$3:B50))","v":""},null,null,null,null,null,null,null,null,null,null,null,null,0]
[{"$f":"IF(B51=\"\",\"\",COUNTA($B$3:B51))","v":""},null,null,null,null,null,null,null,null,null,null,null,null,0]
[{"$f":"IF(B52=\"\",\"\",COUNTA($B$3:B52))","v":""},null,null,null,null,null,null,null,null,null,null,null,null,0]
[{"$f":"IF(B53=\"\",\"\",COUNTA($B$3:B53))","v":""},null,null,null,null,null,null,null,null,null,null,null,null,0]
[{"$f":"IF(B54=\"\",\"\",COUNTA($B$3:B54))","v":""},null,null,null,null,null,null,null,null,null,null,null,null,0]
[{"$f":"IF(B55=\"\",\"\",COUNTA($B$3:B55))","v":""},null,null,null,null,null,null,null,null,null,null,null,null,0]
[{"$f":"IF(B56=\"\",\"\",COUNTA($B$3:B56))","v":""},null,null,null,null,null,null,null,null,null,null,null,null,0]
[{"$f":"IF(B57=\"\",\"\",COUNTA($B$3:B57))","v":""},null,null,null,null,null,null,null,null,null,null,null,null,0]
[{"$f":"IF(B58=\"\",\"\",COUNTA($B$3:B58))","v":""},null,null,null,null,null,null,null,null,null,null,null,null,0]
[{"$f":"IF(B59=\"\",\"\",COUNTA($B$3:B59))","v":""},null,null,null,null,null,null,null,null,null,null,null,null,0]
[{"$f":"IF(B60=\"\",\"\",COUNTA($B$3:B60))","v":""},null,null,null,null,null,null,null,null,null,null,null,null,0]
[{"$f":"IF(B61=\"\",\"\",COUNTA($B$3:B61))","v":""},null,null,null,null,null,null,null,null,null,null,null,null,0]
[{"$f":"IF(B62=\"\",\"\",COUNTA($B$3:B62))","v":""},null,null,null,null,null,null,null,null,null,null,null,null,0]
[{"$f":"IF(B63=\"\",\"\",COUNTA($B$3:B63))","v":""},null,null,null,null,null,null,null,null,null,null,null,null,0]
[{"$f":"IF(B64=\"\",\"\",COUNTA($B$3:B64))","v":""},null,null,null,null,null,null,null,null,null,null,null,null,0]
[{"$f":"IF(B65=\"\",\"\",COUNTA($B$3:B65))","v":""},null,null,null,null,null,null,null,null,null,null,null,null,0]
[{"$f":"IF(B66=\"\",\"\",COUNTA($B$3:B66))","v":""},null,null,null,null,null,null,null,null,null,null,null,null,{"$f":"M66-(L66*J66)","v":0}]
[{"$f":"IF(B67=\"\",\"\",COUNTA($B$3:B67))","v":""},null,null,null,null,null,null,null,null,null,null,null,null,0]
[{"$f":"IF(B68=\"\",\"\",COUNTA($B$3:B68))","v":""},null,null,null,null,null,null,null,null,null,null,null,null,0]
[{"$f":"IF(B69=\"\",\"\",COUNTA($B$3:B69))","v":""},null,null,null,null,null,null,null,null,null,null,null,null,0]
[{"$f":"IF(B70=\"\",\"\",COUNTA($B$3:B70))","v":""},null,null,null,null,null,null,null,null,null,null,null,null,0]
[{"$f":"IF(B71=\"\",\"\",COUNTA($B$3:B71))","v":""},null,null,null,null,null,null,null,null,null,null,null,null,0]
[{"$f":"IF(B72=\"\",\"\",COUNTA($B$3:B72))","v":""},null,null,null,null,null,null,null,null,null,null,null,null,0]
[{"$f":"IF(B73=\"\",\"\",COUNTA($B$3:B73))","v":""},null,null,null,null,null,null,null,null,null,null,null,null,0]
[{"$f":"IF(B74=\"\",\"\",COUNTA($B$3:B74))","v":""},null,null,null,null,null,null,null,null,null,null,null,null,0]
[{"$f":"IF(B75=\"\",\"\",COUNTA($B$3:B75))","v":""},null,null,null,null,null,null,null,null,null,null,null,null,0]
[{"$f":"IF(B76=\"\",\"\",COUNTA($B$3:B76))","v":""},null,null,null,null,null,null,null,null,null,null,null,null,0]
[{"$f":"IF(B77=\"\",\"\",COUNTA($B$3:B77))","v":""},null,null,null,null,null,null,null,null,null,null,null,null,0]
[{"$f":"IF(B78=\"\",\"\",COUNTA($B$3:B78))","v":""},null,null,null,null,null,null,null,null,null,null,null,null,0]
[{"$f":"IF(B79=\"\",\"\",COUNTA($B$3:B79))","v":""},null,null,null,null,null,null,null,null,null,null,null,null,0]
[{"$f":"IF(B80=\"\",\"\",COUNTA($B$3:B80))","v":""},null,null,null,null,null,null,null,null,null,null,null,null,0]
[{"$f":"IF(B81=\"\",\"\",COUNTA($B$3:B81))","v":""},null,null,null,null,null,null,null,null,null,null,null,null,0]
[{"$f":"IF(B82=\"\",\"\",COUNTA($B$3:B82))","v":""},null,null,null,null,null,null,null,null,null,null,null,null,0]
[{"$f":"IF(B83=\"\",\"\",COUNTA($B$3:B83))","v":""},null,null,null,null,null,null,null,null,null,null,null,null,0]
[{"$f":"IF(B84=\"\",\"\",COUNTA($B$3:B84))","v":""},null,null,null,null,null,null,null,null,null,null,null,null,0]
[{"$f":"IF(B85=\"\",\"\",COUNTA($B$3:B85))","v":""},null,null,null,null,null,null,null,null,null,null,null,null,0]
[{"$f":"IF(B86=\"\",\"\",COUNTA($B$3:B86))","v":""},null,null,null,null,null,null,null,null,null,null,null,null,0]
[{"$f":"IF(B87=\"\",\"\",COUNTA($B$3:B87))","v":""},null,null,null,null,null,null,null,null,null,null,null,null,0]
[{"$f":"IF(B88=\"\",\"\",COUNTA($B$3:B88))","v":""},null,null,null,null,null,null,null,null,null,null,null,null,0]
[{"$f":"IF(B89=\"\",\"\",COUNTA($B$3:B89))","v":""},null,null,null,null,null,null,null,null,null,null,null,null,0]
[{"$f":"IF(B90=\"\",\"\",COUNTA($B$3:B90))","v":""},null,null,null,null,null,null,null,null,null,null,null,null,0]
[{"$f":"IF(B91=\"\",\"\",COUNTA($B$3:B91))","v":""},null,null,null,null,null,null,null,null,null,null,null,null,0]
[{"$f":"IF(B92=\"\",\"\",COUNTA($B$3:B92))","v":""},null,null,null,null,null,null,null,null,null,null,null,null,0]
[{"$f":"IF(B93=\"\",\"\",COUNTA($B$3:B93))","v":""},null,null,null,null,null,null,null,null,null,null,null,null,0]
[{"$f":"IF(B94=\"\",\"\",COUNTA($B$3:B94))","v":""},null,null,null,null,null,null,null,null,null,null,null,null,0]
[{"$f":"IF(B95=\"\",\"\",COUNTA($B$3:B95))","v":""},null,null,null,null,null,null,null,null,null,null,null,null,0]
[{"$f":"IF(B96=\"\",\"\",COUNTA($B$3:B96))","v":""},null,null,null,null,null,null,null,null,null,null,null,null,0]
[{"$f":"IF(B97=\"\",\"\",COUNTA($B$3:B97))","v":""},null,null,null,null,null,null,null,null,null,null,null,null,0]
[{"$f":"IF(B98=\"\",\"\",COUNTA($B$3:B98))","v":""},null,null,null,null,null,null,null,null,null,null,null,null,0]
[{"$f":"IF(B99=\"\",\"\",COUNTA($B$3:B99))","v":""},null,null,null,null,null,null,null,null,null,null,null,null,0]
[{"$f":"IF(B100=\"\",\"\",COUNTA($B$3:B100))","v":""},null,null,null,null,null,null,null,null,null,null,null,null,0]
[{"$f":"IF(B101=\"\",\"\",COUNTA($B$3:B101))","v":""},null,null,null,null,null,null,null,null,null,null,null,null,0]
[{"$f":"IF(B102=\"\",\"\",COUNTA($B$3:B102))","v":""},null,null,null,null,null,null,null,null,null,null,null,null,0]
[{"$f":"IF(B103=\"\",\"\",COUNTA($B$3:B103))","v":""},null,null,null,null,null,null,null,null,null,null,null,null,0]
[{"$f":"IF(B104=\"\",\"\",COUNTA($B$3:B104))","v":""},null,null,null,null,null,null,null,null,null,null,null,null,0]
[{"$f":"IF(B105=\"\",\"\",COUNTA($B$3:B105))","v":""},null,null,null,null,null,null,null,null,null,null,null,null,0]
[{"$f":"IF(B106=\"\",\"\",COUNTA($B$3:B106))","v":""},null,null,null,null,null,null,null,null,null,null,null,null,0]
[{"$f":"IF(B107=\"\",\"\",COUNTA($B$3:B107))","v":""},null,null,null,null,null,null,null,null,null,null,null,null,0]
[{"$f":"IF(B108=\"\",\"\",COUNTA($B$3:B108))","v":""},null,null,null,null,null,null,null,null,null,null,null,null,0]
[{"$f":"IF(B109=\"\",\"\",COUNTA($B$3:B109))","v":""},null,null,null,null,null,null,null,null,null,null,null,null,0]
[{"$f":"IF(B110=\"\",\"\",COUNTA($B$3:B110))","v":""},null,null,null,null,null,null,null,null,null,null,null,null,0]
[{"$f":"IF(B111=\"\",\"\",COUNTA($B$3:B111))","v":""},null,null,null,null,null,null,null,null,null,null,null,null,0]
[{"$f":"IF(B112=\"\",\"\",COUNTA($B$3:B112))","v":""},null,null,null,null,null,null,null,null,null,null,null,null,0]
[{"$f":"IF(B113=\"\",\"\",COUNTA($B$3:B113))","v":""},null,null,null,null,null,null,null,null,null,null,null,null,0]
[{"$f":"IF(B114=\"\",\"\",COUNTA($B$3:B114))","v":""},null,null,null,null,null,null,null,null,null,null,null,null,0]
[{"$f":"IF(B115=\"\",\"\",COUNTA($B$3:B115))","v":""},null,null,null,null,null,null,null,null,null,null,null,null,0]
[{"$f":"IF(B116=\"\",\"\",COUNTA($B$3:B116))","v":""},null,null,null,null,null,null,null,null,null,null,null,null,0]
[{"$f":"IF(B117=\"\",\"\",COUNTA($B$3:B117))","v":""},null,null,null,null,null,null,null,null,null,null,null,null,0]
[{"$f":"IF(B118=\"\",\"\",COUNTA($B$3:B118))","v":""},null,null,null,null,null,null,null,null,null,null,null,null,0]
[{"$f":"IF(B119=\"\",\"\",COUNTA($B$3:B119))","v":""},null,null,null,null,null,null,null,null,null,null,null,null,0]
[{"$f":"IF(B120=\"\",\"\",COUNTA($B$3:B120))","v":""},null,null,null,null,null,null,null,null,null,null,null,null,0]
[{"$f":"IF(B121=\"\",\"\",COUNTA($B$3:B121))","v":""},null,null,null,null,null,null,null,null,null,null,null,null,0]
[{"$f":"IF(B122=\"\",\"\",COUNTA($B$3:B122))","v":""},null,null,null,null,null,null,null,null,null,null,null,null,0]
[{"$f":"IF(B123=\"\",\"\",COUNTA($B$3:B123))","v":""},null,null,null,null,null,null,null,null,null,null,null,null,0]
[{"$f":"IF(B124=\"\",\"\",COUNTA($B$3:B124))","v":""},null,null,null,null,null,null,null,null,null,null,null,null,0]
[{"$f":"IF(B125=\"\",\"\",COUNTA($B$3:B125))","v":""},null,null,null,null,null,null,null,null,null,null,null,null,0]
[{"$f":"IF(B126=\"\",\"\",COUNTA($B$3:B126))","v":""},null,null,null,null,null,null,null,null,null,null,null,null,0]
[{"$f":"IF(B127=\"\",\"\",COUNTA($B$3:B127))","v":""},null,null,null,null,null,null,null,null,null,null,null,null,0]
[{"$f":"IF(B128=\"\",\"\",COUNTA($B$3:B128))","v":""},null,null,null,null,null,null,null,null,null,null,null,null,0]
[{"$f":"IF(B129=\"\",\"\",COUNTA($B$3:B129))","v":""},null,null,null,null,null,null,null,null,null,null,null,null,0]
[{"$f":"IF(B130=\"\",\"\",COUNTA($B$3:B130))","v":""},null,null,null,null,null,null,null,null,null,null,null,null,{"$f":"M130-(L130*J130)","v":0}]
[{"$f":"IF(B131=\"\",\"\",COUNTA($B$3:B131))","v":""},null,null,null,null,null,null,null,null,null,null,null,null,0]
[{"$f":"IF(B132=\"\",\"\",COUNTA($B$3:B132))","v":""},null,null,null,null,null,null,null,null,null,null,null,null,0]
[{"$f":"IF(B133=\"\",\"\",COUNTA($B$3:B133))","v":""},null,null,null,null,null,null,null,null,null,null,null,null,0]
[{"$f":"IF(B134=\"\",\"\",COUNTA($B$3:B134))","v":""},null,null,null,null,null,null,null,null,null,null,null,null,0]
[{"$f":"IF(B135=\"\",\"\",COUNTA($B$3:B135))","v":""},null,null,null,null,null,null,null,null,null,null,null,null,0]
[{"$f":"IF(B136=\"\",\"\",COUNTA($B$3:B136))","v":""},null,null,null,null,null,null,null,null,null,null,null,null,0]
[{"$f":"IF(B137=\"\",\"\",COUNTA($B$3:B137))","v":""},null,null,null,null,null,null,null,null,null,null,null,null,0]
[{"$f":"IF(B138=\"\",\"\",COUNTA($B$3:B138))","v":""},null,null,null,null,null,null,null,null,null,null,null,null,0]
[{"$f":"IF(B139=\"\",\"\",COUNTA($B$3:B139))","v":""},null,null,null,null,null,null,null,null,null,null,null,null,0]
[{"$f":"IF(B140=\"\",\"\",COUNTA($B$3:B140))","v":""},null,null,null,null,null,null,null,null,null,null,null,null,0]
[{"$f":"IF(B141=\"\",\"\",COUNTA($B$3:B141))","v":""},null,null,null,null,null,null,null,null,null,null,null,null,0]
[{"$f":"IF(B142=\"\",\"\",COUNTA($B$3:B142))","v":""},null,null,null,null,null,null,null,null,null,null,null,null,0]
[{"$f":"IF(B143=\"\",\"\",COUNTA($B$3:B143))","v":""},null,null,null,null,null,null,null,null,null,null,null,null,0]
[{"$f":"IF(B144=\"\",\"\",COUNTA($B$3:B144))","v":""},null,null,null,null,null,null,null,null,null,null,null,null,0]
[{"$f":"IF(B145=\"\",\"\",COUNTA($B$3:B145))","v":""},null,null,null,null,null,null,null,null,null,null,null,null,0]
[{"$f":"IF(B146=\"\",\"\",COUNTA($B$3:B146))","v":""},null,null,null,null,null,null,null,null,null,null,null,null,0]
[{"$f":"IF(B147=\"\",\"\",COUNTA($B$3:B147))","v":""},null,null,null,null,null,null,null,null,null,null,null,null,0]
[{"$f":"IF(B148=\"\",\"\",COUNTA($B$3:B148))","v":""},null,null,null,null,null,null,null,null,null,null,null,null,0]
[{"$f":"IF(B149=\"\",\"\",COUNTA($B$3:B149))","v":""},null,null,null,null,null,null,null,null,null,null,null,null,0]
[{"$f":"IF(B150=\"\",\"\",COUNTA($B$3:B150))","v":""},null,null,null,null,null,null,null,null,null,null,null,null,0]
[{"$f":"IF(B151=\"\",\"\",COUNTA($B$3:B151))","v":""},null,null,null,null,null,null,null,null,null,null,null,null,0]
[{"$f":"IF(B152=\"\",\"\",COUNTA($B$3:B152))","v":""},null,null,null,null,null,null,null,null,null,null,null,null,0]
[{"$f":"IF(B153=\"\",\"\",COUNTA($B$3:B153))","v":""},null,null,null,null,null,null,null,null,null,null,null,null,0]
[{"$f":"IF(B154=\"\",\"\",COUNTA($B$3:B154))","v":""},null,null,null,null,null,null,null,null,null,null,null,null,0]
[{"$f":"IF(B155=\"\",\"\",COUNTA($B$3:B155))","v":""},null,null,null,null,null,null,null,null,null,null,null,null,0]
[{"$f":"IF(B156=\"\",\"\",COUNTA($B$3:B156))","v":""},null,null,null,null,null,null,null,null,null,null,null,null,0]
[{"$f":"IF(B157=\"\",\"\",COUNTA($B$3:B157))","v":""},null,null,null,null,null,null,null,null,null,null,null,null,0]
[{"$f":"IF(B158=\"\",\"\",COUNTA($B$3:B158))","v":""},null,null,null,null,null,null,null,null,null,null,null,null,0]
[{"$f":"IF(B159=\"\",\"\",COUNTA($B$3:B159))","v":""},null,null,null,null,null,null,null,null,null,null,null,null,0]
[{"$f":"IF(B160=\"\",\"\",COUNTA($B$3:B160))","v":""},null,null,null,null,null,null,null,null,null,null,null,null,0]
[{"$f":"IF(B161=\"\",\"\",COUNTA($B$3:B161))","v":""},null,null,null,null,null,null,null,null,null,null,null,null,0]
[{"$f":"IF(B162=\"\",\"\",COUNTA($B$3:B162))","v":""},null,null,null,null,null,null,null,null,null,null,null,null,0]
[{"$f":"IF(B163=\"\",\"\",COUNTA($B$3:B163))","v":""},null,null,null,null,null,null,null,null,null,null,null,null,0]
[{"$f":"IF(B164=\"\",\"\",COUNTA($B$3:B164))","v":""},null,null,null,null,null,null,null,null,null,null,null,null,0]
[{"$f":"IF(B165=\"\",\"\",COUNTA($B$3:B165))","v":""},null,null,null,null,null,null,null,null,null,null,null,null,0]
[{"$f":"IF(B166=\"\",\"\",COUNTA($B$3:B166))","v":""},null,null,null,null,null,null,null,null,null,null,null,null,0]
[{"$f":"IF(B167=\"\",\"\",COUNTA($B$3:B167))","v":""},null,null,null,null,null,null,null,null,null,null,null,null,0]
[{"$f":"IF(B168=\"\",\"\",COUNTA($B$3:B168))","v":""},null,null,null,null,null,null,null,null,null,null,null,null,0]
[{"$f":"IF(B169=\"\",\"\",COUNTA($B$3:B169))","v":""},null,null,null,null,null,null,null,null,null,null,null,null,0]
[{"$f":"IF(B170=\"\",\"\",COUNTA($B$3:B170))","v":""},null,null,null,null,null,null,null,null,null,null,null,null,0]
[{"$f":"IF(B171=\"\",\"\",COUNTA($B$3:B171))","v":""},null,null,null,null,null,null,null,null,null,null,null,null,0]
[{"$f":"IF(B172=\"\",\"\",COUNTA($B$3:B172))","v":""},null,null,null,null,null,null,null,null,null,null,null,null,0]
[{"$f":"IF(B173=\"\",\"\",COUNTA($B$3:B173))","v":""},null,null,null,null,null,null,null,null,null,null,null,null,0]
[{"$f":"IF(B174=\"\",\"\",COUNTA($B$3:B174))","v":""},null,null,null,null,null,null,null,null,null,null,null,null,0]
[{"$f":"IF(B175=\"\",\"\",COUNTA($B$3:B175))","v":""},null,null,null,null,null,null,null,null,null,null,null,null,0]
[{"$f":"IF(B176=\"\",\"\",COUNTA($B$3:B176))","v":""},null,null,null,null,null,null,null,null,null,null,null,null,0]
[{"$f":"IF(B177=\"\",\"\",COUNTA($B$3:B177))","v":""},null,null,null,null,null,null,null,null,null,null,null,null,0]
[{"$f":"IF(B178=\"\",\"\",COUNTA($B$3:B178))","v":""},null,null,null,null,null,null,null,null,null,null,null,null,0]
[{"$f":"IF(B179=\"\",\"\",COUNTA($B$3:B179))","v":""},null,null,null,null,null,null,null,null,null,null,null,null,0]
[{"$f":"IF(B180=\"\",\"\",COUNTA($B$3:B180))","v":""},null,null,null,null,null,null,null,null,null,null,null,null,0]
[{"$f":"IF(B181=\"\",\"\",COUNTA($B$3:B181))","v":""},null,null,null,null,null,null,null,null,null,null,null,null,0]
[{"$f":"IF(B182=\"\",\"\",COUNTA($B$3:B182))","v":""},null,null,null,null,null,null,null,null,null,null,null,null,0]
[{"$f":"IF(B183=\"\",\"\",COUNTA($B$3:B183))","v":""},null,null,null,null,null,null,null,null,null,null,null,null,0]
[{"$f":"IF(B184=\"\",\"\",COUNTA($B$3:B184))","v":""},null,null,null,null,null,null,null,null,null,null,null,null,0]
[{"$f":"IF(B185=\"\",\"\",COUNTA($B$3:B185))","v":""},null,null,null,null,null,null,null,null,null,null,null,null,0]
[{"$f":"IF(B186=\"\",\"\",COUNTA($B$3:B186))","v":""},null,null,null,null,null,null,null,null,null,null,null,null,0]
[{"$f":"IF(B187=\"\",\"\",COUNTA($B$3:B187))","v":""},null,null,null,null,null,null,null,null,null,null,null,null,0]
[{"$f":"IF(B188=\"\",\"\",COUNTA($B$3:B188))","v":""},null,null,null,null,null,null,null,null,null,null,null,null,0]
[{"$f":"IF(B189=\"\",\"\",COUNTA($B$3:B189))","v":""},null,null,null,null,null,null,null,null,null,null,null,null,0]
[{"$f":"IF(B190=\"\",\"\",COUNTA($B$3:B190))","v":""},null,null,null,null,null,null,null,null,null,null,null,null,0]
[{"$f":"IF(B191=\"\",\"\",COUNTA($B$3:B191))","v":""},null,null,null,null,null,null,null,null,null,null,null,null,0]
[{"$f":"IF(B192=\"\",\"\",COUNTA($B$3:B192))","v":""},null,null,null,null,null,null,null,null,null,null,null,null,0]
[{"$f":"IF(B193=\"\",\"\",COUNTA($B$3:B193))","v":""},null,null,null,null,null,null,null,null,null,null,null,null,0]
[{"$f":"IF(B194=\"\",\"\",COUNTA($B$3:B194))","v":""},null,null,null,null,null,null,null,null,null,null,null,null,{"$f":"M194-(L194*J194)","v":0}]
[{"$f":"IF(B195=\"\",\"\",COUNTA($B$3:B195))","v":""},null,null,null,null,null,null,null,null,null,null,null,null,0]
[{"$f":"IF(B196=\"\",\"\",COUNTA($B$3:B196))","v":""},null,null,null,null,null,null,null,null,null,null,null,null,0]
[{"$f":"IF(B197=\"\",\"\",COUNTA($B$3:B197))","v":""},null,null,null,null,null,null,null,null,null,null,null,null,0]
[{"$f":"IF(B198=\"\",\"\",COUNTA($B$3:B198))","v":""},null,null,null,null,null,null,null,null,null,null,null,null,0]
[{"$f":"IF(B199=\"\",\"\",COUNTA($B$3:B199))","v":""},null,null,null,null,null,null,null,null,null,null,null,null,0]
[{"$f":"IF(B200=\"\",\"\",COUNTA($B$3:B200))","v":""},null,null,null,null,null,null,null,null,null,null,null,null,0]
[{"$f":"IF(B201=\"\",\"\",COUNTA($B$3:B201))","v":""},null,null,null,null,null,null,null,null,null,null,null,null,0]
[{"$f":"IF(B202=\"\",\"\",COUNTA($B$3:B202))","v":""},null,null,null,null,null,null,null,null,null,null,null,null,0]
[{"$f":"IF(B203=\"\",\"\",COUNTA($B$3:B203))","v":""},null,null,null,null,null,null,null,null,null,null,null,null,0]
[{"$f":"IF(B204=\"\",\"\",COUNTA($B$3:B204))","v":""},null,null,null,null,null,null,null,null,null,null,null,null,0]
[{"$f":"IF(B205=\"\",\"\",COUNTA($B$3:B205))","v":""},null,null,null,null,null,null,null,null,null,null,null,null,0]
[{"$f":"IF(B206=\"\",\"\",COUNTA($B$3:B206))","v":""},null,null,null,null,null,null,null,null,null,null,null,null,0]
[{"$f":"IF(B207=\"\",\"\",COUNTA($B$3:B207))","v":""},null,null,null,null,null,null,null,null,null,null,null,null,0]
[{"$f":"IF(B208=\"\",\"\",COUNTA($B$3:B208))","v":""},null,null,null,null,null,null,null,null,null,null,null,null,0]
[{"$f":"IF(B209=\"\",\"\",COUNTA($B$3:B209))","v":""},null,null,null,null,null,null,null,null,null,null,null,null,0]
[{"$f":"IF(B210=\"\",\"\",COUNTA($B$3:B210))","v":""},null,null,null,null,null,null,null,null,null,null,null,null,0]
[{"$f":"IF(B211=\"\",\"\",COUNTA($B$3:B211))","v":""},null,null,null,null,null,null,null,null,null,null,null,null,0]
[{"$f":"IF(B212=\"\",\"\",COUNTA($B$3:B212))","v":""},null,null,null,null,null,null,null,null,null,null,null,null,0]
[{"$f":"IF(B213=\"\",\"\",COUNTA($B$3:B213))","v":""},null,null,null,null,null,null,null,null,null,null,null,null,0]
[{"$f":"IF(B214=\"\",\"\",COUNTA($B$3:B214))","v":""},null,null,null,null,null,null,null,null,null,null,null,null,0]
[{"$f":"IF(B215=\"\",\"\",COUNTA($B$3:B215))","v":""},null,null,null,null,null,null,null,null,null,null,null,null,0]
[{"$f":"IF(B216=\"\",\"\",COUNTA($B$3:B216))","v":""},null,null,null,null,null,null,null,null,null,null,null,null,0]
[{"$f":"IF(B217=\"\",\"\",COUNTA($B$3:B217))","v":""},null,null,null,null,null,null,null,null,null,null,null,null,0]
[{"$f":"IF(B218=\"\",\"\",COUNTA($B$3:B218))","v":""},null,null,null,null,null,null,null,null,null,null,null,null,0]
[{"$f":"IF(B219=\"\",\"\",COUNTA($B$3:B219))","v":""},null,null,null,null,null,null,null,null,null,null,null,null,0]
[{"$f":"IF(B220=\"\",\"\",COUNTA($B$3:B220))","v":""},null,null,null,null,null,null,null,null,null,null,null,null,0]
[{"$f":"IF(B221=\"\",\"\",COUNTA($B$3:B221))","v":""},null,null,null,null,null,null,null,null,null,null,null,null,0]
[{"$f":"IF(B222=\"\",\"\",COUNTA($B$3:B222))","v":""},null,null,null,null,null,null,null,null,null,null,null,null,0]
[{"$f":"IF(B223=\"\",\"\",COUNTA($B$3:B223))","v":""},null,null,null,null,null,null,null,null,null,null,null,null,0]
[{"$f":"IF(B224=\"\",\"\",COUNTA($B$3:B224))","v":""},null,null,null,null,null,null,null,null,null,null,null,null,0]
[{"$f":"IF(B225=\"\",\"\",COUNTA($B$3:B225))","v":""},null,null,null,null,null,null,null,null,null,null,null,null,0]
[{"$f":"IF(B226=\"\",\"\",COUNTA($B$3:B226))","v":""},null,null,null,null,null,null,null,null,null,null,null,null,0]
[{"$f":"IF(B227=\"\",\"\",COUNTA($B$3:B227))","v":""},null,null,null,null,null,null,null,null,null,null,null,null,0]
[{"$f":"IF(B228=\"\",\"\",COUNTA($B$3:B228))","v":""},null,null,null,null,null,null,null,null,null,null,null,null,0]
[{"$f":"IF(B229=\"\",\"\",COUNTA($B$3:B229))","v":""},null,null,null,null,null,null,null,null,null,null,null,null,0]
[{"$f":"IF(B230=\"\",\"\",COUNTA($B$3:B230))","v":""},null,null,null,null,null,null,null,null,null,null,null,null,0]
[{"$f":"IF(B231=\"\",\"\",COUNTA($B$3:B231))","v":""},null,null,null,null,null,null,null,null,null,null,null,null,0]
[{"$f":"IF(B232=\"\",\"\",COUNTA($B$3:B232))","v":""},null,null,null,null,null,null,null,null,null,null,null,null,0]
[{"$f":"IF(B233=\"\",\"\",COUNTA($B$3:B233))","v":""},null,null,null,null,null,null,null,null,null,null,null,null,0]
[{"$f":"IF(B234=\"\",\"\",COUNTA($B$3:B234))","v":""},null,null,null,null,null,null,null,null,null,null,null,null,0]
[{"$f":"IF(B235=\"\",\"\",COUNTA($B$3:B235))","v":""},null,null,null,null,null,null,null,null,null,null,null,null,0]
[{"$f":"IF(B236=\"\",\"\",COUNTA($B$3:B236))","v":""},null,null,null,null,null,null,null,null,null,null,null,null,0]
[{"$f":"IF(B237=\"\",\"\",COUNTA($B$3:B237))","v":""},null,null,null,null,null,null,null,null,null,null,null,null,0]
[{"$f":"IF(B238=\"\",\"\",COUNTA($B$3:B238))","v":""},null,null,null,null,null,null,null,null,null,null,null,null,0]
[{"$f":"IF(B239=\"\",\"\",COUNTA($B$3:B239))","v":""},null,null,null,null,null,null,null,null,null,null,null,null,0]
[{"$f":"IF(B240=\"\",\"\",COUNTA($B$3:B240))","v":""},null,null,null,null,null,null,null,null,null,null,null,null,0]
[{"$f":"IF(B241=\"\",\"\",COUNTA($B$3:B241))","v":""},null,null,null,null,null,null,null,null,null,null,null,null,0]
[{"$f":"IF(B242=\"\",\"\",COUNTA($B$3:B242))","v":""},null,null,null,null,null,null,null,null,null,null,null,null,0]
[{"$f":"IF(B243=\"\",\"\",COUNTA($B$3:B243))","v":""},null,null,null,null,null,null,null,null,null,null,null,null,0]
[{"$f":"IF(B244=\"\",\"\",COUNTA($B$3:B244))","v":""},null,null,null,null,null,null,null,null,null,null,null,null,0]
[{"$f":"IF(B245=\"\",\"\",COUNTA($B$3:B245))","v":""},null,null,null,null,null,null,null,null,null,null,null,null,0]
[{"$f":"IF(B246=\"\",\"\",COUNTA($B$3:B246))","v":""},null,null,null,null,null,null,null,null,null,null,null,null,0]
[{"$f":"IF(B247=\"\",\"\",COUNTA($B$3:B247))","v":""},null,null,null,null,null,null,null,null,null,null,null,null,0]
[{"$f":"IF(B248=\"\",\"\",COUNTA($B$3:B248))","v":""},null,null,null,null,null,null,null,null,null,null,null,null,0]
[{"$f":"IF(B249=\"\",\"\",COUNTA($B$3:B249))","v":""},null,null,null,null,null,null,null,null,null,null,null,null,0]
[{"$f":"IF(B250=\"\",\"\",COUNTA($B$3:B250))","v":""},null,null,null,null,null,null,null,null,null,null,null,null,0]
[{"$f":"IF(B251=\"\",\"\",COUNTA($B$3:B251))","v":""},null,null,null,null,null,null,null,null,null,null,null,null,0]
[{"$f":"IF(B252=\"\",\"\",COUNTA($B$3:B252))","v":""},null,null,null,null,null,null,null,null,null,null,null,null,0]
[{"$f":"IF(B253=\"\",\"\",COUNTA($B$3:B253))","v":""},null,null,null,null,null,null,null,null,null,null,null,null,0]
[{"$f":"IF(B254=\"\",\"\",COUNTA($B$3:B254))","v":""},null,null,null,null,null,null,null,null,null,null,null,null,0]
[{"$f":"IF(B255=\"\",\"\",COUNTA($B$3:B255))","v":""},null,null,null,null,null,null,null,null,null,null,null,null,0]
[{"$f":"IF(B256=\"\",\"\",COUNTA($B$3:B256))","v":""},null,null,null,null,null,null,null,null,null,null,null,null,0]
[{"$f":"IF(B257=\"\",\"\",COUNTA($B$3:B257))","v":""},null,null,null,null,null,null,null,null,null,null,null,null,0]
[{"$f":"IF(B258=\"\",\"\",COUNTA($B$3:B258))","v":""},null,null,null,null,null,null,null,null,null,null,null,null,{"$f":"M258-(L258*J258)","v":0}]
[{"$f":"IF(B259=\"\",\"\",COUNTA($B$3:B259))","v":""},null,null,null,null,null,null,null,null,null,null,null,null,0]
[{"$f":"IF(B260=\"\",\"\",COUNTA($B$3:B260))","v":""},null,null,null,null,null,null,null,null,null,null,null,null,0]
[{"$f":"IF(B261=\"\",\"\",COUNTA($B$3:B261))","v":""},null,null,null,null,null,null,null,null,null,null,null,null,0]
[{"$f":"IF(B262=\"\",\"\",COUNTA($B$3:B262))","v":""},null,null,null,null,null,null,null,null,null,null,null,null,0]
[{"$f":"IF(B263=\"\",\"\",COUNTA($B$3:B263))","v":""},null,null,null,null,null,null,null,null,null,null,null,null,0]
[{"$f":"IF(B264=\"\",\"\",COUNTA($B$3:B264))","v":""},null,null,null,null,null,null,null,null,null,null,null,null,0]
[{"$f":"IF(B265=\"\",\"\",COUNTA($B$3:B265))","v":""},null,null,null,null,null,null,null,null,null,null,null,null,0]
[{"$f":"IF(B266=\"\",\"\",COUNTA($B$3:B266))","v":""},null,null,null,null,null,null,null,null,null,null,null,null,0]
[{"$f":"IF(B267=\"\",\"\",COUNTA($B$3:B267))","v":""},null,null,null,null,null,null,null,null,null,null,null,null,0]
[{"$f":"IF(B268=\"\",\"\",COUNTA($B$3:B268))","v":""},null,null,null,null,null,null,null,null,null,null,null,null,0]
[{"$f":"IF(B269=\"\",\"\",COUNTA($B$3:B269))","v":""},null,null,null,null,null,null,null,null,null,null,null,null,0]
[{"$f":"IF(B270=\"\",\"\",COUNTA($B$3:B270))","v":""},null,null,null,null,null,null,null,null,null,null,null,null,0]
[{"$f":"IF(B271=\"\",\"\",COUNTA($B$3:B271))","v":""},null,null,null,null,null,null,null,null,null,null,null,null,0]
[{"$f":"IF(B272=\"\",\"\",COUNTA($B$3:B272))","v":""},null,null,null,null,null,null,null,null,null,null,null,null,0]
[{"$f":"IF(B273=\"\",\"\",COUNTA($B$3:B273))","v":""},null,null,null,null,null,null,null,null,null,null,null,null,0]
[{"$f":"IF(B274=\"\",\"\",COUNTA($B$3:B274))","v":""},null,null,null,null,null,null,null,null,null,null,null,null,0]
[{"$f":"IF(B275=\"\",\"\",COUNTA($B$3:B275))","v":""},null,null,null,null,null,null,null,null,null,null,null,null,0]
[{"$f":"IF(B276=\"\",\"\",COUNTA($B$3:B276))","v":""},null,null,null,null,null,null,null,null,null,null,null,null,0]
[{"$f":"IF(B277=\"\",\"\",COUNTA($B$3:B277))","v":""},null,null,null,null,null,null,null,null,null,null,null,null,0]
[{"$f":"IF(B278=\"\",\"\",COUNTA($B$3:B278))","v":""},null,null,null,null,null,null,null,null,null,null,null,null,0]
[null,null,null,null,null,null,null,null,null,null,null,null,null,0]
[null,null,null,null,null,null,null,null,null,null,null,null,null,0]
[null,null,null,null,null,null,null,null,null,null,null,null,null,0]
[null,null,null,null,null,null,null,null,null,null,null,null,null,0]
[null,null,null,null,null,null,null,null,null,null,null,null,null,0]
[null,null,null,null,null,null,null,null,null,null,null,null,null,0]
[null,null,null,null,null,null,null,null,null,null,null,null,null,0]
[null,null,null,null,null,null,null,null,null,null,null,null,null,0]
[null,null,null,null,null,null,null,null,null,null,null,null,null,0]
[null,null,null,null,null,null,null,null,null,null,null,null,null,0]
[null,null,null,null,null,null,null,null,null,null,null,null,null,0]
[null,null,null,null,null,null,null,null,null,null,null,null,null,0]
[null,null,null,null,null,null,null,null,null,null,null,null,null,0]
[null,null,null,null,null,null,null,null,null,null,null,null,null,0]
[null,null,null,null,null,null,null,null,null,null,null,null,null,0]
[null,null,null,null,null,null,null,null,null,null,null,null,null,0]
[null,null,null,null,null,null,null,null,null,null,null,null,null,0]
[null,null,null,null,null,null,null,null,null,null,null,null,null,0]
[null,null,null,null,null,null,null,null,null,null,null,null,null,0]
[null,null,null,null,null,null,null,null,null,null,null,null,null,0]
[null,null,null,null,null,null,null,null,null,null,null,null,null,0]
[null,null,null,null,null,null,null,null,null,null,null,null,null,0]
[null,null,null,null,null,null,null,null,null,null,null,null,null,0]
[null,null,null,null,null,null,null,null,null,null,null,null,null,0]
[null,null,null,null,null,null,null,null,null,null,null,null,null,0]
[null,null,null,null,null,null,null,null,null,null,null,null,null,0]
[null,null,null,null,null,null,null,null,null,null,null,null,null,0]
[null,null,null,null,null,null,null,null,null,null,null,null,null,0]
[null,null,null,null,null,null,null,null,null,null,null,null,null,0]
[null,null,null,null,null,null,null,null,null,null,null,null,null,0]
[null,null,null,null,null,null,null,null,null,null,null,null,null,0]
[null,null,null,null,null,null,null,null,null,null,null,null,null,0]
[null,null,null,null,null,null,null,null,null,null,null,null,null,0]
[null,null,null,null,null,null,null,null,null,null,null,null,null,0]
[null,null,null,null,null,null,null,null,null,null,null,null,null,0]
[null,null,null,null,null,null,null,null,null,null,null,null,null,0]
[null,null,null,null,null,null,null,null,null,null,null,null,null,0]
[null,null,null,null,null,null,null,null,null,null,null,null,null,0]
[null,null,null,null,null,null,null,null,null,null,null,null,null,0]
[null,null,null,null,null,null,null,null,null,null,null,null,null,0]
[null,null,null,null,null,null,null,null,null,null,null,null,null,0]
[null,null,null,null,null,null,null,null,null,null,null,null,null,0]
[null,null,null,null,null,null,null,null,null,null,null,null,null,0]
[null,null,null,null,null,null,null,null,null,null,null,null,null,{"$f":"M322-(L322*J322)","v":0}]
[null,null,null,null,null,null,null,null,null,null,null,null,null,0]
[null,null,null,null,null,null,null,null,null,null,null,null,null,0]
[null,null,null,null,null,null,null,null,null,null,null,null,null,0]
[null,null,null,null,null,null,null,null,null,null,null,null,null,0]
[null,null,null,null,null,null,null,null,null,null,null,null,null,0]
[null,null,null,null,null,null,null,null,null,null,null,null,null,0]
[null,null,null,null,null,null,null,null,null,null,null,null,null,0]
[null,null,null,null,null,null,null,null,null,null,null,null,null,0]
[null,null,null,null,null,null,null,null,null,null,null,null,null,0]
[null,null,null,null,null,null,null,null,null,null,null,null,null,0]
[null,null,null,null,null,null,null,null,null,null,null,null,null,0]
[null,null,null,null,null,null,null,null,null,null,null,null,null,0]
[null,null,null,null,null,null,null,null,null,null,null,null,null,0]
[null,null,null,null,null,null,null,null,null,null,null,null,null,0]
[null,null,null,null,null,null,null,null,null,null,null,null,null,0]
[null,null,null,null,null,null,null,null,null,null,null,null,null,0]
[null,null,null,null,null,null,null,null,null,null,null,null,null,0]
[null,null,null,null,null,null,null,null,null,null,null,null,null,0]
[null,null,null,null,null,null,null,null,null,null,null,null,null,0]
[null,null,null,null,null,null,null,null,null,null,null,null,null,0]
[null,null,null,null,null,null,null,null,null,null,null,null,null,0]
[null,null,null,null,null,null,null,null,null,null,null,null,null,0]
[null,null,null,null,null,null,null,null,null,null,null,null,null,0]
[null,null,null,null,null,null,null,null,null,null,null,null,null,0]
[null,null,null,null,null,null,null,null,null,null,null,null,null,0]
[null,null,null,null,null,null,null,null,null,null,null,null,null,0]
[null,null,null,null,null,null,null,null,null,null,null,null,null,0]
[null,null,null,null,null,null,null,null,null,null,null,null,null,0]
[null,null,null,null,null,null,null,null,null,null,null,null,null,0]
[null,null,null,null,null,null,null,null,null,null,null,null,null,0]
[null,null,null,null,null,null,null,null,null,null,null,null,null,0]
[null,null,null,null,null,null,null,null,null,null,null,null,null,0]
[null,null,null,null,null,null,null,null,null,null,null,null,null,0]
[null,null,null,null,null,null,null,null,null,null,null,null,null,0]
[null,null,null,null,null,null,null,null,null,null,null,null,null,0]
[null,null,null,null,null,null,null,null,null,null,null,null,null,0]
[null,null,null,null,null,null,null,null,null,null,null,null,null,0]
[null,null,null,null,null,null,null,null,null,null,null,null,null,0]
[null,null,null,null,null,null,null,null,null,null,null,null,null,0]
[null,null,null,null,null,null,null,null,null,null,null,null,null,0]
[null,null,null,null,null,null,null,null,null,null,null,null,null,0]
[null,null,null,null,null,null,null,null,null,null,null,null,null,0]
[null,null,null,null,null,null,null,null,null,null,null,null,null,0]
[null,null,null,null,null,null,null,null,null,null,null,null,null,0]
[null,null,null,null,null,null,null,null,null,null,null,null,null,0]
[null,null,null,null,null,null,null,null,null,null,null,null,null,0]
[null,null,null,null,null,null,null,null,null,null,null,null,null,0]
[null,null,null,null,null,null,null,null,null,null,null,null,null,0]
[null,null,null,null,null,null,null,null,null,null,null,null,null,0]
[null,null,null,null,null,null,null,null,null,null,null,null,null,0]
[null,null,null,null,null,null,null,null,null,null,null,null,null,0]
[null,null,null,null,null,null,null,null,null,null,null,null,null,0]
[null,null,null,null,null,null,null,null,null,null,null,null,null,0]
[null,null,null,null,null,null,null,null,null,null,null,null,null,0]
[null,null,null,null,null,null,null,null,null,null,null,null,null,0]
[null,null,null,null,null,null,null,null,null,null,null,null,null,0]
[null,null,null,null,null,null,null,null,null,null,null,null,null,0]
[null,null,null,null,null,null,null,null,null,null,null,null,null,0]
[null,null,null,null,null,null,null,null,null,null,null,null,null,0]
[null,null,null,null,null,null,null,null,null,null,null,null,null,0]
[null,null,null,null,null,null,null,null,null,null,null,null,null,0]

{"sheet":"عمرة رمضان","index":1,"n_rows":385,"n_cols":17,"rows_kept":385,"cut":false,"hidden":false,"merged":[[0,1,0,13]]}
[null,"البيانات الأساسية للسادة الحجاج والمعتمرين",null,null,null,null,null,null,null,null,null,null,null,null,null,"الاسم","رقم الصف"]
["م","الرقم القومى","اسم الحاج","الجنسية","رقم جواز السفر","رقم بطاقة الإقامة","تاريخ انتهاء الإقامة","تليفون خاص بالحاج","إسم الفندق","تكلفة الحج أو العمرة","رسوم الحج أوالعمرة","عدد المرافقين","إجمالى المبلغ","ربح / خسارة",null,"محمد أحمد سعيد",{"$f":"MATCH(P2,C:C,0)","v":3}]
[{"$f":"IF(B3=\"\",\"\",COUNTA($B$3:B3))","v":1},32211165221,"محمد أحمد سعيد","مصري",123,222222,"2025-12-14",1010256320,null,null,80000,3,null,{"$f":"M3-(L3*J3)","v":0}]
[{"$f":"IF(B4=\"\",\"\",COUNTA($B$3:B4))","v":2},269092272800665,"نعمة أدم حسن عقيد","مصري","A36900868",6118251827,"2024-06-06",1017181537,null,null,18000,1,null,{"$f":"M4-(L4*J4)","v":0}]
[{"$f":"IF(B5=\"\",\"\",COUNTA($B$3:B5))","v":""},null,null,null,null,null,null,null,null,null,null,null,null,0]
[{"$f":"IF(B6=\"\",\"\",COUNTA($B$3:B6))","v":""},null,null,null,null,null,null,null,null,null,null,null,null,0]
[{"$f":"IF(B7=\"\",\"\",COUNTA($B$3:B7))","v":""},null,null,null,null,null,null,null,null,null,null,null,null,0]
[{"$f":"IF(B8=\"\",\"\",COUNTA($B$3:B8))","v":""},null,null,null,null,null,null,null,null,null,null,null,null,0]
[{"$f":"IF(B9=\"\",\"\",COUNTA($B$3:B9))","v":""},null,null,null,null,null,null,null,null,null,null,null,null,0]
[{"$f":"IF(B10=\"\",\"\",COUNTA($B$3:B10))","v":""},null,null,null,null,null,null,null,null,null,null,null,null,0]
[{"$f":"IF(B11=\"\",\"\",COUNTA($B$3:B11))","v":""},null,null,null,null,null,null,null,null,null,null,null,null,0]
[{"$f":"IF(B12=\"\",\"\",COUNTA($B$3:B12))","v":""},null,null,null,null,null,null,null,null,null,null,null,null,0]
[{"$f":"IF(B13=\"\",\"\",COUNTA($B$3:B13))","v":""},null,null,null,null,null,null,null,null,null,null,null,null,0]
[{"$f":"IF(B14=\"\",\"\",COUNTA($B$3:B14))","v":""},null,null,null,null,null,null,null,null,null,null,null,null,0]
[{"$f":"IF(B15=\"\",\"\",COUNTA($B$3:B15))","v":""},null,null,null,null,null,null,null,null,null,null,null,null,0]
[{"$f":"IF(B16=\"\",\"\",COUNTA($B$3:B16))","v":""},null,null,null,null,null,null,null,null,null,null,null,null,0]
[{"$f":"IF(B17=\"\",\"\",COUNTA($B$3:B17))","v":""},null,null,null,null,null,null,null,null,null,null,null,null,0]
[{"$f":"IF(B18=\"\",\"\",COUNTA($B$3:B18))","v":""},null,null,null,null,null,null,null,null,null,null,null,null,0]
[{"$f":"IF(B19=\"\",\"\",COUNTA($B$3:B19))","v":""},null,null,null,null,null,null,null,null,null,null,null,null,0]
[{"$f":"IF(B20=\"\",\"\",COUNTA($B$3:B20))","v":""},null,null,null,null,null,null,null,null,null,null,null,null,0]
[{"$f":"IF(B21=\"\",\"\",COUNTA($B$3:B21))","v":""},null,null,null,null,null,null,null,null,null,null,null,null,0]
[{"$f":"IF(B22=\"\",\"\",COUNTA($B$3:B22))","v":""},null,null,null,null,null,null,null,null,null,null,null,null,0]
[{"$f":"IF(B23=\"\",\"\",COUNTA($B$3:B23))","v":""},null,null,null,null,null,null,null,null,null,null,null,null,0]
[{"$f":"IF(B24=\"\",\"\",COUNTA($B$3:B24))","v":""},null,null,null,null,null,null,null,null,null,null,null,null,0]
[{"$f":"IF(B25=\"\",\"\",COUNTA($B$3:B25))","v":""},null,null,null,null,null,null,null,null,null,null,null,null,0]
[{"$f":"IF(B26=\"\",\"\",COUNTA($B$3:B26))","v":""},null,null,null,null,null,null,null,null,null,null,null,null,0]
[{"$f":"IF(B27=\"\",\"\",COUNTA($B$3:B27))","v":""},null,null,null,null,null,null,null,null,null,null,null,null,0]
[{"$f":"IF(B28=\"\",\"\",COUNTA($B$3:B28))","v":""},null,null,null,null,null,null,null,null,null,null,null,null,0]
[{"$f":"IF(B29=\"\",\"\",COUNTA($B$3:B29))","v":""},null,null,null,null,null,null,null,null,null,null,null,null,0]
[{"$f":"IF(B30=\"\",\"\",COUNTA($B$3:B30))","v":""},null,null,null,null,null,null,null,null,null,null,null,null,0]
[{"$f":"IF(B31=\"\",\"\",COUNTA($B$3:B31))","v":""},null,null,null,null,null,null,null,null,null,null,null,null,0]
[{"$f":"IF(B32=\"\",\"\",COUNTA($B$3:B32))","v":""},null,null,null,null,null,null,null,null,null,null,null,null,0]
[{"$f":"IF(B33=\"\",\"\",COUNTA($B$3:B33))","v":""},null,null,null,null,null,null,null,null,null,null,null,null,0]
[{"$f":"IF(B34=\"\",\"\",COUNTA($B$3:B34))","v":""},null,null,null,null,null,null,null,null,null,null,null,null,0]
[{"$f":"IF(B35=\"\",\"\",COUNTA($B$3:B35))","v":""},null,null,null,null,null,null,null,null,null,null,null,null,0]
[{"$f":"IF(B36=\"\",\"\",COUNTA($B$3:B36))","v":""},null,null,null,null,null,null,null,null,null,null,null,null,0]
[{"$f":"IF(B37=\"\",\"\",COUNTA($B$3:B37))","v":""},null,null,null,null,null,null,null,null,null,null,null,null,0]
[{"$f":"IF(B38=\"\",\"\",COUNTA($B$3:B38))","v":""},null,null,null,null,null,null,null,null,null,null,null,null,0]
[{"$f":"IF(B39=\"\",\"\",COUNTA($B$3:B39))","v":""},null,null,null,null,null,null,null,null,null,null,null,null,0]
[{"$f":"IF(B40=\"\",\"\",COUNTA($B$3:B40))","v":""},null,null,null,null,null,null,null,null,null,null,null,null,0]
[{"$f":"IF(B41=\"\",\"\",COUNTA($B$3:B41))","v":""},null,null,null,null,null,null,null,null,null,null,null,null,0]
[{"$f":"IF(B42=\"\",\"\",COUNTA($B$3:B42))","v":""},null,null,null,null,null,null,null,null,null,null,null,null,0]
[{"$f":"IF(B43=\"\",\"\",COUNTA($B$3:B43))","v":""},null,null,null,null,null,null,null,null,null,null,null,null,0]
[{"$f":"IF(B44=\"\",\"\",COUNTA($B$3:B44))","v":""},null,null,null,null,null,null,null,null,null,null,null,null,0]
[{"$f":"IF(B45=\"\",\"\",COUNTA($B$3:B45))","v":""},null,null,null,null,null,null,null,null,null,null,null,null,0]
[{"$f":"IF(B46=\"\",\"\",COUNTA($B$3:B46))","v":""},null,null,null,null,null,null,null,null,null,null,null,null,0]
[{"$f":"IF(B47=\"\",\"\",COUNTA($B$3:B47))","v":""},null,null,null,null,null,null,null,null,null,null,null,null,0]
[{"$f":"IF(B48=\"\",\"\",COUNTA($B$3:B48))","v":""},null,null,null,null,null,null,null,null,null,null,null,null,0]
[{"$f":"IF(B49=\"\",\"\",COUNTA($B$3:B49))","v":""},null,null,null,null,null,null,null,null,null,null,null,null,0]
[{"$f":"IF(B50=\"\",\"\",COUNTA($B$3:B50))","v":""},null,null,null,null,null,null,null,null,null,null,null,null,0]
[{"$f":"IF(B51=\"\",\"\",COUNTA($B$3:B51))","v":""},null,null,null,null,null,null,null,null,null,null,null,null,0]
[{"$f":"IF(B52=\"\",\"\",COUNTA($B$3:B52))","v":""},null,null,null,null,null,null,null,null,null,null,null,null,0]
[{"$f":"IF(B53=\"\",\"\",COUNTA($B$3:B53))","v":""},null,null,null,null,null,null,null,null,null,null,null,null,0]
[{"$f":"IF(B54=\"\",\"\",COUNTA($B$3:B54))","v":""},null,null,null,null,null,null,null,null,null,null,null,null,0]
[{"$f":"IF(B55=\"\",\"\",COUNTA($B$3:B55))","v":""},null,null,null,null,null,null,null,null,null,null,null,null,0]
[{"$f":"IF(B56=\"\",\"\",COUNTA($B$3:B56))","v":""},null,null,null,null,null,null,null,null,null,null,null,null,0]
[{"$f":"IF(B57=\"\",\"\",COUNTA($B$3:B57))","v":""},null,null,null,null,null,null,null,null,null,null,null,null,0]
[{"$f":"IF(B58=\"\",\"\",COUNTA($B$3:B58))","v":""},null,null,null,null,null,null,null,null,null,null,null,null,0]
[{"$f":"IF(B59=\"\",\"\",COUNTA($B$3:B59))","v":""},null,null,null,null,null,null,null,null,null,null,null,null,0]
[{"$f":"IF(B60=\"\",\"\",COUNTA($B$3:B60))","v":""},null,null,null,null,null,null,null,null,null,null,null,null,0]
[{"$f":"IF(B61=\"\",\"\",COUNTA($B$3:B61))","v":""},null,null,null,null,null,null,null,null,null,null,null,null,0]
[{"$f":"IF(B62=\"\",\"\",COUNTA($B$3:B62))","v":""},null,null,null,null,null,null,null,null,null,null,null,null,0]
[{"$f":"IF(B63=\"\",\"\",COUNTA($B$3:B63))","v":""},null,null,null,null,null,null,null,null,null,null,null,null,0]
[{"$f":"IF(B64=\"\",\"\",COUNTA($B$3:B64))","v":""},null,null,null,null,null,null,null,null,null,null,null,null,0]
[{"$f":"IF(B65=\"\",\"\",COUNTA($B$3:B65))","v":""},null,null,null,null,null,null,null,null,null,null,null,null,0]
[{"$f":"IF(B66=\"\",\"\",COUNTA($B$3:B66))","v":""},null,null,null,null,null,null,null,null,null,null,null,null,0]
[{"$f":"IF(B67=\"\",\"\",COUNTA($B$3:B67))","v":""},null,null,null,null,null,null,null,null,null,null,null,null,0]
[{"$f":"IF(B68=\"\",\"\",COUNTA($B$3:B68))","v":""},null,null,null,null,null,null,null,null,null,null,null,null,{"$f":"M68-(L68*J68)","v":0}]
[{"$f":"IF(B69=\"\",\"\",COUNTA($B$3:B69))","v":""},null,null,null,null,null,null,null,null,null,null,null,null,0]
[{"$f":"IF(B70=\"\",\"\",COUNTA($B$3:B70))","v":""},null,null,null,null,null,null,null,null,null,null,null,null,0]
[{"$f":"IF(B71=\"\",\"\",COUNTA($B$3:B71))","v":""},null,null,null,null,null,null,null,null,null,null,null,null,0]
[{"$f":"IF(B72=\"\",\"\",COUNTA($B$3:B72))","v":""},null,null,null,null,null,null,null,null,null,null,null,null,0]
[{"$f":"IF(B73=\"\",\"\",COUNTA($B$3:B73))","v":""},null,null,null,null,null,null,null,null,null,null,null,null,0]
[{"$f":"IF(B74=\"\",\"\",COUNTA($B$3:B74))","v":""},null,null,null,null,null,null,null,null,null,null,null,null,0]
[{"$f":"IF(B75=\"\",\"\",COUNTA($B$3:B75))","v":""},null,null,null,null,null,null,null,null,null,null,null,null,0]
[{"$f":"IF(B76=\"\",\"\",COUNTA($B$3:B76))","v":""},null,null,null,null,null,null,null,null,null,null,null,null,0]
[{"$f":"IF(B77=\"\",\"\",COUNTA($B$3:B77))","v":""},null,null,null,null,null,null,null,null,null,null,null,null,0]
[{"$f":"IF(B78=\"\",\"\",COUNTA($B$3:B78))","v":""},null,null,null,null,null,null,null,null,null,null,null,null,0]
[{"$f":"IF(B79=\"\",\"\",COUNTA($B$3:B79))","v":""},null,null,null,null,null,null,null,null,null,null,null,null,0]
[{"$f":"IF(B80=\"\",\"\",COUNTA($B$3:B80))","v":""},null,null,null,null,null,null,null,null,null,null,null,null,0]
[{"$f":"IF(B81=\"\",\"\",COUNTA($B$3:B81))","v":""},null,null,null,null,null,null,null,null,null,null,null,null,0]
[{"$f":"IF(B82=\"\",\"\",COUNTA($B$3:B82))","v":""},null,null,null,null,null,null,null,null,null,null,null,null,0]
[{"$f":"IF(B83=\"\",\"\",COUNTA($B$3:B83))","v":""},null,null,null,null,null,null,null,null,null,null,null,null,0]
[{"$f":"IF(B84=\"\",\"\",COUNTA($B$3:B84))","v":""},null,null,null,null,null,null,null,null,null,null,null,null,0]
[{"$f":"IF(B85=\"\",\"\",COUNTA($B$3:B85))","v":""},null,null,null,null,null,null,null,null,null,null,null,null,0]
[{"$f":"IF(B86=\"\",\"\",COUNTA($B$3:B86))","v":""},null,null,null,null,null,null,null,null,null,null,null,null,0]
[{"$f":"IF(B87=\"\",\"\",COUNTA($B$3:B87))","v":""},null,null,null,null,null,null,null,null,null,null,null,null,0]
[{"$f":"IF(B88=\"\",\"\",COUNTA($B$3:B88))","v":""},null,null,null,null,null,null,null,null,null,null,null,null,0]
[{"$f":"IF(B89=\"\",\"\",COUNTA($B$3:B89))","v":""},null,null,null,null,null,null,null,null,null,null,null,null,0]
[{"$f":"IF(B90=\"\",\"\",COUNTA($B$3:B90))","v":""},null,null,null,null,null,null,null,null,null,null,null,null,0]
[{"$f":"IF(B91=\"\",\"\",COUNTA($B$3:B91))","v":""},null,null,null,null,null,null,null,null,null,null,null,null,0]
[{"$f":"IF(B92=\"\",\"\",COUNTA($B$3:B92))","v":""},null,null,null,null,null,null,null,null,null,null,null,null,0]
[{"$f":"IF(B93=\"\",\"\",COUNTA($B$3:B93))","v":""},null,null,null,null,null,null,null,null,null,null,null,null,0]
[{"$f":"IF(B94=\"\",\"\",COUNTA($B$3:B94))","v":""},null,null,null,null,null,null,null,null,null,null,null,null,0]
[{"$f":"IF(B95=\"\",\"\",COUNTA($B$3:B95))","v":""},null,null,null,null,null,null,null,null,null,null,null,null,0]
[{"$f":"IF(B96=\"\",\"\",COUNTA($B$3:B96))","v":""},null,null,null,null,null,null,null,null,null,null,null,null,0]
[{"$f":"IF(B97=\"\",\"\",COUNTA($B$3:B97))","v":""},null,null,null,null,null,null,null,null,null,null,null,null,0]
[{"$f":"IF(B98=\"\",\"\",COUNTA($B$3:B98))","v":""},null,null,null,null,null,null,null,null,null,null,null,null,0]
[{"$f":"IF(B99=\"\",\"\",COUNTA($B$3:B99))","v":""},null,null,null,null,null,null,null,null,null,null,null,null,0]
[{"$f":"IF(B100=\"\",\"\",COUNTA($B$3:B100))","v":""},null,null,null,null,null,null,null,null,null,null,null,null,0]
[{"$f":"IF(B101=\"\",\"\",COUNTA($B$3:B101))","v":""},null,null,null,null,null,null,null,null,null,null,null,null,0]
[{"$f":"IF(B102=\"\",\"\",COUNTA($B$3:B102))","v":""},null,null,null,null,null,null,null,null,null,null,null,null,0]
[{"$f":"IF(B103=\"\",\"\",COUNTA($B$3:B103))","v":""},null,null,null,null,null,null,null,null,null,null,null,null,0]
[{"$f":"IF(B104=\"\",\"\",COUNTA($B$3:B104))","v":""},null,null,null,null,null,null,null,null,null,null,null,null,0]
[{"$f":"IF(B105=\"\",\"\",COUNTA($B$3:B105))","v":""},null,null,null,null,null,null,null,null,null,null,null,null,0]
[{"$f":"IF(B106=\"\",\"\",COUNTA($B$3:B106))","v":""},null,null,null,null,null,null,null,null,null,null,null,null,0]
[{"$f":"IF(B107=\"\",\"\",COUNTA($B$3:B107))","v":""},null,null,null,null,null,null,null,null,null,null,null,null,0]
[{"$f":"IF(B108=\"\",\"\",COUNTA($B$3:B108))","v":""},null,null,null,null,null,null,null,null,null,null,null,null,0]
[{"$f":"IF(B109=\"\",\"\",COUNTA($B$3:B109))","v":""},null,null,null,null,null,null,null,null,null,null,null,null,0]
[{"$f":"IF(B110=\"\",\"\",COUNTA($B$3:B110))","v":""},null,null,null,null,null,null,null,null,null,null,null,null,0]
[{"$f":"IF(B111=\"\",\"\",COUNTA($B$3:B111))","v":""},null,null,null,null,null,null,null,null,null,null,null,null,0]
[{"$f":"IF(B112=\"\",\"\",COUNTA($B$3:B112))","v":""},null,null,null,null,null,null,null,null,null,null,null,null,0]
[{"$f":"IF(B113=\"\",\"\",COUNTA($B$3:B113))","v":""},null,null,null,null,null,null,null,null,null,null,null,null,0]
[{"$f":"IF(B114=\"\",\"\",COUNTA($B$3:B114))","v":""},null,null,null,null,null,null,null,null,null,null,null,null,0]
[{"$f":"IF(B115=\"\",\"\",COUNTA($B$3:B115))","v":""},null,null,null,null,null,null,null,null,null,null,null,null,0]
[{"$f":"IF(B116=\"\",\"\",COUNTA($B$3:B116))","v":""},null,null,null,null,null,null,null,null,null,null,null,null,0]
[{"$f":"IF(B117=\"\",\"\",COUNTA($B$3:B117))","v":""},null,null,null,null,null,null,null,null,null,null,null,null,0]
[{"$f":"IF(B118=\"\",\"\",COUNTA($B$3:B118))","v":""},null,null,null,null,null,null,null,null,null,null,null,null,0]
[{"$f":"IF(B119=\"\",\"\",COUNTA($B$3:B119))","v":""},null,null,null,null,null,null,null,null,null,null,null,null,0]
[{"$f":"IF(B120=\"\",\"\",COUNTA($B$3:B120))","v":""},null,null,null,null,null,null,null,null,null,null,null,null,0]
[{"$f":"IF(B121=\"\",\"\",COUNTA($B$3:B121))","v":""},null,null,null,null,null,null,null,null,null,null,null,null,0]
[{"$f":"IF(B122=\"\",\"\",COUNTA($B$3:B122))","v":""},null,null,null,null,null,null,null,null,null,null,null,null,0]
[{"$f":"IF(B123=\"\",\"\",COUNTA($B$3:B123))","v":""},null,null,null,null,null,null,null,null,null,null,null,null,0]
[{"$f":"IF(B124=\"\",\"\",COUNTA($B$3:B124))","v":""},null,null,null,null,null,null,null,null,null,null,null,null,0]
[{"$f":"IF(B125=\"\",\"\",COUNTA($B$3:B125))","v":""},null,null,null,null,null,null,null,null,null,null,null,null,0]
[{"$f":"IF(B126=\"\",\"\",COUNTA($B$3:B126))","v":""},null,null,null,null,null,null,null,null,null,null,null,null,0]
[{"$f":"IF(B127=\"\",\"\",COUNTA($B$3:B127))","v":""},null,null,null,null,null,null,null,null,null,null,null,null,0]
[{"$f":"IF(B128=\"\",\"\",COUNTA($B$3:B128))","v":""},null,null,null,null,null,null,null,null,null,null,null,null,0]
[{"$f":"IF(B129=\"\",\"\",COUNTA($B$3:B129))","v":""},null,null,null,null,null,null,null,null,null,null,null,null,0]
[{"$f":"IF(B130=\"\",\"\",COUNTA($B$3:B130))","v":""},null,null,null,null,null,null,null,null,null,null,null,null,0]
[{"$f":"IF(B131=\"\",\"\",COUNTA($B$3:B131))","v":""},null,null,null,null,null,null,null,null,null,null,null,null,0]
[{"$f":"IF(B132=\"\",\"\",COUNTA($B$3:B132))","v":""},null,null,null,null,null,null,null,null,null,null,null,null,{"$f":"M132-(L132*J132)","v":0}]
[{"$f":"IF(B133=\"\",\"\",COUNTA($B$3:B133))","v":""},null,null,null,null,null,null,null,null,null,null,null,null,0]
[{"$f":"IF(B134=\"\",\"\",COUNTA($B$3:B134))","v":""},null,null,null,null,null,null,null,null,null,null,null,null,0]
[{"$f":"IF(B135=\"\",\"\",COUNTA($B$3:B135))","v":""},null,null,null,null,null,null,null,null,null,null,null,null,0]
[{"$f":"IF(B136=\"\",\"\",COUNTA($B$3:B136))","v":""},null,null,null,null,null,null,null,null,null,null,null,null,0]
[{"$f":"IF(B137=\"\",\"\",COUNTA($B$3:B137))","v":""},null,null,null,null,null,null,null,null,null,null,null,null,0]
[{"$f":"IF(B138=\"\",\"\",COUNTA($B$3:B138))","v":""},null,null,null,null,null,null,null,null,null,null,null,null,0]
[{"$f":"IF(B139=\"\",\"\",COUNTA($B$3:B139))","v":""},null,null,null,null,null,null,null,null,null,null,null,null,0]
[{"$f":"IF(B140=\"\",\"\",COUNTA($B$3:B140))","v":""},null,null,null,null,null,null,null,null,null,null,null,null,0]
[{"$f":"IF(B141=\"\",\"\",COUNTA($B$3:B141))","v":""},null,null,null,null,null,null,null,null,null,null,null,null,0]
[{"$f":"IF(B142=\"\",\"\",COUNTA($B$3:B142))","v":""},null,null,null,null,null,null,null,null,null,null,null,null,0]
[{"$f":"IF(B143=\"\",\"\",COUNTA($B$3:B143))","v":""},null,null,null,null,null,null,null,null,null,null,null,null,0]
[{"$f":"IF(B144=\"\",\"\",COUNTA($B$3:B144))","v":""},null,null,null,null,null,null,null,null,null,null,null,null,0]
[{"$f":"IF(B145=\"\",\"\",COUNTA($B$3:B145))","v":""},null,null,null,null,null,null,null,null,null,null,null,null,0]
[{"$f":"IF(B146=\"\",\"\",COUNTA($B$3:B146))","v":""},null,null,null,null,null,null,null,null,null,null,null,null,0]
[{"$f":"IF(B147=\"\",\"\",COUNTA($B$3:B147))","v":""},null,null,null,null,null,null,null,null,null,null,null,null,0]
[{"$f":"IF(B148=\"\",\"\",COUNTA($B$3:B148))","v":""},null,null,null,null,null,null,null,null,null,null,null,null,0]
[{"$f":"IF(B149=\"\",\"\",COUNTA($B$3:B149))","v":""},null,null,null,null,null,null,null,null,null,null,null,null,0]
[{"$f":"IF(B150=\"\",\"\",COUNTA($B$3:B150))","v":""},null,null,null,null,null,null,null,null,null,null,null,null,0]
[{"$f":"IF(B151=\"\",\"\",COUNTA($B$3:B151))","v":""},null,null,null,null,null,null,null,null,null,null,null,null,0]
[{"$f":"IF(B152=\"\",\"\",COUNTA($B$3:B152))","v":""},null,null,null,null,null,null,null,null,null,null,null,null,0]
[{"$f":"IF(B153=\"\",\"\",COUNTA($B$3:B153))","v":""},null,null,null,null,null,null,null,null,null,null,null,null,0]
[{"$f":"IF(B154=\"\",\"\",COUNTA($B$3:B154))","v":""},null,null,null,null,null,null,null,null,null,null,null,null,0]
[{"$f":"IF(B155=\"\",\"\",COUNTA($B$3:B155))","v":""},null,null,null,null,null,null,null,null,null,null,null,null,0]
[{"$f":"IF(B156=\"\",\"\",COUNTA($B$3:B156))","v":""},null,null,null,null,null,null,null,null,null,null,null,null,0]
[{"$f":"IF(B157=\"\",\"\",COUNTA($B$3:B157))","v":""},null,null,null,null,null,null,null,null,null,null,null,null,0]
[{"$f":"IF(B158=\"\",\"\",COUNTA($B$3:B158))","v":""},null,null,null,null,null,null,null,null,null,null,null,null,0]
[{"$f":"IF(B159=\"\",\"\",COUNTA($B$3:B159))","v":""},null,null,null,null,null,null,null,null,null,null,null,null,0]
[{"$f":"IF(B160=\"\",\"\",COUNTA($B$3:B160))","v":""},null,null,null,null,null,null,null,null,null,null,null,null,0]
[{"$f":"IF(B161=\"\",\"\",COUNTA($B$3:B161))","v":""},null,null,null,null,null,null,null,null,null,null,null,null,0]
[{"$f":"IF(B162=\"\",\"\",COUNTA($B$3:B162))","v":""},null,null,null,null,null,null,null,null,null,null,null,null,0]
[{"$f":"IF(B163=\"\",\"\",COUNTA($B$3:B163))","v":""},null,null,null,null,null,null,null,null,null,null,null,null,0]
[{"$f":"IF(B164=\"\",\"\",COUNTA($B$3:B164))","v":""},null,null,null,null,null,null,null,null,null,null,null,null,0]
[{"$f":"IF(B165=\"\",\"\",COUNTA($B$3:B165))","v":""},null,null,null,null,null,null,null,null,null,null,null,null,0]
[{"$f":"IF(B166=\"\",\"\",COUNTA($B$3:B166))","v":""},null,null,null,null,null,null,null,null,null,null,null,null,0]
[{"$f":"IF(B167=\"\",\"\",COUNTA($B$3:B167))","v":""},null,null,null,null,null,null,null,null,null,null,null,null,0]
[{"$f":"IF(B168=\"\",\"\",COUNTA($B$3:B168))","v":""},null,null,null,null,null,null,null,null,null,null,null,null,0]
[{"$f":"IF(B169=\"\",\"\",COUNTA($B$3:B169))","v":""},null,null,null,null,null,null,null,null,null,null,null,null,0]
[{"$f":"IF(B170=\"\",\"\",COUNTA($B$3:B170))","v":""},null,null,null,null,null,null,null,null,null,null,null,null,0]
[{"$f":"IF(B171=\"\",\"\",COUNTA($B$3:B171))","v":""},null,null,null,null,null,null,null,null,null,null,null,null,0]
[{"$f":"IF(B172=\"\",\"\",COUNTA($B$3:B172))","v":""},null,null,null,null,null,null,null,null,null,null,null,null,0]
[{"$f":"IF(B173=\"\",\"\",COUNTA($B$3:B173))","v":""},null,null,null,null,null,null,null,null,null,null,null,null,0]
[{"$f":"IF(B174=\"\",\"\",COUNTA($B$3:B174))","v":""},null,null,null,null,null,null,null,null,null,null,null,null,0]
[{"$f":"IF(B175=\"\",\"\",COUNTA($B$3:B175))","v":""},null,null,null,null,null,null,null,null,null,null,null,null,0]
[{"$f":"IF(B176=\"\",\"\",COUNTA($B$3:B176))","v":""},null,null,null,null,null,null,null,null,null,null,null,null,0]
[{"$f":"IF(B177=\"\",\"\",COUNTA($B$3:B177))","v":""},null,null,null,null,null,null,null,null,null,null,null,null,0]
[{"$f":"IF(B178=\"\",\"\",COUNTA($B$3:B178))","v":""},null,null,null,null,null,null,null,null,null,null,null,null,0]
[{"$f":"IF(B179=\"\",\"\",COUNTA($B$3:B179))","v":""},null,null,null,null,null,null,null,null,null,null,null,null,0]
[{"$f":"IF(B180=\"\",\"\",COUNTA($B$3:B180))","v":""},null,null,null,null,null,null,null,null,null,null,null,null,0]
[{"$f":"IF(B181=\"\",\"\",COUNTA($B$3:B181))","v":""},null,null,null,null,null,null,null,null,null,null,null,null,0]
[{"$f":"IF(B182=\"\",\"\",COUNTA($B$3:B182))","v":""},null,null,null,null,null,null,null,null,null,null,null,null,0]
[{"$f":"IF(B183=\"\",\"\",COUNTA($B$3:B183))","v":""},null,null,null,null,null,null,null,null,null,null,null,null,0]
[{"$f":"IF(B184=\"\",\"\",COUNTA($B$3:B184))","v":""},null,null,null,null,null,null,null,null,null,null,null,null,0]
[{"$f":"IF(B185=\"\",\"\",COUNTA($B$3:B185))","v":""},null,null,null,null,null,null,null,null,null,null,null,null,0]
[{"$f":"IF(B186=\"\",\"\",COUNTA($B$3:B186))","v":""},null,null,null,null,null,null,null,null,null,null,null,null,0]
[{"$f":"IF(B187=\"\",\"\",COUNTA($B$3:B187))","v":""},null,null,null,null,null,null,null,null,null,null,null,null,0]
[{"$f":"IF(B188=\"\",\"\",COUNTA($B$3:B188))","v":""},null,null,null,null,null,null,null,null,null,null,null,null,0]
[{"$f":"IF(B189=\"\",\"\",COUNTA($B$3:B189))","v":""},null,null,null,null,null,null,null,null,null,null,null,null,0]
[{"$f":"IF(B190=\"\",\"\",COUNTA($B$3:B190))","v":""},null,null,null,null,null,null,null,null,null,null,null,null,0]
[{"$f":"IF(B191=\"\",\"\",COUNTA($B$3:B191))","v":""},null,null,null,null,null,null,null,null,null,null,null,null,0]
[{"$f":"IF(B192=\"\",\"\",COUNTA($B$3:B192))","v":""},null,null,null,null,null,null,null,null,null,null,null,null,0]
[{"$f":"IF(B193=\"\",\"\",COUNTA($B$3:B193))","v":""},null,null,null,null,null,null,null,null,null,null,null,null,0]
[{"$f":"IF(B194=\"\",\"\",COUNTA($B$3:B194))","v":""},null,null,null,null,null,null,null,null,null,null,null,null,0]
[{"$f":"IF(B195=\"\",\"\",COUNTA($B$3:B195))","v":""},null,null,null,null,null,null,null,null,null,null,null,null,0]
[{"$f":"IF(B196=\"\",\"\",COUNTA($B$3:B196))","v":""},null,null,null,null,null,null,null,null,null,null,null,null,{"$f":"M196-(L196*J196)","v":0}]
[{"$f":"IF(B197=\"\",\"\",COUNTA($B$3:B197))","v":""},null,null,null,null,null,null,null,null,null,null,null,null,0]
[{"$f":"IF(B198=\"\",\"\",COUNTA($B$3:B198))","v":""},null,null,null,null,null,null,null,null,null,null,null,null,0]
[{"$f":"IF(B199=\"\",\"\",COUNTA($B$3:B199))","v":""},null,null,null,null,null,null,null,null,null,null,null,null,0]
[{"$f":"IF(B200=\"\",\"\",COUNTA($B$3:B200))","v":""},null,null,null,null,null,null,null,null,null,null,null,null,0]
[{"$f":"IF(B201=\"\",\"\",COUNTA($B$3:B201))","v":""},null,null,null,null,null,null,null,null,null,null,null,null,0]
[{"$f":"IF(B202=\"\",\"\",COUNTA($B$3:B202))","v":""},null,null,null,null,null,null,null,null,null,null,null,null,0]
[{"$f":"IF(B203=\"\",\"\",COUNTA($B$3:B203))","v":""},null,null,null,null,null,null,null,null,null,null,null,null,0]
[{"$f":"IF(B204=\"\",\"\",COUNTA($B$3:B204))","v":""},null,null,null,null,null,null,null,null,null,null,null,null,0]
[{"$f":"IF(B205=\"\",\"\",COUNTA($B$3:B205))","v":""},null,null,null,null,null,null,null,null,null,null,null,null,0]
[{"$f":"IF(B206=\"\",\"\",COUNTA($B$3:B206))","v":""},null,null,null,null,null,null,null,null,null,null,null,null,0]
[{"$f":"IF(B207=\"\",\"\",COUNTA($B$3:B207))","v":""},null,null,null,null,null,null,null,null,null,null,null,null,0]
[{"$f":"IF(B208=\"\",\"\",COUNTA($B$3:B208))","v":""},null,null,null,null,null,null,null,null,null,null,null,null,0]
[{"$f":"IF(B209=\"\",\"\",COUNTA($B$3:B209))","v":""},null,null,null,null,null,null,null,null,null,null,null,null,0]
[{"$f":"IF(B210=\"\",\"\",COUNTA($B$3:B210))","v":""},null,null,null,null,null,null,null,null,null,null,null,null,0]
[{"$f":"IF(B211=\"\",\"\",COUNTA($B$3:B211))","v":""},null,null,null,null,null,null,null,null,null,null,null,null,0]
[{"$f":"IF(B212=\"\",\"\",COUNTA($B$3:B212))","v":""},null,null,null,null,null,null,null,null,null,null,null,null,0]
[{"$f":"IF(B213=\"\",\"\",COUNTA($B$3:B213))","v":""},null,null,null,null,null,null,null,null,null,null,null,null,0]
[{"$f":"IF(B214=\"\",\"\",COUNTA($B$3:B214))","v":""},null,null,null,null,null,null,null,null,null,null,null,null,0]
[{"$f":"IF(B215=\"\",\"\",COUNTA($B$3:B215))","v":""},null,null,null,null,null,null,null,null,null,null,null,null,0]
[{"$f":"IF(B216=\"\",\"\",COUNTA($B$3:B216))","v":""},null,null,null,null,null,null,null,null,null,null,null,null,0]
[{"$f":"IF(B217=\"\",\"\",COUNTA($B$3:B217))","v":""},null,null,null,null,null,null,null,null,null,null,null,null,0]
[{"$f":"IF(B218=\"\",\"\",COUNTA($B$3:B218))","v":""},null,null,null,null,null,null,null,null,null,null,null,null,0]
[{"$f":"IF(B219=\"\",\"\",COUNTA($B$3:B219))","v":""},null,null,null,null,null,null,null,null,null,null,null,null,0]
[{"$f":"IF(B220=\"\",\"\",COUNTA($B$3:B220))","v":""},null,null,null,null,null,null,null,null,null,null,null,null,0]
[{"$f":"IF(B221=\"\",\"\",COUNTA($B$3:B221))","v":""},null,null,null,null,null,null,null,null,null,null,null,null,0]
[{"$f":"IF(B222=\"\",\"\",COUNTA($B$3:B222))","v":""},null,null,null,null,null,null,null,null,null,null,null,null,0]
[{"$f":"IF(B223=\"\",\"\",COUNTA($B$3:B223))","v":""},null,null,null,null,null,null,null,null,null,null,null,null,0]
[{"$f":"IF(B224=\"\",\"\",COUNTA($B$3:B224))","v":""},null,null,null,null,null,null,null,null,null,null,null,null,0]
[{"$f":"IF(B225=\"\",\"\",COUNTA($B$3:B225))","v":""},null,null,null,null,null,null,null,null,null,null,null,null,0]
[{"$f":"IF(B226=\"\",\"\",COUNTA($B$3:B226))","v":""},null,null,null,null,null,null,null,null,null,null,null,null,0]
[{"$f":"IF(B227=\"\",\"\",COUNTA($B$3:B227))","v":""},null,null,null,null,null,null,null,null,null,null,null,null,0]
[{"$f":"IF(B228=\"\",\"\",COUNTA($B$3:B228))","v":""},null,null,null,null,null,null,null,null,null,null,null,null,0]
[{"$f":"IF(B229=\"\",\"\",COUNTA($B$3:B229))","v":""},null,null,null,null,null,null,null,null,null,null,null,null,0]
[{"$f":"IF(B230=\"\",\"\",COUNTA($B$3:B230))","v":""},null,null,null,null,null,null,null,null,null,null,null,null,0]
[{"$f":"IF(B231=\"\",\"\",COUNTA($B$3:B231))","v":""},null,null,null,null,null,null,null,null,null,null,null,null,0]
[{"$f":"IF(B232=\"\",\"\",COUNTA($B$3:B232))","v":""},null,null,null,null,null,null,null,null,null,null,null,null,0]
[{"$f":"IF(B233=\"\",\"\",COUNTA($B$3:B233))","v":""},null,null,null,null,null,null,null,null,null,null,null,null,0]
[{"$f":"IF(B234=\"\",\"\",COUNTA($B$3:B234))","v":""},null,null,null,null,null,null,null,null,null,null,null,null,0]
[{"$f":"IF(B235=\"\",\"\",COUNTA($B$3:B235))","v":""},null,null,null,null,null,null,null,null,null,null,null,null,0]
[{"$f":"IF(B236=\"\",\"\",COUNTA($B$3:B236))","v":""},null,null,null,null,null,null,null,null,null,null,null,null,0]
[{"$f":"IF(B237=\"\",\"\",COUNTA($B$3:B237))","v":""},null,null,null,null,null,null,null,null,null,null,null,null,0]
[{"$f":"IF(B238=\"\",\"\",COUNTA($B$3:B238))","v":""},null,null,null,null,null,null,null,null,null,null,null,null,0]
[{"$f":"IF(B239=\"\",\"\",COUNTA($B$3:B239))","v":""},null,null,null,null,null,null,null,null,null,null,null,null,0]
[{"$f":"IF(B240=\"\",\"\",COUNTA($B$3:B240))","v":""},null,null,null,null,null,null,null,null,null,null,null,null,0]
[{"$f":"IF(B241=\"\",\"\",COUNTA($B$3:B241))","v":""},null,null,null,null,null,null,null,null,null,null,null,null,0]
[{"$f":"IF(B242=\"\",\"\",COUNTA($B$3:B242))","v":""},null,null,null,null,null,null,null,null,null,null,null,null,0]
[{"$f":"IF(B243=\"\",\"\",COUNTA($B$3:B243))","v":""},null,null,null,null,null,null,null,null,null,null,null,null,0]
[{"$f":"IF(B244=\"\",\"\",COUNTA($B$3:B244))","v":""},null,null,null,null,null,null,null,null,null,null,null,null,0]
[{"$f":"IF(B245=\"\",\"\",COUNTA($B$3:B245))","v":""},null,null,null,null,null,null,null,null,null,null,null,null,0]
[{"$f":"IF(B246=\"\",\"\",COUNTA($B$3:B246))","v":""},null,null,null,null,null,null,null,null,null,null,null,null,0]
[{"$f":"IF(B247=\"\",\"\",COUNTA($B$3:B247))","v":""},null,null,null,null,null,null,null,null,null,null,null,null,0]
[{"$f":"IF(B248=\"\",\"\",COUNTA($B$3:B248))","v":""},null,null,null,null,null,null,null,null,null,null,null,null,0]
[{"$f":"IF(B249=\"\",\"\",COUNTA($B$3:B249))","v":""},null,null,null,null,null,null,null,null,null,null,null,null,0]
[{"$f":"IF(B250=\"\",\"\",COUNTA($B$3:B250))","v":""},null,null,null,null,null,null,null,null,null,null,null,null,0]
[{"$f":"IF(B251=\"\",\"\",COUNTA($B$3:B251))","v":""},null,null,null,null,null,null,null,null,null,null,null,null,0]
[{"$f":"IF(B252=\"\",\"\",COUNTA($B$3:B252))","v":""},null,null,null,null,null,null,null,null,null,null,null,null,0]
[{"$f":"IF(B253=\"\",\"\",COUNTA($B$3:B253))","v":""},null,null,null,null,null,null,null,null,null,null,null,null,0]
[{"$f":"IF(B254=\"\",\"\",COUNTA($B$3:B254))","v":""},null,null,null,null,null,null,null,null,null,null,null,null,0]
[{"$f":"IF(B255=\"\",\"\",COUNTA($B$3:B255))","v":""},null,null,null,null,null,null,null,null,null,null,null,null,0]
[{"$f":"IF(B256=\"\",\"\",COUNTA($B$3:B256))","v":""},null,null,null,null,null,null,null,null,null,null,null,null,0]
[{"$f":"IF(B257=\"\",\"\",COUNTA($B$3:B257))","v":""},null,null,null,null,null,null,null,null,null,null,null,null,0]
[{"$f":"IF(B258=\"\",\"\",COUNTA($B$3:B258))","v":""},null,null,null,null,null,null,null,null,null,null,null,null,0]
[{"$f":"IF(B259=\"\",\"\",COUNTA($B$3:B259))","v":""},null,null,null,null,null,null,null,null,null,null,null,null,0]
[{"$f":"IF(B260=\"\",\"\",COUNTA($B$3:B260))","v":""},null,null,null,null,null,null,null,null,null,null,null,null,{"$f":"M260-(L260*J260)","v":0}]
[{"$f":"IF(B261=\"\",\"\",COUNTA($B$3:B261))","v":""},null,null,null,null,null,null,null,null,null,null,null,null,0]
[{"$f":"IF(B262=\"\",\"\",COUNTA($B$3:B262))","v":""},null,null,null,null,null,null,null,null,null,null,null,null,0]
[{"$f":"IF(B263=\"\",\"\",COUNTA($B$3:B263))","v":""},null,null,null,null,null,null,null,null,null,null,null,null,0]
[{"$f":"IF(B264=\"\",\"\",COUNTA($B$3:B264))","v":""},null,null,null,null,null,null,null,null,null,null,null,null,0]
[{"$f":"IF(B265=\"\",\"\",COUNTA($B$3:B265))","v":""},null,null,null,null,null,null,null,null,null,null,null,null,0]
[{"$f":"IF(B266=\"\",\"\",COUNTA($B$3:B266))","v":""},null,null,null,null,null,null,null,null,null,null,null,null,0]
[{"$f":"IF(B267=\"\",\"\",COUNTA($B$3:B267))","v":""},null,null,null,null,null,null,null,null,null,null,null,null,0]
[{"$f":"IF(B268=\"\",\"\",COUNTA($B$3:B268))","v":""},null,null,null,null,null,null,null,null,null,null,null,null,0]
[{"$f":"IF(B269=\"\",\"\",COUNTA($B$3:B269))","v":""},null,null,null,null,null,null,null,null,null,null,null,null,0]
[{"$f":"IF(B270=\"\",\"\",COUNTA($B$3:B270))","v":""},null,null,null,null,null,null,null,null,null,null,null,null,0]
[{"$f":"IF(B271=\"\",\"\",COUNTA($B$3:B271))","v":""},null,null,null,null,null,null,null,null,null,null,null,null,0]
[{"$f":"IF(B272=\"\",\"\",COUNTA($B$3:B272))","v":""},null,null,null,null,null,null,null,null,null,null,null,null,0]
[{"$f":"IF(B273=\"\",\"\",COUNTA($B$3:B273))","v":""},null,null,null,null,null,null,null,null,null,null,null,null,0]
[{"$f":"IF(B274=\"\",\"\",COUNTA($B$3:B274))","v":""},null,null,null,null,null,null,null,null,null,null,null,null,0]
[{"$f":"IF(B275=\"\",\"\",COUNTA($B$3:B275))","v":""},null,null,null,null,null,null,null,null,null,null,null,null,0]
[{"$f":"IF(B276=\"\",\"\",COUNTA($B$3:B276))","v":""},null,null,null,null,null,null,null,null,null,null,null,null,0]
[{"$f":"IF(B277=\"\",\"\",COUNTA($B$3:B277))","v":""},null,null,null,null,null,null,null,null,null,null,null,null,0]
[{"$f":"IF(B278=\"\",\"\",COUNTA($B$3:B278))","v":""},null,null,null,null,null,null,null,null,null,null,null,null,0]
[{"$f":"IF(B279=\"\",\"\",COUNTA($B$3:B279))","v":""},null,null,null,null,null,null,null,null,null,null,null,null,0]
[{"$f":"IF(B280=\"\",\"\",COUNTA($B$3:B280))","v":""},null,null,null,null,null,null,null,null,null,null,null,null,0]
[null,null,null,null,null,null,null,null,null,null,null,null,null,0]
[null,null,null,null,null,null,null,null,null,null,null,null,null,0]
[null,null,null,null,null,null,null,null,null,null,null,null,null,0]
[null,null,null,null,null,null,null,null,null,null,null,null,null,0]
[null,null,null,null,null,null,null,null,null,null,null,null,null,0]
[null,null,null,null,null,null,null,null,null,null,null,null,null,0]
[null,null,null,null,null,null,null,null,null,null,null,null,null,0]
[null,null,null,null,null,null,null,null,null,null,null,null,null,0]
[null,null,null,null,null,null,null,null,null,null,null,null,null,0]
[null,null,null,null,null,null,null,null,null,null,null,null,null,0]
[null,null,null,null,null,null,null,null,null,null,null,null,null,0]
[null,null,null,null,null,null,null,null,null,null,null,null,null,0]
[null,null,null,null,null,null,null,null,null,null,null,null,null,0]
[null,null,null,null,null,null,null,null,null,null,null,null,null,0]
[null,null,null,null,null,null,null,null,null,null,null,null,null,0]
[null,null,null,null,null,null,null,null,null,null,null,null,null,0]
[null,null,null,null,null,null,null,null,null,null,null,null,null,0]
[null,null,null,null,null,null,null,null,null,null,null,null,null,0]
[null,null,null,null,null,null,null,null,null,null,null,null,null,0]
[null,null,null,null,null,null,null,null,null,null,null,null,null,0]
[null,null,null,null,null,null,null,null,null,null,null,null,null,0]
[null,null,null,null,null,null,null,null,null,null,null,null,null,0]
[null,null,null,null,null,null,null,null,null,null,null,null,null,0]
[null,null,null,null,null,null,null,null,null,null,null,null,null,0]
[null,null,null,null,null,null,null,null,null,null,null,null,null,0]
[null,null,null,null,null,null,null,null,null,null,null,null,null,0]
[null,null,null,null,null,null,null,null,null,null,null,null,null,0]
[null,null,null,null,null,null,null,null,null,null,null,null,null,0]
[null,null,null,null,null,null,null,null,null,null,null,null,null,0]
[null,null,null,null,null,null,null,null,null,null,null,null,null,0]
[null,null,null,null,null,null,null,null,null,null,null,null,null,0]
[null,null,null,null,null,null,null,null,null,null,null,null,null,0]
[null,null,null,null,null,null,null,null,null,null,null,null,null,0]
[null,null,null,null,null,null,null,null,null,null,null,null,null,0]
[null,null,null,null,null,null,null,null,null,null,null,null,null,0]
[null,null,null,null,null,null,null,null,null,null,null,null,null,0]
[null,null,null,null,null,null,null,null,null,null,null,null,null,0]
[null,null,null,null,null,null,null,null,null,null,null,null,null,0]
[null,null,null,null,null,null,null,null,null,null,null,null,null,0]
[null,null,null,null,null,null,null,null,null,null,null,null,null,0]
[null,null,null,null,null,null,null,null,null,null,null,null,null,0]
[null,null,null,null,null,null,null,null,null,null,null,null,null,0]
[null,null,null,null,null,null,null,null,null,null,null,null,null,0]
[null,null,null,null,null,null,null,null,null,null,null,null,null,{"$f":"M324-(L324*J324)","v":0}]
[null,null,null,null,null,null,null,null,null,null,null,null,null,0]
[null,null,null,null,null,null,null,null,null,null,null,null,null,0]
[null,null,null,null,null,null,null,null,null,null,null,null,null,0]
[null,null,null,null,null,null,null,null,null,null,null,null,null,0]
[null,null,null,null,null,null,null,null,null,null,null,null,null,0]
[null,null,null,null,null,null,null,null,null,null,null,null,null,0]
[null,null,null,null,null,null,null,null,null,null,null,null,null,0]
[null,null,null,null,null,null,null,null,null,null,null,null,null,0]
[null,null,null,null,null,null,null,null,null,null,null,null,null,0]
[null,null,null,null,null,null,null,null,null,null,null,null,null,0]
[null,null,null,null,null,null,null,null,null,null,null,null,null,0]
[null,null,null,null,null,null,null,null,null,null,null,null,null,0]
[null,null,null,null,null,null,null,null,null,null,null,null,null,0]
[null,null,null,null,null,null,null,null,null,null,null,null,null,0]
[null,null,null,null,null,null,null,null,null,null,null,null,null,0]
[null,null,null,null,null,null,null,null,null,null,null,null,null,0]
[null,null,null,null,null,null,null,null,null,null,null,null,null,0]
[null,null,null,null,null,null,null,null,null,null,null,null,null,0]
[null,null,null,null,null,null,null,null,null,null,null,null,null,0]
[null,null,null,null,null,null,null,null,null,null,null,null,null,0]
[null,null,null,null,null,null,null,null,null,null,null,null,null,0]
[null,null,null,null,null,null,null,null,null,null,null,null,null,0]
[null,null,null,null,null,null,null,null,null,null,null,null,null,0]
[null,null,null,null,null,null,null,null,null,null,null,null,null,0]
[null,null,null,null,null,null,null,null,null,null,null,null,null,0]
[null,null,null,null,null,null,null,null,null,null,null,null,null,0]
[null,null,null,null,null,null,null,null,null,null,null,null,null,0]
[null,null,null,null,null,null,null,null,null,null,null,null,null,0]
[null,null,null,null,null,null,null,null,null,null,null,null,null,0]
[null,null,null,null,null,null,null,null,null,null,null,null,null,0]
[null,null,null,null,null,null,null,null,null,null,null,null,null,0]
[null,null,null,null,null,null,null,null,null,null,null,null,null,0]
[null,null,null,null,null,null,null,null,null,null,null,null,null,0]
[null,null,null,null,null,null,null,null,null,null,null,null,null,0]
[null,null,null,null,null,null,null,null,null,null,null,null,null,0]
[null,null,null,null,null,null,null,null,null,null,null,null,null,0]
[null,null,null,null,null,null,null,null,null,null,null,null,null,0]
[null,null,null,null,null,null,null,null,null,null,null,null,null,0]
[null,null,null,null,null,null,null,null,null,null,null,null,null,0]
[null,null,null,null,null,null,null,null,null,null,null,null,null,0]
[null,null,null,null,null,null,null,null,null,null,null,null,null,0]
[null,null,null,null,null,null,null,null,null,null,null,null,null,0]
[null,null,null,null,null,null,null,null,null,null,null,null,null,0]
[null,null,null,null,null,null,null,null,null,null,null,null,null,0]
[null,null,null,null,null,null,null,null,null,null,null,null,null,0]
[null,null,null,null,null,null,null,null,null,null,null,null,null,0]
[null,null,null,null,null,null,null,null,null,null,null,null,null,0]
[null,null,null,null,null,null,null,null,null,null,null,null,null,0]
[null,null,null,null,null,null,null,null,null,null,null,null,null,0]
[null,null,null,null,null,null,null,null,null,null,null,null,null,0]
[null,null,null,null,null,null,null,null,null,null,null,null,null,0]
[null,null,null,null,null,null,null,null,null,null,null,null,null,0]
[null,null,null,null,null,null,null,null,null,null,null,null,null,0]
[null,null,null,null,null,null,null,null,null,null,null,null,null,0]
[null,null,null,null,null,null,null,null,null,null,null,null,null,0]
[null,null,null,null,null,null,null,null,null,null,null,null,null,0]
[null,null,null,null,null,null,null,null,null,null,null,null,null,0]
[null,null,null,null,null,null,null,null,null,null,null,null,null,0]
[null,null,null,null,null,null,null,null,null,null,null,null,null,0]
[null,null,null,null,null,null,null,null,null,null,null,null,null,0]
[null,null,null,null,null,null,null,null,null,null,null,null,null,0]

{"sheet":"عمرة شعبان","index":2,"n_rows":385,"n_cols":17,"rows_kept":385,"cut":false,"hidden":false,"merged":[[0,1,0,13]]}
[null,"البيانات الأساسية للسادة الحجاج والمعتمرين",null,null,null,null,null,null,null,null,null,null,null,null,null,"الاسم","رقم الصف"]
["م","الرقم القومى","اسم الحاج","الجنسية","رقم جواز السفر","رقم بطاقة الإقامة","تاريخ انتهاء الإقامة","تليفون خاص بالحاج","إسم الفندق","تكلفة الحج أو العمرة","رسوم الحج أوالعمرة","عدد المرافقين","إجمالى المبلغ","ربح / خسارة",null,"محمد أحمد سعيد",{"$f":"MATCH(P2,C:C,0)","v":3}]
[{"$f":"IF(B3=\"\",\"\",COUNTA($B$3:B3))","v":1},32211165221,"محمد أحمد سعيد","مصري",123,222222,"2025-12-14",1010256320,null,null,80000,3,null,{"$f":"M3-(L3*J3)","v":0}]
[{"$f":"IF(B4=\"\",\"\",COUNTA($B$3:B4))","v":2},269092272800665,"نعمة أدم حسن عقيد","مصري","A36900868",6118251827,"2024-06-06",1017181537,null,null,18000,1,null,{"$f":"M4-(L4*J4)","v":0}]
[{"$f":"IF(B5=\"\",\"\",COUNTA($B$3:B5))","v":""},null,null,null,null,null,null,null,null,null,null,null,null,0]
[{"$f":"IF(B6=\"\",\"\",COUNTA($B$3:B6))","v":""},null,null,null,null,null,null,null,null,null,null,null,null,0]
[{"$f":"IF(B7=\"\",\"\",COUNTA($B$3:B7))","v":""},null,null,null,null,null,null,null,null,null,null,null,null,0]
[{"$f":"IF(B8=\"\",\"\",COUNTA($B$3:B8))","v":""},null,null,null,null,null,null,null,null,null,null,null,null,0]
[{"$f":"IF(B9=\"\",\"\",COUNTA($B$3:B9))","v":""},null,null,null,null,null,null,null,null,null,null,null,null,0]
[{"$f":"IF(B10=\"\",\"\",COUNTA($B$3:B10))","v":""},null,null,null,null,null,null,null,null,null,null,null,null,0]
[{"$f":"IF(B11=\"\",\"\",COUNTA($B$3:B11))","v":""},null,null,null,null,null,null,null,null,null,null,null,null,0]
[{"$f":"IF(B12=\"\",\"\",COUNTA($B$3:B12))","v":""},null,null,null,null,null,null,null,null,null,null,null,null,0]
[{"$f":"IF(B13=\"\",\"\",COUNTA($B$3:B13))","v":""},null,null,null,null,null,null,null,null,null,null,null,null,0]
[{"$f":"IF(B14=\"\",\"\",COUNTA($B$3:B14))","v":""},null,null,null,null,null,null,null,null,null,null,null,null,0]
[{"$f":"IF(B15=\"\",\"\",COUNTA($B$3:B15))","v":""},null,null,null,null,null,null,null,null,null,null,null,null,0]
[{"$f":"IF(B16=\"\",\"\",COUNTA($B$3:B16))","v":""},null,null,null,null,null,null,null,null,null,null,null,null,0]
[{"$f":"IF(B17=\"\",\"\",COUNTA($B$3:B17))","v":""},null,null,null,null,null,null,null,null,null,null,null,null,0]
[{"$f":"IF(B18=\"\",\"\",COUNTA($B$3:B18))","v":""},null,null,null,null,null,null,null,null,null,null,null,null,0]
[{"$f":"IF(B19=\"\",\"\",COUNTA($B$3:B19))","v":""},null,null,null,null,null,null,null,null,null,null,null,null,0]
[{"$f":"IF(B20=\"\",\"\",COUNTA($B$3:B20))","v":""},null,null,null,null,null,null,null,null,null,null,null,null,0]
[{"$f":"IF(B21=\"\",\"\",COUNTA($B$3:B21))","v":""},null,null,null,null,null,null,null,null,null,null,null,null,0]
[{"$f":"IF(B22=\"\",\"\",COUNTA($B$3:B22))","v":""},null,null,null,null,null,null,null,null,null,null,null,null,0]
[{"$f":"IF(B23=\"\",\"\",COUNTA($B$3:B23))","v":""},null,null,null,null,null,null,null,null,null,null,null,null,0]
[{"$f":"IF(B24=\"\",\"\",COUNTA($B$3:B24))","v":""},null,null,null,null,null,null,null,null,null,null,null,null,0]
[{"$f":"IF(B25=\"\",\"\",COUNTA($B$3:B25))","v":""},null,null,null,null,null,null,null,null,null,null,null,null,0]
[{"$f":"IF(B26=\"\",\"\",COUNTA($B$3:B26))","v":""},null,null,null,null,null,null,null,null,null,null,null,null,0]
[{"$f":"IF(B27=\"\",\"\",COUNTA($B$3:B27))","v":""},null,null,null,null,null,null,null,null,null,null,null,null,0]
[{"$f":"IF(B28=\"\",\"\",COUNTA($B$3:B28))","v":""},null,null,null,null,null,null,null,null,null,null,null,null,0]
[{"$f":"IF(B29=\"\",\"\",COUNTA($B$3:B29))","v":""},null,null,null,null,null,null,null,null,null,null,null,null,0]
[{"$f":"IF(B30=\"\",\"\",COUNTA($B$3:B30))","v":""},null,null,null,null,null,null,null,null,null,null,null,null,0]
[{"$f":"IF(B31=\"\",\"\",COUNTA($B$3:B31))","v":""},null,null,null,null,null,null,null,null,null,null,null,null,0]
[{"$f":"IF(B32=\"\",\"\",COUNTA($B$3:B32))","v":""},null,null,null,null,null,null,null,null,null,null,null,null,0]
[{"$f":"IF(B33=\"\",\"\",COUNTA($B$3:B33))","v":""},null,null,null,null,null,null,null,null,null,null,null,null,0]
[{"$f":"IF(B34=\"\",\"\",COUNTA($B$3:B34))","v":""},null,null,null,null,null,null,null,null,null,null,null,null,0]
[{"$f":"IF(B35=\"\",\"\",COUNTA($B$3:B35))","v":""},null,null,null,null,null,null,null,null,null,null,null,null,0]
[{"$f":"IF(B36=\"\",\"\",COUNTA($B$3:B36))","v":""},null,null,null,null,null,null,null,null,null,null,null,null,0]
[{"$f":"IF(B37=\"\",\"\",COUNTA($B$3:B37))","v":""},null,null,null,null,null,null,null,null,null,null,null,null,0]
[{"$f":"IF(B38=\"\",\"\",COUNTA($B$3:B38))","v":""},null,null,null,null,null,null,null,null,null,null,null,null,0]
[{"$f":"IF(B39=\"\",\"\",COUNTA($B$3:B39))","v":""},null,null,null,null,null,null,null,null,null,null,null,null,0]
[{"$f":"IF(B40=\"\",\"\",COUNTA($B$3:B40))","v":""},null,null,null,null,null,null,null,null,null,null,null,null,0]
[{"$f":"IF(B41=\"\",\"\",COUNTA($B$3:B41))","v":""},null,null,null,null,null,null,null,null,null,null,null,null,0]
[{"$f":"IF(B42=\"\",\"\",COUNTA($B$3:B42))","v":""},null,null,null,null,null,null,null,null,null,null,null,null,0]
[{"$f":"IF(B43=\"\",\"\",COUNTA($B$3:B43))","v":""},null,null,null,null,null,null,null,null,null,null,null,null,0]
[{"$f":"IF(B44=\"\",\"\",COUNTA($B$3:B44))","v":""},null,null,null,null,null,null,null,null,null,null,null,null,0]
[{"$f":"IF(B45=\"\",\"\",COUNTA($B$3:B45))","v":""},null,null,null,null,null,null,null,null,null,null,null,null,0]
[{"$f":"IF(B46=\"\",\"\",COUNTA($B$3:B46))","v":""},null,null,null,null,null,null,null,null,null,null,null,null,0]
[{"$f":"IF(B47=\"\",\"\",COUNTA($B$3:B47))","v":""},null,null,null,null,null,null,null,null,null,null,null,null,0]
[{"$f":"IF(B48=\"\",\"\",COUNTA($B$3:B48))","v":""},null,null,null,null,null,null,null,null,null,null,null,null,0]
[{"$f":"IF(B49=\"\",\"\",COUNTA($B$3:B49))","v":""},null,null,null,null,null,null,null,null,null,null,null,null,0]
[{"$f":"IF(B50=\"\",\"\",COUNTA($B$3:B50))","v":""},null,null,null,null,null,null,null,null,null,null,null,null,0]
[{"$f":"IF(B51=\"\",\"\",COUNTA($B$3:B51))","v":""},null,null,null,null,null,null,null,null,null,null,null,null,0]
[{"$f":"IF(B52=\"\",\"\",COUNTA($B$3:B52))","v":""},null,null,null,null,null,null,null,null,null,null,null,null,0]
[{"$f":"IF(B53=\"\",\"\",COUNTA($B$3:B53))","v":""},null,null,null,null,null,null,null,null,null,null,null,null,0]
[{"$f":"IF(B54=\"\",\"\",COUNTA($B$3:B54))","v":""},null,null,null,null,null,null,null,null,null,null,null,null,0]
[{"$f":"IF(B55=\"\",\"\",COUNTA($B$3:B55))","v":""},null,null,null,null,null,null,null,null,null,null,null,null,0]
[{"$f":"IF(B56=\"\",\"\",COUNTA($B$3:B56))","v":""},null,null,null,null,null,null,null,null,null,null,null,null,0]
[{"$f":"IF(B57=\"\",\"\",COUNTA($B$3:B57))","v":""},null,null,null,null,null,null,null,null,null,null,null,null,0]
[{"$f":"IF(B58=\"\",\"\",COUNTA($B$3:B58))","v":""},null,null,null,null,null,null,null,null,null,null,null,null,0]
[{"$f":"IF(B59=\"\",\"\",COUNTA($B$3:B59))","v":""},null,null,null,null,null,null,null,null,null,null,null,null,0]
[{"$f":"IF(B60=\"\",\"\",COUNTA($B$3:B60))","v":""},null,null,null,null,null,null,null,null,null,null,null,null,0]
[{"$f":"IF(B61=\"\",\"\",COUNTA($B$3:B61))","v":""},null,null,null,null,null,null,null,null,null,null,null,null,0]
[{"$f":"IF(B62=\"\",\"\",COUNTA($B$3:B62))","v":""},null,null,null,null,null,null,null,null,null,null,null,null,0]
[{"$f":"IF(B63=\"\",\"\",COUNTA($B$3:B63))","v":""},null,null,null,null,null,null,null,null,null,null,null,null,0]
[{"$f":"IF(B64=\"\",\"\",COUNTA($B$3:B64))","v":""},null,null,null,null,null,null,null,null,null,null,null,null,0]
[{"$f":"IF(B65=\"\",\"\",COUNTA($B$3:B65))","v":""},null,null,null,null,null,null,null,null,null,null,null,null,0]
[{"$f":"IF(B66=\"\",\"\",COUNTA($B$3:B66))","v":""},null,null,null,null,null,null,null,null,null,null,null,null,0]
[{"$f":"IF(B67=\"\",\"\",COUNTA($B$3:B67))","v":""},null,null,null,null,null,null,null,null,null,null,null,null,0]
[{"$f":"IF(B68=\"\",\"\",COUNTA($B$3:B68))","v":""},null,null,null,null,null,null,null,null,null,null,null,null,{"$f":"M68-(L68*J68)","v":0}]
[{"$f":"IF(B69=\"\",\"\",COUNTA($B$3:B69))","v":""},null,null,null,null,null,null,null,null,null,null,null,null,0]
[{"$f":"IF(B70=\"\",\"\",COUNTA($B$3:B70))","v":""},null,null,null,null,null,null,null,null,null,null,null,null,0]
[{"$f":"IF(B71=\"\",\"\",COUNTA($B$3:B71))","v":""},null,null,null,null,null,null,null,null,null,null,null,null,0]
[{"$f":"IF(B72=\"\",\"\",COUNTA($B$3:B72))","v":""},null,null,null,null,null,null,null,null,null,null,null,null,0]
[{"$f":"IF(B73=\"\",\"\",COUNTA($B$3:B73))","v":""},null,null,null,null,null,null,null,null,null,null,null,null,0]
[{"$f":"IF(B74=\"\",\"\",COUNTA($B$3:B74))","v":""},null,null,null,null,null,null,null,null,null,null,null,null,0]
[{"$f":"IF(B75=\"\",\"\",COUNTA($B$3:B75))","v":""},null,null,null,null,null,null,null,null,null,null,null,null,0]
[{"$f":"IF(B76=\"\",\"\",COUNTA($B$3:B76))","v":""},null,null,null,null,null,null,null,null,null,null,null,null,0]
[{"$f":"IF(B77=\"\",\"\",COUNTA($B$3:B77))","v":""},null,null,null,null,null,null,null,null,null,null,null,null,0]
[{"$f":"IF(B78=\"\",\"\",COUNTA($B$3:B78))","v":""},null,null,null,null,null,null,null,null,null,null,null,null,0]
[{"$f":"IF(B79=\"\",\"\",COUNTA($B$3:B79))","v":""},null,null,null,null,null,null,null,null,null,null,null,null,0]
[{"$f":"IF(B80=\"\",\"\",COUNTA($B$3:B80))","v":""},null,null,null,null,null,null,null,null,null,null,null,null,0]
[{"$f":"IF(B81=\"\",\"\",COUNTA($B$3:B81))","v":""},null,null,null,null,null,null,null,null,null,null,null,null,0]
[{"$f":"IF(B82=\"\",\"\",COUNTA($B$3:B82))","v":""},null,null,null,null,null,null,null,null,null,null,null,null,0]
[{"$f":"IF(B83=\"\",\"\",COUNTA($B$3:B83))","v":""},null,null,null,null,null,null,null,null,null,null,null,null,0]
[{"$f":"IF(B84=\"\",\"\",COUNTA($B$3:B84))","v":""},null,null,null,null,null,null,null,null,null,null,null,null,0]
[{"$f":"IF(B85=\"\",\"\",COUNTA($B$3:B85))","v":""},null,null,null,null,null,null,null,null,null,null,null,null,0]
[{"$f":"IF(B86=\"\",\"\",COUNTA($B$3:B86))","v":""},null,null,null,null,null,null,null,null,null,null,null,null,0]
[{"$f":"IF(B87=\"\",\"\",COUNTA($B$3:B87))","v":""},null,null,null,null,null,null,null,null,null,null,null,null,0]
[{"$f":"IF(B88=\"\",\"\",COUNTA($B$3:B88))","v":""},null,null,null,null,null,null,null,null,null,null,null,null,0]
[{"$f":"IF(B89=\"\",\"\",COUNTA($B$3:B89))","v":""},null,null,null,null,null,null,null,null,null,null,null,null,0]
[{"$f":"IF(B90=\"\",\"\",COUNTA($B$3:B90))","v":""},null,null,null,null,null,null,null,null,null,null,null,null,0]
[{"$f":"IF(B91=\"\",\"\",COUNTA($B$3:B91))","v":""},null,null,null,null,null,null,null,null,null,null,null,null,0]
[{"$f":"IF(B92=\"\",\"\",COUNTA($B$3:B92))","v":""},null,null,null,null,null,null,null,null,null,null,null,null,0]
[{"$f":"IF(B93=\"\",\"\",COUNTA($B$3:B93))","v":""},null,null,null,null,null,null,null,null,null,null,null,null,0]
[{"$f":"IF(B94=\"\",\"\",COUNTA($B$3:B94))","v":""},null,null,null,null,null,null,null,null,null,null,null,null,0]
[{"$f":"IF(B95=\"\",\"\",COUNTA($B$3:B95))","v":""},null,null,null,null,null,null,null,null,null,null,null,null,0]
[{"$f":"IF(B96=\"\",\"\",COUNTA($B$3:B96))","v":""},null,null,null,null,null,null,null,null,null,null,null,null,0]
[{"$f":"IF(B97=\"\",\"\",COUNTA($B$3:B97))","v":""},null,null,null,null,null,null,null,null,null,null,null,null,0]
[{"$f":"IF(B98=\"\",\"\",COUNTA($B$3:B98))","v":""},null,null,null,null,null,null,null,null,null,null,null,null,0]
[{"$f":"IF(B99=\"\",\"\",COUNTA($B$3:B99))","v":""},null,null,null,null,null,null,null,null,null,null,null,null,0]
[{"$f":"IF(B100=\"\",\"\",COUNTA($B$3:B100))","v":""},null,null,null,null,null,null,null,null,null,null,null,null,0]
[{"$f":"IF(B101=\"\",\"\",COUNTA($B$3:B101))","v":""},null,null,null,null,null,null,null,null,null,null,null,null,0]
[{"$f":"IF(B102=\"\",\"\",COUNTA($B$3:B102))","v":""},null,null,null,null,null,null,null,null,null,null,null,null,0]
[{"$f":"IF(B103=\"\",\"\",COUNTA($B$3:B103))","v":""},null,null,null,null,null,null,null,null,null,null,null,null,0]
[{"$f":"IF(B104=\"\",\"\",COUNTA($B$3:B104))","v":""},null,null,null,null,null,null,null,null,null,null,null,null,0]
[{"$f":"IF(B105=\"\",\"\",COUNTA($B$3:B105))","v":""},null,null,null,null,null,null,null,null,null,null,null,null,0]
[{"$f":"IF(B106=\"\",\"\",COUNTA($B$3:B106))","v":""},null,null,null,null,null,null,null,null,null,null,null,null,0]
[{"$f":"IF(B107=\"\",\"\",COUNTA($B$3:B107))","v":""},null,null,null,null,null,null,null,null,null,null,null,null,0]
[{"$f":"IF(B108=\"\",\"\",COUNTA($B$3:B108))","v":""},null,null,null,null,null,null,null,null,null,null,null,null,0]
[{"$f":"IF(B109=\"\",\"\",COUNTA($B$3:B109))","v":""},null,null,null,null,null,null,null,null,null,null,null,null,0]
[{"$f":"IF(B110=\"\",\"\",COUNTA($B$3:B110))","v":""},null,null,null,null,null,null,null,null,null,null,null,null,0]
[{"$f":"IF(B111=\"\",\"\",COUNTA($B$3:B111))","v":""},null,null,null,null,null,null,null,null,null,null,null,null,0]
[{"$f":"IF(B112=\"\",\"\",COUNTA($B$3:B112))","v":""},null,null,null,null,null,null,null,null,null,null,null,null,0]
[{"$f":"IF(B113=\"\",\"\",COUNTA($B$3:B113))","v":""},null,null,null,null,null,null,null,null,null,null,null,null,0]
[{"$f":"IF(B114=\"\",\"\",COUNTA($B$3:B114))","v":""},null,null,null,null,null,null,null,null,null,null,null,null,0]
[{"$f":"IF(B115=\"\",\"\",COUNTA($B$3:B115))","v":""},null,null,null,null,null,null,null,null,null,null,null,null,0]
[{"$f":"IF(B116=\"\",\"\",COUNTA($B$3:B116))","v":""},null,null,null,null,null,null,null,null,null,null,null,null,0]
[{"$f":"IF(B117=\"\",\"\",COUNTA($B$3:B117))","v":""},null,null,null,null,null,null,null,null,null,null,null,null,0]
[{"$f":"IF(B118=\"\",\"\",COUNTA($B$3:B118))","v":""},null,null,null,null,null,null,null,null,null,null,null,null,0]
[{"$f":"IF(B119=\"\",\"\",COUNTA($B$3:B119))","v":""},null,null,null,null,null,null,null,null,null,null,null,null,0]
[{"$f":"IF(B120=\"\",\"\",COUNTA($B$3:B120))","v":""},null,null,null,null,null,null,null,null,null,null,null,null,0]
[{"$f":"IF(B121=\"\",\"\",COUNTA($B$3:B121))","v":""},null,null,null,null,null,null,null,null,null,null,null,null,0]
[{"$f":"IF(B122=\"\",\"\",COUNTA($B$3:B122))","v":""},null,null,null,null,null,null,null,null,null,null,null,null,0]
[{"$f":"IF(B123=\"\",\"\",COUNTA($B$3:B123))","v":""},null,null,null,null,null,null,null,null,null,null,null,null,0]
[{"$f":"IF(B124=\"\",\"\",COUNTA($B$3:B124))","v":""},null,null,null,null,null,null,null,null,null,null,null,null,0]
[{"$f":"IF(B125=\"\",\"\",COUNTA($B$3:B125))","v":""},null,null,null,null,null,null,null,null,null,null,null,null,0]
[{"$f":"IF(B126=\"\",\"\",COUNTA($B$3:B126))","v":""},null,null,null,null,null,null,null,null,null,null,null,null,0]
[{"$f":"IF(B127=\"\",\"\",COUNTA($B$3:B127))","v":""},null,null,null,null,null,null,null,null,null,null,null,null,0]
[{"$f":"IF(B128=\"\",\"\",COUNTA($B$3:B128))","v":""},null,null,null,null,null,null,null,null,null,null,null,null,0]
[{"$f":"IF(B129=\"\",\"\",COUNTA($B$3:B129))","v":""},null,null,null,null,null,null,null,null,null,null,null,null,0]
[{"$f":"IF(B130=\"\",\"\",COUNTA($B$3:B130))","v":""},null,null,null,null,null,null,null,null,null,null,null,null,0]
[{"$f":"IF(B131=\"\",\"\",COUNTA($B$3:B131))","v":""},null,null,null,null,null,null,null,null,null,null,null,null,0]
[{"$f":"IF(B132=\"\",\"\",COUNTA($B$3:B132))","v":""},null,null,null,null,null,null,null,null,null,null,null,null,{"$f":"M132-(L132*J132)","v":0}]
[{"$f":"IF(B133=\"\",\"\",COUNTA($B$3:B133))","v":""},null,null,null,null,null,null,null,null,null,null,null,null,0]
[{"$f":"IF(B134=\"\",\"\",COUNTA($B$3:B134))","v":""},null,null,null,null,null,null,null,null,null,null,null,null,0]
[{"$f":"IF(B135=\"\",\"\",COUNTA($B$3:B135))","v":""},null,null,null,null,null,null,null,null,null,null,null,null,0]
[{"$f":"IF(B136=\"\",\"\",COUNTA($B$3:B136))","v":""},null,null,null,null,null,null,null,null,null,null,null,null,0]
[{"$f":"IF(B137=\"\",\"\",COUNTA($B$3:B137))","v":""},null,null,null,null,null,null,null,null,null,null,null,null,0]
[{"$f":"IF(B138=\"\",\"\",COUNTA($B$3:B138))","v":""},null,null,null,null,null,null,null,null,null,null,null,null,0]
[{"$f":"IF(B139=\"\",\"\",COUNTA($B$3:B139))","v":""},null,null,null,null,null,null,null,null,null,null,null,null,0]
[{"$f":"IF(B140=\"\",\"\",COUNTA($B$3:B140))","v":""},null,null,null,null,null,null,null,null,null,null,null,null,0]
[{"$f":"IF(B141=\"\",\"\",COUNTA($B$3:B141))","v":""},null,null,null,null,null,null,null,null,null,null,null,null,0]
[{"$f":"IF(B142=\"\",\"\",COUNTA($B$3:B142))","v":""},null,null,null,null,null,null,null,null,null,null,null,null,0]
[{"$f":"IF(B143=\"\",\"\",COUNTA($B$3:B143))","v":""},null,null,null,null,null,null,null,null,null,null,null,null,0]
[{"$f":"IF(B144=\"\",\"\",COUNTA($B$3:B144))","v":""},null,null,null,null,null,null,null,null,null,null,null,null,0]
[{"$f":"IF(B145=\"\",\"\",COUNTA($B$3:B145))","v":""},null,null,null,null,null,null,null,null,null,null,null,null,0]
[{"$f":"IF(B146=\"\",\"\",COUNTA($B$3:B146))","v":""},null,null,null,null,null,null,null,null,null,null,null,null,0]
[{"$f":"IF(B147=\"\",\"\",COUNTA($B$3:B147))","v":""},null,null,null,null,null,null,null,null,null,null,null,null,0]
[{"$f":"IF(B148=\"\",\"\",COUNTA($B$3:B148))","v":""},null,null,null,null,null,null,null,null,null,null,null,null,0]
[{"$f":"IF(B149=\"\",\"\",COUNTA($B$3:B149))","v":""},null,null,null,null,null,null,null,null,null,null,null,null,0]
[{"$f":"IF(B150=\"\",\"\",COUNTA($B$3:B150))","v":""},null,null,null,null,null,null,null,null,null,null,null,null,0]
[{"$f":"IF(B151=\"\",\"\",COUNTA($B$3:B151))","v":""},null,null,null,null,null,null,null,null,null,null,null,null,0]
[{"$f":"IF(B152=\"\",\"\",COUNTA($B$3:B152))","v":""},null,null,null,null,null,null,null,null,null,null,null,null,0]
[{"$f":"IF(B153=\"\",\"\",COUNTA($B$3:B153))","v":""},null,null,null,null,null,null,null,null,null,null,null,null,0]
[{"$f":"IF(B154=\"\",\"\",COUNTA($B$3:B154))","v":""},null,null,null,null,null,null,null,null,null,null,null,null,0]
[{"$f":"IF(B155=\"\",\"\",COUNTA($B$3:B155))","v":""},null,null,null,null,null,null,null,null,null,null,null,null,0]
[{"$f":"IF(B156=\"\",\"\",COUNTA($B$3:B156))","v":""},null,null,null,null,null,null,null,null,null,null,null,null,0]
[{"$f":"IF(B157=\"\",\"\",COUNTA($B$3:B157))","v":""},null,null,null,null,null,null,null,null,null,null,null,null,0]
[{"$f":"IF(B158=\"\",\"\",COUNTA($B$3:B158))","v":""},null,null,null,null,null,null,null,null,null,null,null,null,0]
[{"$f":"IF(B159=\"\",\"\",COUNTA($B$3:B159))","v":""},null,null,null,null,null,null,null,null,null,null,null,null,0]
[{"$f":"IF(B160=\"\",\"\",COUNTA($B$3:B160))","v":""},null,null,null,null,null,null,null,null,null,null,null,null,0]
[{"$f":"IF(B161=\"\",\"\",COUNTA($B$3:B161))","v":""},null,null,null,null,null,null,null,null,null,null,null,null,0]
[{"$f":"IF(B162=\"\",\"\",COUNTA($B$3:B162))","v":""},null,null,null,null,null,null,null,null,null,null,null,null,0]
[{"$f":"IF(B163=\"\",\"\",COUNTA($B$3:B163))","v":""},null,null,null,null,null,null,null,null,null,null,null,null,0]
[{"$f":"IF(B164=\"\",\"\",COUNTA($B$3:B164))","v":""},null,null,null,null,null,null,null,null,null,null,null,null,0]
[{"$f":"IF(B165=\"\",\"\",COUNTA($B$3:B165))","v":""},null,null,null,null,null,null,null,null,null,null,null,null,0]
[{"$f":"IF(B166=\"\",\"\",COUNTA($B$3:B166))","v":""},null,null,null,null,null,null,null,null,null,null,null,null,0]
[{"$f":"IF(B167=\"\",\"\",COUNTA($B$3:B167))","v":""},null,null,null,null,null,null,null,null,null,null,null,null,0]
[{"$f":"IF(B168=\"\",\"\",COUNTA($B$3:B168))","v":""},null,null,null,null,null,null,null,null,null,null,null,null,0]
[{"$f":"IF(B169=\"\",\"\",COUNTA($B$3:B169))","v":""},null,null,null,null,null,null,null,null,null,null,null,null,0]
[{"$f":"IF(B170=\"\",\"\",COUNTA($B$3:B170))","v":""},null,null,null,null,null,null,null,null,null,null,null,null,0]
[{"$f":"IF(B171=\"\",\"\",COUNTA($B$3:B171))","v":""},null,null,null,null,null,null,null,null,null,null,null,null,0]
[{"$f":"IF(B172=\"\",\"\",COUNTA($B$3:B172))","v":""},null,null,null,null,null,null,null,null,null,null,null,null,0]
[{"$f":"IF(B173=\"\",\"\",COUNTA($B$3:B173))","v":""},null,null,null,null,null,null,null,null,null,null,null,null,0]
[{"$f":"IF(B174=\"\",\"\",COUNTA($B$3:B174))","v":""},null,null,null,null,null,null,null,null,null,null,null,null,0]
[{"$f":"IF(B175=\"\",\"\",COUNTA($B$3:B175))","v":""},null,null,null,null,null,null,null,null,null,null,null,null,0]
[{"$f":"IF(B176=\"\",\"\",COUNTA($B$3:B176))","v":""},null,null,null,null,null,null,null,null,null,null,null,null,0]
[{"$f":"IF(B177=\"\",\"\",COUNTA($B$3:B177))","v":""},null,null,null,null,null,null,null,null,null,null,null,null,0]
[{"$f":"IF(B178=\"\",\"\",COUNTA($B$3:B178))","v":""},null,null,null,null,null,null,null,null,null,null,null,null,0]
[{"$f":"IF(B179=\"\",\"\",COUNTA($B$3:B179))","v":""},null,null,null,null,null,null,null,null,null,null,null,null,0]
[{"$f":"IF(B180=\"\",\"\",COUNTA($B$3:B180))","v":""},null,null,null,null,null,null,null,null,null,null,null,null,0]
[{"$f":"IF(B181=\"\",\"\",COUNTA($B$3:B181))","v":""},null,null,null,null,null,null,null,null,null,null,null,null,0]
[{"$f":"IF(B182=\"\",\"\",COUNTA($B$3:B182))","v":""},null,null,null,null,null,null,null,null,null,null,null,null,0]
[{"$f":"IF(B183=\"\",\"\",COUNTA($B$3:B183))","v":""},null,null,null,null,null,null,null,null,null,null,null,null,0]
[{"$f":"IF(B184=\"\",\"\",COUNTA($B$3:B184))","v":""},null,null,null,null,null,null,null,null,null,null,null,null,0]
[{"$f":"IF(B185=\"\",\"\",COUNTA($B$3:B185))","v":""},null,null,null,null,null,null,null,null,null,null,null,null,0]
[{"$f":"IF(B186=\"\",\"\",COUNTA($B$3:B186))","v":""},null,null,null,null,null,null,null,null,null,null,null,null,0]
[{"$f":"IF(B187=\"\",\"\",COUNTA($B$3:B187))","v":""},null,null,null,null,null,null,null,null,null,null,null,null,0]
[{"$f":"IF(B188=\"\",\"\",COUNTA($B$3:B188))","v":""},null,null,null,null,null,null,null,null,null,null,null,null,0]
[{"$f":"IF(B189=\"\",\"\",COUNTA($B$3:B189))","v":""},null,null,null,null,null,null,null,null,null,null,null,null,0]
[{"$f":"IF(B190=\"\",\"\",COUNTA($B$3:B190))","v":""},null,null,null,null,null,null,null,null,null,null,null,null,0]
[{"$f":"IF(B191=\"\",\"\",COUNTA($B$3:B191))","v":""},null,null,null,null,null,null,null,null,null,null,null,null,0]
[{"$f":"IF(B192=\"\",\"\",COUNTA($B$3:B192))","v":""},null,null,null,null,null,null,null,null,null,null,null,null,0]
[{"$f":"IF(B193=\"\",\"\",COUNTA($B$3:B193))","v":""},null,null,null,null,null,null,null,null,null,null,null,null,0]
[{"$f":"IF(B194=\"\",\"\",COUNTA($B$3:B194))","v":""},null,null,null,null,null,null,null,null,null,null,null,null,0]
[{"$f":"IF(B195=\"\",\"\",COUNTA($B$3:B195))","v":""},null,null,null,null,null,null,null,null,null,null,null,null,0]
[{"$f":"IF(B196=\"\",\"\",COUNTA($B$3:B196))","v":""},null,null,null,null,null,null,null,null,null,null,null,null,{"$f":"M196-(L196*J196)","v":0}]
[{"$f":"IF(B197=\"\",\"\",COUNTA($B$3:B197))","v":""},null,null,null,null,null,null,null,null,null,null,null,null,0]
[{"$f":"IF(B198=\"\",\"\",COUNTA($B$3:B198))","v":""},null,null,null,null,null,null,null,null,null,null,null,null,0]
[{"$f":"IF(B199=\"\",\"\",COUNTA($B$3:B199))","v":""},null,null,null,null,null,null,null,null,null,null,null,null,0]
[{"$f":"IF(B200=\"\",\"\",COUNTA($B$3:B200))","v":""},null,null,null,null,null,null,null,null,null,null,null,null,0]
[{"$f":"IF(B201=\"\",\"\",COUNTA($B$3:B201))","v":""},null,null,null,null,null,null,null,null,null,null,null,null,0]
[{"$f":"IF(B202=\"\",\"\",COUNTA($B$3:B202))","v":""},null,null,null,null,null,null,null,null,null,null,null,null,0]
[{"$f":"IF(B203=\"\",\"\",COUNTA($B$3:B203))","v":""},null,null,null,null,null,null,null,null,null,null,null,null,0]
[{"$f":"IF(B204=\"\",\"\",COUNTA($B$3:B204))","v":""},null,null,null,null,null,null,null,null,null,null,null,null,0]
[{"$f":"IF(B205=\"\",\"\",COUNTA($B$3:B205))","v":""},null,null,null,null,null,null,null,null,null,null,null,null,0]
[{"$f":"IF(B206=\"\",\"\",COUNTA($B$3:B206))","v":""},null,null,null,null,null,null,null,null,null,null,null,null,0]
[{"$f":"IF(B207=\"\",\"\",COUNTA($B$3:B207))","v":""},null,null,null,null,null,null,null,null,null,null,null,null,0]
[{"$f":"IF(B208=\"\",\"\",COUNTA($B$3:B208))","v":""},null,null,null,null,null,null,null,null,null,null,null,null,0]
[{"$f":"IF(B209=\"\",\"\",COUNTA($B$3:B209))","v":""},null,null,null,null,null,null,null,null,null,null,null,null,0]
[{"$f":"IF(B210=\"\",\"\",COUNTA($B$3:B210))","v":""},null,null,null,null,null,null,null,null,null,null,null,null,0]
[{"$f":"IF(B211=\"\",\"\",COUNTA($B$3:B211))","v":""},null,null,null,null,null,null,null,null,null,null,null,null,0]
[{"$f":"IF(B212=\"\",\"\",COUNTA($B$3:B212))","v":""},null,null,null,null,null,null,null,null,null,null,null,null,0]
[{"$f":"IF(B213=\"\",\"\",COUNTA($B$3:B213))","v":""},null,null,null,null,null,null,null,null,null,null,null,null,0]
[{"$f":"IF(B214=\"\",\"\",COUNTA($B$3:B214))","v":""},null,null,null,null,null,null,null,null,null,null,null,null,0]
[{"$f":"IF(B215=\"\",\"\",COUNTA($B$3:B215))","v":""},null,null,null,null,null,null,null,null,null,null,null,null,0]
[{"$f":"IF(B216=\"\",\"\",COUNTA($B$3:B216))","v":""},null,null,null,null,null,null,null,null,null,null,null,null,0]
[{"$f":"IF(B217=\"\",\"\",COUNTA($B$3:B217))","v":""},null,null,null,null,null,null,null,null,null,null,null,null,0]
[{"$f":"IF(B218=\"\",\"\",COUNTA($B$3:B218))","v":""},null,null,null,null,null,null,null,null,null,null,null,null,0]
[{"$f":"IF(B219=\"\",\"\",COUNTA($B$3:B219))","v":""},null,null,null,null,null,null,null,null,null,null,null,null,0]
[{"$f":"IF(B220=\"\",\"\",COUNTA($B$3:B220))","v":""},null,null,null,null,null,null,null,null,null,null,null,null,0]
[{"$f":"IF(B221=\"\",\"\",COUNTA($B$3:B221))","v":""},null,null,null,null,null,null,null,null,null,null,null,null,0]
[{"$f":"IF(B222=\"\",\"\",COUNTA($B$3:B222))","v":""},null,null,null,null,null,null,null,null,null,null,null,null,0]
[{"$f":"IF(B223=\"\",\"\",COUNTA($B$3:B223))","v":""},null,null,null,null,null,null,null,null,null,null,null,null,0]
[{"$f":"IF(B224=\"\",\"\",COUNTA($B$3:B224))","v":""},null,null,null,null,null,null,null,null,null,null,null,null,0]
[{"$f":"IF(B225=\"\",\"\",COUNTA($B$3:B225))","v":""},null,null,null,null,null,null,null,null,null,null,null,null,0]
[{"$f":"IF(B226=\"\",\"\",COUNTA($B$3:B226))","v":""},null,null,null,null,null,null,null,null,null,null,null,null,0]
[{"$f":"IF(B227=\"\",\"\",COUNTA($B$3:B227))","v":""},null,null,null,null,null,null,null,null,null,null,null,null,0]
[{"$f":"IF(B228=\"\",\"\",COUNTA($B$3:B228))","v":""},null,null,null,null,null,null,null,null,null,null,null,null,0]
[{"$f":"IF(B229=\"\",\"\",COUNTA($B$3:B229))","v":""},null,null,null,null,null,null,null,null,null,null,null,null,0]
[{"$f":"IF(B230=\"\",\"\",COUNTA($B$3:B230))","v":""},null,null,null,null,null,null,null,null,null,null,null,null,0]
[{"$f":"IF(B231=\"\",\"\",COUNTA($B$3:B231))","v":""},null,null,null,null,null,null,null,null,null,null,null,null,0]
[{"$f":"IF(B232=\"\",\"\",COUNTA($B$3:B232))","v":""},null,null,null,null,null,null,null,null,null,null,null,null,0]
[{"$f":"IF(B233=\"\",\"\",COUNTA($B$3:B233))","v":""},null,null,null,null,null,null,null,null,null,null,null,null,0]
[{"$f":"IF(B234=\"\",\"\",COUNTA($B$3:B234))","v":""},null,null,null,null,null,null,null,null,null,null,null,null,0]
[{"$f":"IF(B235=\"\",\"\",COUNTA($B$3:B235))","v":""},null,null,null,null,null,null,null,null,null,null,null,null,0]
[{"$f":"IF(B236=\"\",\"\",COUNTA($B$3:B236))","v":""},null,null,null,null,null,null,null,null,null,null,null,null,0]
[{"$f":"IF(B237=\"\",\"\",COUNTA($B$3:B237))","v":""},null,null,null,null,null,null,null,null,null,null,null,null,0]
[{"$f":"IF(B238=\"\",\"\",COUNTA($B$3:B238))","v":""},null,null,null,null,null,null,null,null,null,null,null,null,0]
[{"$f":"IF(B239=\"\",\"\",COUNTA($B$3:B239))","v":""},null,null,null,null,null,null,null,null,null,null,null,null,0]
[{"$f":"IF(B240=\"\",\"\",COUNTA($B$3:B240))","v":""},null,null,null,null,null,null,null,null,null,null,null,null,0]
[{"$f":"IF(B241=\"\",\"\",COUNTA($B$3:B241))","v":""},null,null,null,null,null,null,null,null,null,null,null,null,0]
[{"$f":"IF(B242=\"\",\"\",COUNTA($B$3:B242))","v":""},null,null,null,null,null,null,null,null,null,null,null,null,0]
[{"$f":"IF(B243=\"\",\"\",COUNTA($B$3:B243))","v":""},null,null,null,null,null,null,null,null,null,null,null,null,0]
[{"$f":"IF(B244=\"\",\"\",COUNTA($B$3:B244))","v":""},null,null,null,null,null,null,null,null,null,null,null,null,0]
[{"$f":"IF(B245=\"\",\"\",COUNTA($B$3:B245))","v":""},null,null,null,null,null,null,null,null,null,null,null,null,0]
[{"$f":"IF(B246=\"\",\"\",COUNTA($B$3:B246))","v":""},null,null,null,null,null,null,null,null,null,null,null,null,0]
[{"$f":"IF(B247=\"\",\"\",COUNTA($B$3:B247))","v":""},null,null,null,null,null,null,null,null,null,null,null,null,0]
[{"$f":"IF(B248=\"\",\"\",COUNTA($B$3:B248))","v":""},null,null,null,null,null,null,null,null,null,null,null,null,0]
[{"$f":"IF(B249=\"\",\"\",COUNTA($B$3:B249))","v":""},null,null,null,null,null,null,null,null,null,null,null,null,0]
[{"$f":"IF(B250=\"\",\"\",COUNTA($B$3:B250))","v":""},null,null,null,null,null,null,null,null,null,null,null,null,0]
[{"$f":"IF(B251=\"\",\"\",COUNTA($B$3:B251))","v":""},null,null,null,null,null,null,null,null,null,null,null,null,0]
[{"$f":"IF(B252=\"\",\"\",COUNTA($B$3:B252))","v":""},null,null,null,null,null,null,null,null,null,null,null,null,0]
[{"$f":"IF(B253=\"\",\"\",COUNTA($B$3:B253))","v":""},null,null,null,null,null,null,null,null,null,null,null,null,0]
[{"$f":"IF(B254=\"\",\"\",COUNTA($B$3:B254))","v":""},null,null,null,null,null,null,null,null,null,null,null,null,0]
[{"$f":"IF(B255=\"\",\"\",COUNTA($B$3:B255))","v":""},null,null,null,null,null,null,null,null,null,null,null,null,0]
[{"$f":"IF(B256=\"\",\"\",COUNTA($B$3:B256))","v":""},null,null,null,null,null,null,null,null,null,null,null,null,0]
[{"$f":"IF(B257=\"\",\"\",COUNTA($B$3:B257))","v":""},null,null,null,null,null,null,null,null,null,null,null,null,0]
[{"$f":"IF(B258=\"\",\"\",COUNTA($B$3:B258))","v":""},null,null,null,null,null,null,null,null,null,null,null,null,0]
[{"$f":"IF(B259=\"\",\"\",COUNTA($B$3:B259))","v":""},null,null,null,null,null,null,null,null,null,null,null,null,0]
[{"$f":"IF(B260=\"\",\"\",COUNTA($B$3:B260))","v":""},null,null,null,null,null,null,null,null,null,null,null,null,{"$f":"M260-(L260*J260)","v":0}]
[{"$f":"IF(B261=\"\",\"\",COUNTA($B$3:B261))","v":""},null,null,null,null,null,null,null,null,null,null,null,null,0]
[{"$f":"IF(B262=\"\",\"\",COUNTA($B$3:B262))","v":""},null,null,null,null,null,null,null,null,null,null,null,null,0]
[{"$f":"IF(B263=\"\",\"\",COUNTA($B$3:B263))","v":""},null,null,null,null,null,null,null,null,null,null,null,null,0]
[{"$f":"IF(B264=\"\",\"\",COUNTA($B$3:B264))","v":""},null,null,null,null,null,null,null,null,null,null,null,null,0]
[{"$f":"IF(B265=\"\",\"\",COUNTA($B$3:B265))","v":""},null,null,null,null,null,null,null,null,null,null,null,null,0]
[{"$f":"IF(B266=\"\",\"\",COUNTA($B$3:B266))","v":""},null,null,null,null,null,null,null,null,null,null,null,null,0]
[{"$f":"IF(B267=\"\",\"\",COUNTA($B$3:B267))","v":""},null,null,null,null,null,null,null,null,null,null,null,null,0]
[{"$f":"IF(B268=\"\",\"\",COUNTA($B$3:B268))","v":""},null,null,null,null,null,null,null,null,null,null,null,null,0]
[{"$f":"IF(B269=\"\",\"\",COUNTA($B$3:B269))","v":""},null,null,null,null,null,null,null,null,null,null,null,null,0]
[{"$f":"IF(B270=\"\",\"\",COUNTA($B$3:B270))","v":""},null,null,null,null,null,null,null,null,null,null,null,null,0]
[{"$f":"IF(B271=\"\",\"\",COUNTA($B$3:B271))","v":""},null,null,null,null,null,null,null,null,null,null,null,null,0]
[{"$f":"IF(B272=\"\",\"\",COUNTA($B$3:B272))","v":""},null,null,null,null,null,null,null,null,null,null,null,null,0]
[{"$f":"IF(B273=\"\",\"\",COUNTA($B$3:B273))","v":""},null,null,null,null,null,null,null,null,null,null,null,null,0]
[{"$f":"IF(B274=\"\",\"\",COUNTA($B$3:B274))","v":""},null,null,null,null,null,null,null,null,null,null,null,null,0]
[{"$f":"IF(B275=\"\",\"\",COUNTA($B$3:B275))","v":""},null,null,null,null,null,null,null,null,null,null,null,null,0]
[{"$f":"IF(B276=\"\",\"\",COUNTA($B$3:B276))","v":""},null,null,null,null,null,null,null,null,null,null,null,null,0]
[{"$f":"IF(B277=\"\",\"\",COUNTA($B$3:B277))","v":""},null,null,null,null,null,null,null,null,null,null,null,null,0]
[{"$f":"IF(B278=\"\",\"\",COUNTA($B$3:B278))","v":""},null,null,null,null,null,null,null,null,null,null,null,null,0]
[{"$f":"IF(B279=\"\",\"\",COUNTA($B$3:B279))","v":""},null,null,null,null,null,null,null,null,null,null,null,null,0]
[{"$f":"IF(B280=\"\",\"\",COUNTA($B$3:B280))","v":""},null,null,null,null,null,null,null,null,null,null,null,null,0]
[null,null,null,null,null,null,null,null,null,null,null,null,null,0]
[null,null,null,null,null,null,null,null,null,null,null,null,null,0]
[null,null,null,null,null,null,null,null,null,null,null,null,null,0]
[null,null,null,null,null,null,null,null,null,null,null,null,null,0]
[null,null,null,null,null,null,null,null,null,null,null,null,null,0]
[null,null,null,null,null,null,null,null,null,null,null,null,null,0]
[null,null,null,null,null,null,null,null,null,null,null,null,null,0]
[null,null,null,null,null,null,null,null,null,null,null,null,null,0]
[null,null,null,null,null,null,null,null,null,null,null,null,null,0]
[null,null,null,null,null,null,null,null,null,null,null,null,null,0]
[null,null,null,null,null,null,null,null,null,null,null,null,null,0]
[null,null,null,null,null,null,null,null,null,null,null,null,null,0]
[null,null,null,null,null,null,null,null,null,null,null,null,null,0]
[null,null,null,null,null,null,null,null,null,null,null,null,null,0]
[null,null,null,null,null,null,null,null,null,null,null,null,null,0]
[null,null,null,null,null,null,null,null,null,null,null,null,null,0]
[null,null,null,null,null,null,null,null,null,null,null,null,null,0]
[null,null,null,null,null,null,null,null,null,null,null,null,null,0]
[null,null,null,null,null,null,null,null,null,null,null,null,null,0]
[null,null,null,null,null,null,null,null,null,null,null,null,null,0]
[null,null,null,null,null,null,null,null,null,null,null,null,null,0]
[null,null,null,null,null,null,null,null,null,null,null,null,null,0]
[null,null,null,null,null,null,null,null,null,null,null,null,null,0]
[null,null,null,null,null,null,null,null,null,null,null,null,null,0]
[null,null,null,null,null,null,null,null,null,null,null,null,null,0]
[null,null,null,null,null,null,null,null,null,null,null,null,null,0]
[null,null,null,null,null,null,null,null,null,null,null,null,null,0]
[null,null,null,null,null,null,null,null,null,null,null,null,null,0]
[null,null,null,null,null,null,null,null,null,null,null,null,null,0]
[null,null,null,null,null,null,null,null,null,null,null,null,null,0]
[null,null,null,null,null,null,null,null,null,null,null,null,null,0]
[null,null,null,null,null,null,null,null,null,null,null,null,null,0]
[null,null,null,null,null,null,null,null,null,null,null,null,null,0]
[null,null,null,null,null,null,null,null,null,null,null,null,null,0]
[null,null,null,null,null,null,null,null,null,null,null,null,null,0]
[null,null,null,null,null,null,null,null,null,null,null,null,null,0]
[null,null,null,null,null,null,null,null,null,null,null,null,null,0]
[null,null,null,null,null,null,null,null,null,null,null,null,null,0]
[null,null,null,null,null,null,null,null,null,null,null,null,null,0]
[null,null,null,null,null,null,null,null,null,null,null,null,null,0]
[null,null,null,null,null,null,null,null,null,null,null,null,null,0]
[null,null,null,null,null,null,null,null,null,null,null,null,null,0]
[null,null,null,null,null,null,null,null,null,null,null,null,null,0]
[null,null,null,null,null,null,null,null,null,null,null,null,null,{"$f":"M324-(L324*J324)","v":0}]
[null,null,null,null,null,null,null,null,null,null,null,null,null,0]
[null,null,null,null,null,null,null,null,null,null,null,null,null,0]
[null,null,null,null,null,null,null,null,null,null,null,null,null,0]
[null,null,null,null,null,null,null,null,null,null,null,null,null,0]
[null,null,null,null,null,null,null,null,null,null,null,null,null,0]
[null,null,null,null,null,null,null,null,null,null,null,null,null,0]
[null,null,null,null,null,null,null,null,null,null,null,null,null,0]
[null,null,null,null,null,null,null,null,null,null,null,null,null,0]
[null,null,null,null,null,null,null,null,null,null,null,null,null,0]
[null,null,null,null,null,null,null,null,null,null,null,null,null,0]
[null,null,null,null,null,null,null,null,null,null,null,null,null,0]
[null,null,null,null,null,null,null,null,null,null,null,null,null,0]
[null,null,null,null,null,null,null,null,null,null,null,null,null,0]
[null,null,null,null,null,null,null,null,null,null,null,null,null,0]
[null,null,null,null,null,null,null,null,null,null,null,null,null,0]
[null,null,null,null,null,null,null,null,null,null,null,null,null,0]
[null,null,null,null,null,null,null,null,null,null,null,null,null,0]
[null,null,null,null,null,null,null,null,null,null,null,null,null,0]
[null,null,null,null,null,null,null,null,null,null,null,null,null,0]
[null,null,null,null,null,null,null,null,null,null,null,null,null,0]
[null,null,null,null,null,null,null,null,null,null,null,null,null,0]
[null,null,null,null,null,null,null,null,null,null,null,null,null,0]
[null,null,null,null,null,null,null,null,null,null,null,null,null,0]
[null,null,null,null,null,null,null,null,null,null,null,null,null,0]
[null,null,null,null,null,null,null,null,null,null,null,null,null,0]
[null,null,null,null,null,null,null,null,null,null,null,null,null,0]
[null,null,null,null,null,null,null,null,null,null,null,null,null,0]
[null,null,null,null,null,null,null,null,null,null,null,null,null,0]
[null,null,null,null,null,null,null,null,null,null,null,null,null,0]
[null,null,null,null,null,null,null,null,null,null,null,null,null,0]
[null,null,null,null,null,null,null,null,null,null,null,null,null,0]
[null,null,null,null,null,null,null,null,null,null,null,null,null,0]
[null,null,null,null,null,null,null,null,null,null,null,null,null,0]
[null,null,null,null,null,null,null,null,null,null,null,null,null,0]
[null,null,null,null,null,null,null,null,null,null,null,null,null,0]
[null,null,null,null,null,null,null,null,null,null,null,null,null,0]
[null,null,null,null,null,null,null,null,null,null,null,null,null,0]
[null,null,null,null,null,null,null,null,null,null,null,null,null,0]
[null,null,null,null,null,null,null,null,null,null,null,null,null,0]
[null,null,null,null,null,null,null,null,null,null,null,null,null,0]
[null,null,null,null,null,null,null,null,null,null,null,null,null,0]
[null,null,null,null,null,null,null,null,null,null,null,null,null,0]
[null,null,null,null,null,null,null,null,null,null,null,null,null,0]
[null,null,null,null,null,null,null,null,null,null,null,null,null,0]
[null,null,null,null,null,null,null,null,null,null,null,null,null,0]
[null,null,null,null,null,null,null,null,null,null,null,null,null,0]
[null,null,null,null,null,null,null,null,null,null,null,null,null,0]
[null,null,null,null,null,null,null,null,null,null,null,null,null,0]
[null,null,null,null,null,null,null,null,null,null,null,null,null,0]
[null,null,null,null,null,null,null,null,null,null,null,null,null,0]
[null,null,null,null,null,null,null,null,null,null,null,null,null,0]
[null,null,null,null,null,null,null,null,null,null,null,null,null,0]
[null,null,null,null,null,null,null,null,null,null,null,null,null,0]
[null,null,null,null,null,null,null,null,null,null,null,null,null,0]
[null,null,null,null,null,null,null,null,null,null,null,null,null,0]
[null,null,null,null,null,null,null,null,null,null,null,null,null,0]
[null,null,null,null,null,null,null,null,null,null,null,null,null,0]
[null,null,null,null,null,null,null,null,null,null,null,null,null,0]
[null,null,null,null,null,null,null,null,null,null,null,null,null,0]
[null,null,null,null,null,null,null,null,null,null,null,null,null,0]
[null,null,null,null,null,null,null,null,null,null,null,null,null,0]

{"sheet":"عمرة رجب","index":3,"n_rows":385,"n_cols":17,"rows_kept":385,"cut":false,"hidden":false,"merged":[[0,1,0,13]]}
[null,"البيانات الأساسية للسادة الحجاج والمعتمرين",null,null,null,null,null,null,null,null,null,null,null,null,null,"الاسم","رقم الصف"]
["م","الرقم القومى","اسم الحاج","الجنسية","رقم جواز السفر","رقم بطاقة الإقامة","تاريخ انتهاء الإقامة","تليفون خاص بالحاج","إسم الفندق","تكلفة الحج أو العمرة","رسوم الحج أوالعمرة","عدد المرافقين","إجمالى المبلغ","ربح / خسارة",null,"محمد أحمد سعيد",{"$f":"MATCH(P2,C:C,0)","v":3}]
[{"$f":"IF(B3=\"\",\"\",COUNTA($B$3:B3))","v":1},32211165221,"محمد أحمد سعيد","مصري",123,222222,"2025-12-14",1010256320,null,null,80000,3,null,{"$f":"M3-(L3*J3)","v":0}]
[{"$f":"IF(B4=\"\",\"\",COUNTA($B$3:B4))","v":2},269092272800665,"نعمة أدم حسن عقيد","مصري","A36900868",6118251827,"2024-06-06",1017181537,null,null,18000,1,null,{"$f":"M4-(L4*J4)","v":0}]
[{"$f":"IF(B5=\"\",\"\",COUNTA($B$3:B5))","v":""},null,null,null,null,null,null,null,null,null,null,null,null,0]
[{"$f":"IF(B6=\"\",\"\",COUNTA($B$3:B6))","v":""},null,null,null,null,null,null,null,null,null,null,null,null,0]
[{"$f":"IF(B7=\"\",\"\",COUNTA($B$3:B7))","v":""},null,null,null,null,null,null,null,null,null,null,null,null,0]
[{"$f":"IF(B8=\"\",\"\",COUNTA($B$3:B8))","v":""},null,null,null,null,null,null,null,null,null,null,null,null,0]
[{"$f":"IF(B9=\"\",\"\",COUNTA($B$3:B9))","v":""},null,null,null,null,null,null,null,null,null,null,null,null,0]
[{"$f":"IF(B10=\"\",\"\",COUNTA($B$3:B10))","v":""},null,null,null,null,null,null,null,null,null,null,null,null,0]
[{"$f":"IF(B11=\"\",\"\",COUNTA($B$3:B11))","v":""},null,null,null,null,null,null,null,null,null,null,null,null,0]
[{"$f":"IF(B12=\"\",\"\",COUNTA($B$3:B12))","v":""},null,null,null,null,null,null,null,null,null,null,null,null,0]
[{"$f":"IF(B13=\"\",\"\",COUNTA($B$3:B13))","v":""},null,null,null,null,null,null,null,null,null,null,null,null,0]
[{"$f":"IF(B14=\"\",\"\",COUNTA($B$3:B14))","v":""},null,null,null,null,null,null,null,null,null,null,null,null,0]
[{"$f":"IF(B15=\"\",\"\",COUNTA($B$3:B15))","v":""},null,null,null,null,null,null,null,null,null,null,null,null,0]
[{"$f":"IF(B16=\"\",\"\",COUNTA($B$3:B16))","v":""},null,null,null,null,null,null,null,null,null,null,null,null,0]
[{"$f":"IF(B17=\"\",\"\",COUNTA($B$3:B17))","v":""},null,null,null,null,null,null,null,null,null,null,null,null,0]
[{"$f":"IF(B18=\"\",\"\",COUNTA($B$3:B18))","v":""},null,null,null,null,null,null,null,null,null,null,null,null,0]
[{"$f":"IF(B19=\"\",\"\",COUNTA($B$3:B19))","v":""},null,null,null,null,null,null,null,null,null,null,null,null,0]
[{"$f":"IF(B20=\"\",\"\",COUNTA($B$3:B20))","v":""},null,null,null,null,null,null,null,null,null,null,null,null,0]
[{"$f":"IF(B21=\"\",\"\",COUNTA($B$3:B21))","v":""},null,null,null,null,null,null,null,null,null,null,null,null,0]
[{"$f":"IF(B22=\"\",\"\",COUNTA($B$3:B22))","v":""},null,null,null,null,null,null,null,null,null,null,null,null,0]
[{"$f":"IF(B23=\"\",\"\",COUNTA($B$3:B23))","v":""},null,null,null,null,null,null,null,null,null,null,null,null,0]
[{"$f":"IF(B24=\"\",\"\",COUNTA($B$3:B24))","v":""},null,null,null,null,null,null,null,null,null,null,null,null,0]
[{"$f":"IF(B25=\"\",\"\",COUNTA($B$3:B25))","v":""},null,null,null,null,null,null,null,null,null,null,null,null,0]
[{"$f":"IF(B26=\"\",\"\",COUNTA($B$3:B26))","v":""},null,null,null,null,null,null,null,null,null,null,null,null,0]
[{"$f":"IF(B27=\"\",\"\",COUNTA($B$3:B27))","v":""},null,null,null,null,null,null,null,null,null,null,null,null,0]
[{"$f":"IF(B28=\"\",\"\",COUNTA($B$3:B28))","v":""},null,null,null,null,null,null,null,null,null,null,null,null,0]
[{"$f":"IF(B29=\"\",\"\",COUNTA($B$3:B29))","v":""},null,null,null,null,null,null,null,null,null,null,null,null,0]
[{"$f":"IF(B30=\"\",\"\",COUNTA($B$3:B30))","v":""},null,null,null,null,null,null,null,null,null,null,null,null,0]
[{"$f":"IF(B31=\"\",\"\",COUNTA($B$3:B31))","v":""},null,null,null,null,null,null,null,null,null,null,null,null,0]
[{"$f":"IF(B32=\"\",\"\",COUNTA($B$3:B32))","v":""},null,null,null,null,null,null,null,null,null,null,null,null,0]
[{"$f":"IF(B33=\"\",\"\",COUNTA($B$3:B33))","v":""},null,null,null,null,null,null,null,null,null,null,null,null,0]
[{"$f":"IF(B34=\"\",\"\",COUNTA($B$3:B34))","v":""},null,null,null,null,null,null,null,null,null,null,null,null,0]
[{"$f":"IF(B35=\"\",\"\",COUNTA($B$3:B35))","v":""},null,null,null,null,null,null,null,null,null,null,null,null,0]
[{"$f":"IF(B36=\"\",\"\",COUNTA($B$3:B36))","v":""},null,null,null,null,null,null,null,null,null,null,null,null,0]
[{"$f":"IF(B37=\"\",\"\",COUNTA($B$3:B37))","v":""},null,null,null,null,null,null,null,null,null,null,null,null,0]
[{"$f":"IF(B38=\"\",\"\",COUNTA($B$3:B38))","v":""},null,null,null,null,null,null,null,null,null,null,null,null,0]
[{"$f":"IF(B39=\"\",\"\",COUNTA($B$3:B39))","v":""},null,null,null,null,null,null,null,null,null,null,null,null,0]
[{"$f":"IF(B40=\"\",\"\",COUNTA($B$3:B40))","v":""},null,null,null,null,null,null,null,null,null,null,null,null,0]
[{"$f":"IF(B41=\"\",\"\",COUNTA($B$3:B41))","v":""},null,null,null,null,null,null,null,null,null,null,null,null,0]
[{"$f":"IF(B42=\"\",\"\",COUNTA($B$3:B42))","v":""},null,null,null,null,null,null,null,null,null,null,null,null,0]
[{"$f":"IF(B43=\"\",\"\",COUNTA($B$3:B43))","v":""},null,null,null,null,null,null,null,null,null,null,null,null,0]
[{"$f":"IF(B44=\"\",\"\",COUNTA($B$3:B44))","v":""},null,null,null,null,null,null,null,null,null,null,null,null,0]
[{"$f":"IF(B45=\"\",\"\",COUNTA($B$3:B45))","v":""},null,null,null,null,null,null,null,null,null,null,null,null,0]
[{"$f":"IF(B46=\"\",\"\",COUNTA($B$3:B46))","v":""},null,null,null,null,null,null,null,null,null,null,null,null,0]
[{"$f":"IF(B47=\"\",\"\",COUNTA($B$3:B47))","v":""},null,null,null,null,null,null,null,null,null,null,null,null,0]
[{"$f":"IF(B48=\"\",\"\",COUNTA($B$3:B48))","v":""},null,null,null,null,null,null,null,null,null,null,null,null,0]
[{"$f":"IF(B49=\"\",\"\",COUNTA($B$3:B49))","v":""},null,null,null,null,null,null,null,null,null,null,null,null,0]
[{"$f":"IF(B50=\"\",\"\",COUNTA($B$3:B50))","v":""},null,null,null,null,null,null,null,null,null,null,null,null,0]
[{"$f":"IF(B51=\"\",\"\",COUNTA($B$3:B51))","v":""},null,null,null,null,null,null,null,null,null,null,null,null,0]
[{"$f":"IF(B52=\"\",\"\",COUNTA($B$3:B52))","v":""},null,null,null,null,null,null,null,null,null,null,null,null,0]
[{"$f":"IF(B53=\"\",\"\",COUNTA($B$3:B53))","v":""},null,null,null,null,null,null,null,null,null,null,null,null,0]
[{"$f":"IF(B54=\"\",\"\",COUNTA($B$3:B54))","v":""},null,null,null,null,null,null,null,null,null,null,null,null,0]
[{"$f":"IF(B55=\"\",\"\",COUNTA($B$3:B55))","v":""},null,null,null,null,null,null,null,null,null,null,null,null,0]
[{"$f":"IF(B56=\"\",\"\",COUNTA($B$3:B56))","v":""},null,null,null,null,null,null,null,null,null,null,null,null,0]
[{"$f":"IF(B57=\"\",\"\",COUNTA($B$3:B57))","v":""},null,null,null,null,null,null,null,null,null,null,null,null,0]
[{"$f":"IF(B58=\"\",\"\",COUNTA($B$3:B58))","v":""},null,null,null,null,null,null,null,null,null,null,null,null,0]
[{"$f":"IF(B59=\"\",\"\",COUNTA($B$3:B59))","v":""},null,null,null,null,null,null,null,null,null,null,null,null,0]
[{"$f":"IF(B60=\"\",\"\",COUNTA($B$3:B60))","v":""},null,null,null,null,null,null,null,null,null,null,null,null,0]
[{"$f":"IF(B61=\"\",\"\",COUNTA($B$3:B61))","v":""},null,null,null,null,null,null,null,null,null,null,null,null,0]
[{"$f":"IF(B62=\"\",\"\",COUNTA($B$3:B62))","v":""},null,null,null,null,null,null,null,null,null,null,null,null,0]
[{"$f":"IF(B63=\"\",\"\",COUNTA($B$3:B63))","v":""},null,null,null,null,null,null,null,null,null,null,null,null,0]
[{"$f":"IF(B64=\"\",\"\",COUNTA($B$3:B64))","v":""},null,null,null,null,null,null,null,null,null,null,null,null,0]
[{"$f":"IF(B65=\"\",\"\",COUNTA($B$3:B65))","v":""},null,null,null,null,null,null,null,null,null,null,null,null,0]
[{"$f":"IF(B66=\"\",\"\",COUNTA($B$3:B66))","v":""},null,null,null,null,null,null,null,null,null,null,null,null,0]
[{"$f":"IF(B67=\"\",\"\",COUNTA($B$3:B67))","v":""},null,null,null,null,null,null,null,null,null,null,null,null,0]
[{"$f":"IF(B68=\"\",\"\",COUNTA($B$3:B68))","v":""},null,null,null,null,null,null,null,null,null,null,null,null,{"$f":"M68-(L68*J68)","v":0}]
[{"$f":"IF(B69=\"\",\"\",COUNTA($B$3:B69))","v":""},null,null,null,null,null,null,null,null,null,null,null,null,0]
[{"$f":"IF(B70=\"\",\"\",COUNTA($B$3:B70))","v":""},null,null,null,null,null,null,null,null,null,null,null,null,0]
[{"$f":"IF(B71=\"\",\"\",COUNTA($B$3:B71))","v":""},null,null,null,null,null,null,null,null,null,null,null,null,0]
[{"$f":"IF(B72=\"\",\"\",COUNTA($B$3:B72))","v":""},null,null,null,null,null,null,null,null,null,null,null,null,0]
[{"$f":"IF(B73=\"\",\"\",COUNTA($B$3:B73))","v":""},null,null,null,null,null,null,null,null,null,null,null,null,0]
[{"$f":"IF(B74=\"\",\"\",COUNTA($B$3:B74))","v":""},null,null,null,null,null,null,null,null,null,null,null,null,0]
[{"$f":"IF(B75=\"\",\"\",COUNTA($B$3:B75))","v":""},null,null,null,null,null,null,null,null,null,null,null,null,0]
[{"$f":"IF(B76=\"\",\"\",COUNTA($B$3:B76))","v":""},null,null,null,null,null,null,null,null,null,null,null,null,0]
[{"$f":"IF(B77=\"\",\"\",COUNTA($B$3:B77))","v":""},null,null,null,null,null,null,null,null,null,null,null,null,0]
[{"$f":"IF(B78=\"\",\"\",COUNTA($B$3:B78))","v":""},null,null,null,null,null,null,null,null,null,null,null,null,0]
[{"$f":"IF(B79=\"\",\"\",COUNTA($B$3:B79))","v":""},null,null,null,null,null,null,null,null,null,null,null,null,0]
[{"$f":"IF(B80=\"\",\"\",COUNTA($B$3:B80))","v":""},null,null,null,null,null,null,null,null,null,null,null,null,0]
[{"$f":"IF(B81=\"\",\"\",COUNTA($B$3:B81))","v":""},null,null,null,null,null,null,null,null,null,null,null,null,0]
[{"$f":"IF(B82=\"\",\"\",COUNTA($B$3:B82))","v":""},null,null,null,null,null,null,null,null,null,null,null,null,0]
[{"$f":"IF(B83=\"\",\"\",COUNTA($B$3:B83))","v":""},null,null,null,null,null,null,null,null,null,null,null,null,0]
[{"$f":"IF(B84=\"\",\"\",COUNTA($B$3:B84))","v":""},null,null,null,null,null,null,null,null,null,null,null,null,0]
[{"$f":"IF(B85=\"\",\"\",COUNTA($B$3:B85))","v":""},null,null,null,null,null,null,null,null,null,null,null,null,0]
[{"$f":"IF(B86=\"\",\"\",COUNTA($B$3:B86))","v":""},null,null,null,null,null,null,null,null,null,null,null,null,0]
[{"$f":"IF(B87=\"\",\"\",COUNTA($B$3:B87))","v":""},null,null,null,null,null,null,null,null,null,null,null,null,0]
[{"$f":"IF(B88=\"\",\"\",COUNTA($B$3:B88))","v":""},null,null,null,null,null,null,null,null,null,null,null,null,0]
[{"$f":"IF(B89=\"\",\"\",COUNTA($B$3:B89))","v":""},null,null,null,null,null,null,null,null,null,null,null,null,0]
[{"$f":"IF(B90=\"\",\"\",COUNTA($B$3:B90))","v":""},null,null,null,null,null,null,null,null,null,null,null,null,0]
[{"$f":"IF(B91=\"\",\"\",COUNTA($B$3:B91))","v":""},null,null,null,null,null,null,null,null,null,null,null,null,0]
[{"$f":"IF(B92=\"\",\"\",COUNTA($B$3:B92))","v":""},null,null,null,null,null,null,null,null,null,null,null,null,0]
[{"$f":"IF(B93=\"\",\"\",COUNTA($B$3:B93))","v":""},null,null,null,null,null,null,null,null,null,null,null,null,0]
[{"$f":"IF(B94=\"\",\"\",COUNTA($B$3:B94))","v":""},null,null,null,null,null,null,null,null,null,null,null,null,0]
[{"$f":"IF(B95=\"\",\"\",COUNTA($B$3:B95))","v":""},null,null,null,null,null,null,null,null,null,null,null,null,0]
[{"$f":"IF(B96=\"\",\"\",COUNTA($B$3:B96))","v":""},null,null,null,null,null,null,null,null,null,null,null,null,0]
[{"$f":"IF(B97=\"\",\"\",COUNTA($B$3:B97))","v":""},null,null,null,null,null,null,null,null,null,null,null,null,0]
[{"$f":"IF(B98=\"\",\"\",COUNTA($B$3:B98))","v":""},null,null,null,null,null,null,null,null,null,null,null,null,0]
[{"$f":"IF(B99=\"\",\"\",COUNTA($B$3:B99))","v":""},null,null,null,null,null,null,null,null,null,null,null,null,0]
[{"$f":"IF(B100=\"\",\"\",COUNTA($B$3:B100))","v":""},null,null,null,null,null,null,null,null,null,null,null,null,0]
[{"$f":"IF(B101=\"\",\"\",COUNTA($B$3:B101))","v":""},null,null,null,null,null,null,null,null,null,null,null,null,0]
[{"$f":"IF(B102=\"\",\"\",COUNTA($B$3:B102))","v":""},null,null,null,null,null,null,null,null,null,null,null,null,0]
[{"$f":"IF(B103=\"\",\"\",COUNTA($B$3:B103))","v":""},null,null,null,null,null,null,null,null,null,null,null,null,0]
[{"$f":"IF(B104=\"\",\"\",COUNTA($B$3:B104))","v":""},null,null,null,null,null,null,null,null,null,null,null,null,0]
[{"$f":"IF(B105=\"\",\"\",COUNTA($B$3:B105))","v":""},null,null,null,null,null,null,null,null,null,null,null,null,0]
[{"$f":"IF(B106=\"\",\"\",COUNTA($B$3:B106))","v":""},null,null,null,null,null,null,null,null,null,null,null,null,0]
[{"$f":"IF(B107=\"\",\"\",COUNTA($B$3:B107))","v":""},null,null,null,null,null,null,null,null,null,null,null,null,0]
[{"$f":"IF(B108=\"\",\"\",COUNTA($B$3:B108))","v":""},null,null,null,null,null,null,null,null,null,null,null,null,0]
[{"$f":"IF(B109=\"\",\"\",COUNTA($B$3:B109))","v":""},null,null,null,null,null,null,null,null,null,null,null,null,0]
[{"$f":"IF(B110=\"\",\"\",COUNTA($B$3:B110))","v":""},null,null,null,null,null,null,null,null,null,null,null,null,0]
[{"$f":"IF(B111=\"\",\"\",COUNTA($B$3:B111))","v":""},null,null,null,null,null,null,null,null,null,null,null,null,0]
[{"$f":"IF(B112=\"\",\"\",COUNTA($B$3:B112))","v":""},null,null,null,null,null,null,null,null,null,null,null,null,0]
[{"$f":"IF(B113=\"\",\"\",COUNTA($B$3:B113))","v":""},null,null,null,null,null,null,null,null,null,null,null,null,0]
[{"$f":"IF(B114=\"\",\"\",COUNTA($B$3:B114))","v":""},null,null,null,null,null,null,null,null,null,null,null,null,0]
[{"$f":"IF(B115=\"\",\"\",COUNTA($B$3:B115))","v":""},null,null,null,null,null,null,null,null,null,null,null,null,0]
[{"$f":"IF(B116=\"\",\"\",COUNTA($B$3:B116))","v":""},null,null,null,null,null,null,null,null,null,null,null,null,0]
[{"$f":"IF(B117=\"\",\"\",COUNTA($B$3:B117))","v":""},null,null,null,null,null,null,null,null,null,null,null,null,0]
[{"$f":"IF(B118=\"\",\"\",COUNTA($B$3:B118))","v":""},null,null,null,null,null,null,null,null,null,null,null,null,0]
[{"$f":"IF(B119=\"\",\"\",COUNTA($B$3:B119))","v":""},null,null,null,null,null,null,null,null,null,null,null,null,0]
[{"$f":"IF(B120=\"\",\"\",COUNTA($B$3:B120))","v":""},null,null,null,null,null,null,null,null,null,null,null,null,0]
[{"$f":"IF(B121=\"\",\"\",COUNTA($B$3:B121))","v":""},null,null,null,null,null,null,null,null,null,null,null,null,0]
[{"$f":"IF(B122=\"\",\"\",COUNTA($B$3:B122))","v":""},null,null,null,null,null,null,null,null,null,null,null,null,0]
[{"$f":"IF(B123=\"\",\"\",COUNTA($B$3:B123))","v":""},null,null,null,null,null,null,null,null,null,null,null,null,0]
[{"$f":"IF(B124=\"\",\"\",COUNTA($B$3:B124))","v":""},null,null,null,null,null,null,null,null,null,null,null,null,0]
[{"$f":"IF(B125=\"\",\"\",COUNTA($B$3:B125))","v":""},null,null,null,null,null,null,null,null,null,null,null,null,0]
[{"$f":"IF(B126=\"\",\"\",COUNTA($B$3:B126))","v":""},null,null,null,null,null,null,null,null,null,null,null,null,0]
[{"$f":"IF(B127=\"\",\"\",COUNTA($B$3:B127))","v":""},null,null,null,null,null,null,null,null,null,null,null,null,0]
[{"$f":"IF(B128=\"\",\"\",COUNTA($B$3:B128))","v":""},null,null,null,null,null,null,null,null,null,null,null,null,0]
[{"$f":"IF(B129=\"\",\"\",COUNTA($B$3:B129))","v":""},null,null,null,null,null,null,null,null,null,null,null,null,0]
[{"$f":"IF(B130=\"\",\"\",COUNTA($B$3:B130))","v":""},null,null,null,null,null,null,null,null,null,null,null,null,0]
[{"$f":"IF(B131=\"\",\"\",COUNTA($B$3:B131))","v":""},null,null,null,null,null,null,null,null,null,null,null,null,0]
[{"$f":"IF(B132=\"\",\"\",COUNTA($B$3:B132))","v":""},null,null,null,null,null,null,null,null,null,null,null,null,{"$f":"M132-(L132*J132)","v":0}]
[{"$f":"IF(B133=\"\",\"\",COUNTA($B$3:B133))","v":""},null,null,null,null,null,null,null,null,null,null,null,null,0]
[{"$f":"IF(B134=\"\",\"\",COUNTA($B$3:B134))","v":""},null,null,null,null,null,null,null,null,null,null,null,null,0]
[{"$f":"IF(B135=\"\",\"\",COUNTA($B$3:B135))","v":""},null,null,null,null,null,null,null,null,null,null,null,null,0]
[{"$f":"IF(B136=\"\",\"\",COUNTA($B$3:B136))","v":""},null,null,null,null,null,null,null,null,null,null,null,null,0]
[{"$f":"IF(B137=\"\",\"\",COUNTA($B$3:B137))","v":""},null,null,null,null,null,null,null,null,null,null,null,null,0]
[{"$f":"IF(B138=\"\",\"\",COUNTA($B$3:B138))","v":""},null,null,null,null,null,null,null,null,null,null,null,null,0]
[{"$f":"IF(B139=\"\",\"\",COUNTA($B$3:B139))","v":""},null,null,null,null,null,null,null,null,null,null,null,null,0]
[{"$f":"IF(B140=\"\",\"\",COUNTA($B$3:B140))","v":""},null,null,null,null,null,null,null,null,null,null,null,null,0]
[{"$f":"IF(B141=\"\",\"\",COUNTA($B$3:B141))","v":""},null,null,null,null,null,null,null,null,null,null,null,null,0]
[{"$f":"IF(B142=\"\",\"\",COUNTA($B$3:B142))","v":""},null,null,null,null,null,null,null,null,null,null,null,null,0]
[{"$f":"IF(B143=\"\",\"\",COUNTA($B$3:B143))","v":""},null,null,null,null,null,null,null,null,null,null,null,null,0]
[{"$f":"IF(B144=\"\",\"\",COUNTA($B$3:B144))","v":""},null,null,null,null,null,null,null,null,null,null,null,null,0]
[{"$f":"IF(B145=\"\",\"\",COUNTA($B$3:B145))","v":""},null,null,null,null,null,null,null,null,null,null,null,null,0]
[{"$f":"IF(B146=\"\",\"\",COUNTA($B$3:B146))","v":""},null,null,null,null,null,null,null,null,null,null,null,null,0]
[{"$f":"IF(B147=\"\",\"\",COUNTA($B$3:B147))","v":""},null,null,null,null,null,null,null,null,null,null,null,null,0]
[{"$f":"IF(B148=\"\",\"\",COUNTA($B$3:B148))","v":""},null,null,null,null,null,null,null,null,null,null,null,null,0]
[{"$f":"IF(B149=\"\",\"\",COUNTA($B$3:B149))","v":""},null,null,null,null,null,null,null,null,null,null,null,null,0]
[{"$f":"IF(B150=\"\",\"\",COUNTA($B$3:B150))","v":""},null,null,null,null,null,null,null,null,null,null,null,null,0]
[{"$f":"IF(B151=\"\",\"\",COUNTA($B$3:B151))","v":""},null,null,null,null,null,null,null,null,null,null,null,null,0]
[{"$f":"IF(B152=\"\",\"\",COUNTA($B$3:B152))","v":""},null,null,null,null,null,null,null,null,null,null,null,null,0]
[{"$f":"IF(B153=\"\",\"\",COUNTA($B$3:B153))","v":""},null,null,null,null,null,null,null,null,null,null,null,null,0]
[{"$f":"IF(B154=\"\",\"\",COUNTA($B$3:B154))","v":""},null,null,null,null,null,null,null,null,null,null,null,null,0]
[{"$f":"IF(B155=\"\",\"\",COUNTA($B$3:B155))","v":""},null,null,null,null,null,null,null,null,null,null,null,null,0]
[{"$f":"IF(B156=\"\",\"\",COUNTA($B$3:B156))","v":""},null,null,null,null,null,null,null,null,null,null,null,null,0]
[{"$f":"IF(B157=\"\",\"\",COUNTA($B$3:B157))","v":""},null,null,null,null,null,null,null,null,null,null,null,null,0]
[{"$f":"IF(B158=\"\",\"\",COUNTA($B$3:B158))","v":""},null,null,null,null,null,null,null,null,null,null,null,null,0]
[{"$f":"IF(B159=\"\",\"\",COUNTA($B$3:B159))","v":""},null,null,null,null,null,null,null,null,null,null,null,null,0]
[{"$f":"IF(B160=\"\",\"\",COUNTA($B$3:B160))","v":""},null,null,null,null,null,null,null,null,null,null,null,null,0]
[{"$f":"IF(B161=\"\",\"\",COUNTA($B$3:B161))","v":""},null,null,null,null,null,null,null,null,null,null,null,null,0]
[{"$f":"IF(B162=\"\",\"\",COUNTA($B$3:B162))","v":""},null,null,null,null,null,null,null,null,null,null,null,null,0]
[{"$f":"IF(B163=\"\",\"\",COUNTA($B$3:B163))","v":""},null,null,null,null,null,null,null,null,null,null,null,null,0]
[{"$f":"IF(B164=\"\",\"\",COUNTA($B$3:B164))","v":""},null,null,null,null,null,null,null,null,null,null,null,null,0]
[{"$f":"IF(B165=\"\",\"\",COUNTA($B$3:B165))","v":""},null,null,null,null,null,null,null,null,null,null,null,null,0]
[{"$f":"IF(B166=\"\",\"\",COUNTA($B$3:B166))","v":""},null,null,null,null,null,null,null,null,null,null,null,null,0]
[{"$f":"IF(B167=\"\",\"\",COUNTA($B$3:B167))","v":""},null,null,null,null,null,null,null,null,null,null,null,null,0]
[{"$f":"IF(B168=\"\",\"\",COUNTA($B$3:B168))","v":""},null,null,null,null,null,null,null,null,null,null,null,null,0]
[{"$f":"IF(B169=\"\",\"\",COUNTA($B$3:B169))","v":""},null,null,null,null,null,null,null,null,null,null,null,null,0]
[{"$f":"IF(B170=\"\",\"\",COUNTA($B$3:B170))","v":""},null,null,null,null,null,null,null,null,null,null,null,null,0]
[{"$f":"IF(B171=\"\",\"\",COUNTA($B$3:B171))","v":""},null,null,null,null,null,null,null,null,null,null,null,null,0]
[{"$f":"IF(B172=\"\",\"\",COUNTA($B$3:B172))","v":""},null,null,null,null,null,null,null,null,null,null,null,null,0]
[{"$f":"IF(B173=\"\",\"\",COUNTA($B$3:B173))","v":""},null,null,null,null,null,null,null,null,null,null,null,null,0]
[{"$f":"IF(B174=\"\",\"\",COUNTA($B$3:B174))","v":""},null,null,null,null,null,null,null,null,null,null,null,null,0]
[{"$f":"IF(B175=\"\",\"\",COUNTA($B$3:B175))","v":""},null,null,null,null,null,null,null,null,null,null,null,null,0]
[{"$f":"IF(B176=\"\",\"\",COUNTA($B$3:B176))","v":""},null,null,null,null,null,null,null,null,null,null,null,null,0]
[{"$f":"IF(B177=\"\",\"\",COUNTA($B$3:B177))","v":""},null,null,null,null,null,null,null,null,null,null,null,null,0]
[{"$f":"IF(B178=\"\",\"\",COUNTA($B$3:B178))","v":""},null,null,null,null,null,null,null,null,null,null,null,null,0]
[{"$f":"IF(B179=\"\",\"\",COUNTA($B$3:B179))","v":""},null,null,null,null,null,null,null,null,null,null,null,null,0]
[{"$f":"IF(B180=\"\",\"\",COUNTA($B$3:B180))","v":""},null,null,null,null,null,null,null,null,null,null,null,null,0]
[{"$f":"IF(B181=\"\",\"\",COUNTA($B$3:B181))","v":""},null,null,null,null,null,null,null,null,null,null,null,null,0]
[{"$f":"IF(B182=\"\",\"\",COUNTA($B$3:B182))","v":""},null,null,null,null,null,null,null,null,null,null,null,null,0]
[{"$f":"IF(B183=\"\",\"\",COUNTA($B$3:B183))","v":""},null,null,null,null,null,null,null,null,null,null,null,null,0]
[{"$f":"IF(B184=\"\",\"\",COUNTA($B$3:B184))","v":""},null,null,null,null,null,null,null,null,null,null,null,null,0]
[{"$f":"IF(B185=\"\",\"\",COUNTA($B$3:B185))","v":""},null,null,null,null,null,null,null,null,null,null,null,null,0]
[{"$f":"IF(B186=\"\",\"\",COUNTA($B$3:B186))","v":""},null,null,null,null,null,null,null,null,null,null,null,null,0]
[{"$f":"IF(B187=\"\",\"\",COUNTA($B$3:B187))","v":""},null,null,null,null,null,null,null,null,null,null,null,null,0]
[{"$f":"IF(B188=\"\",\"\",COUNTA($B$3:B188))","v":""},null,null,null,null,null,null,null,null,null,null,null,null,0]
[{"$f":"IF(B189=\"\",\"\",COUNTA($B$3:B189))","v":""},null,null,null,null,null,null,null,null,null,null,null,null,0]
[{"$f":"IF(B190=\"\",\"\",COUNTA($B$3:B190))","v":""},null,null,null,null,null,null,null,null,null,null,null,null,0]
[{"$f":"IF(B191=\"\",\"\",COUNTA($B$3:B191))","v":""},null,null,null,null,null,null,null,null,null,null,null,null,0]
[{"$f":"IF(B192=\"\",\"\",COUNTA($B$3:B192))","v":""},null,null,null,null,null,null,null,null,null,null,null,null,0]
[{"$f":"IF(B193=\"\",\"\",COUNTA($B$3:B193))","v":""},null,null,null,null,null,null,null,null,null,null,null,null,0]
[{"$f":"IF(B194=\"\",\"\",COUNTA($B$3:B194))","v":""},null,null,null,null,null,null,null,null,null,null,null,null,0]
[{"$f":"IF(B195=\"\",\"\",COUNTA($B$3:B195))","v":""},null,null,null,null,null,null,null,null,null,null,null,null,0]
[{"$f":"IF(B196=\"\",\"\",COUNTA($B$3:B196))","v":""},null,null,null,null,null,null,null,null,null,null,null,null,{"$f":"M196-(L196*J196)","v":0}]
[{"$f":"IF(B197=\"\",\"\",COUNTA($B$3:B197))","v":""},null,null,null,null,null,null,null,null,null,null,null,null,0]
[{"$f":"IF(B198=\"\",\"\",COUNTA($B$3:B198))","v":""},null,null,null,null,null,null,null,null,null,null,null,null,0]
[{"$f":"IF(B199=\"\",\"\",COUNTA($B$3:B199))","v":""},null,null,null,null,null,null,null,null,null,null,null,null,0]
[{"$f":"IF(B200=\"\",\"\",COUNTA($B$3:B200))","v":""},null,null,null,null,null,null,null,null,null,null,null,null,0]
[{"$f":"IF(B201=\"\",\"\",COUNTA($B$3:B201))","v":""},null,null,null,null,null,null,null,null,null,null,null,null,0]
[{"$f":"IF(B202=\"\",\"\",COUNTA($B$3:B202))","v":""},null,null,null,null,null,null,null,null,null,null,null,null,0]
[{"$f":"IF(B203=\"\",\"\",COUNTA($B$3:B203))","v":""},null,null,null,null,null,null,null,null,null,null,null,null,0]
[{"$f":"IF(B204=\"\",\"\",COUNTA($B$3:B204))","v":""},null,null,null,null,null,null,null,null,null,null,null,null,0]
[{"$f":"IF(B205=\"\",\"\",COUNTA($B$3:B205))","v":""},null,null,null,null,null,null,null,null,null,null,null,null,0]
[{"$f":"IF(B206=\"\",\"\",COUNTA($B$3:B206))","v":""},null,null,null,null,null,null,null,null,null,null,null,null,0]
[{"$f":"IF(B207=\"\",\"\",COUNTA($B$3:B207))","v":""},null,null,null,null,null,null,null,null,null,null,null,null,0]
[{"$f":"IF(B208=\"\",\"\",COUNTA($B$3:B208))","v":""},null,null,null,null,null,null,null,null,null,null,null,null,0]
[{"$f":"IF(B209=\"\",\"\",COUNTA($B$3:B209))","v":""},null,null,null,null,null,null,null,null,null,null,null,null,0]
[{"$f":"IF(B210=\"\",\"\",COUNTA($B$3:B210))","v":""},null,null,null,null,null,null,null,null,null,null,null,null,0]
[{"$f":"IF(B211=\"\",\"\",COUNTA($B$3:B211))","v":""},null,null,null,null,null,null,null,null,null,null,null,null,0]
[{"$f":"IF(B212=\"\",\"\",COUNTA($B$3:B212))","v":""},null,null,null,null,null,null,null,null,null,null,null,null,0]
[{"$f":"IF(B213=\"\",\"\",COUNTA($B$3:B213))","v":""},null,null,null,null,null,null,null,null,null,null,null,null,0]
[{"$f":"IF(B214=\"\",\"\",COUNTA($B$3:B214))","v":""},null,null,null,null,null,null,null,null,null,null,null,null,0]
[{"$f":"IF(B215=\"\",\"\",COUNTA($B$3:B215))","v":""},null,null,null,null,null,null,null,null,null,null,null,null,0]
[{"$f":"IF(B216=\"\",\"\",COUNTA($B$3:B216))","v":""},null,null,null,null,null,null,null,null,null,null,null,null,0]
[{"$f":"IF(B217=\"\",\"\",COUNTA($B$3:B217))","v":""},null,null,null,null,null,null,null,null,null,null,null,null,0]
[{"$f":"IF(B218=\"\",\"\",COUNTA($B$3:B218))","v":""},null,null,null,null,null,null,null,null,null,null,null,null,0]
[{"$f":"IF(B219=\"\",\"\",COUNTA($B$3:B219))","v":""},null,null,null,null,null,null,null,null,null,null,null,null,0]
[{"$f":"IF(B220=\"\",\"\",COUNTA($B$3:B220))","v":""},null,null,null,null,null,null,null,null,null,null,null,null,0]
[{"$f":"IF(B221=\"\",\"\",COUNTA($B$3:B221))","v":""},null,null,null,null,null,null,null,null,null,null,null,null,0]
[{"$f":"IF(B222=\"\",\"\",COUNTA($B$3:B222))","v":""},null,null,null,null,null,null,null,null,null,null,null,null,0]
[{"$f":"IF(B223=\"\",\"\",COUNTA($B$3:B223))","v":""},null,null,null,null,null,null,null,null,null,null,null,null,0]
[{"$f":"IF(B224=\"\",\"\",COUNTA($B$3:B224))","v":""},null,null,null,null,null,null,null,null,null,null,null,null,0]
[{"$f":"IF(B225=\"\",\"\",COUNTA($B$3:B225))","v":""},null,null,null,null,null,null,null,null,null,null,null,null,0]
[{"$f":"IF(B226=\"\",\"\",COUNTA($B$3:B226))","v":""},null,null,null,null,null,null,null,null,null,null,null,null,0]
[{"$f":"IF(B227=\"\",\"\",COUNTA($B$3:B227))","v":""},null,null,null,null,null,null,null,null,null,null,null,null,0]
[{"$f":"IF(B228=\"\",\"\",COUNTA($B$3:B228))","v":""},null,null,null,null,null,null,null,null,null,null,null,null,0]
[{"$f":"IF(B229=\"\",\"\",COUNTA($B$3:B229))","v":""},null,null,null,null,null,null,null,null,null,null,null,null,0]
[{"$f":"IF(B230=\"\",\"\",COUNTA($B$3:B230))","v":""},null,null,null,null,null,null,null,null,null,null,null,null,0]
[{"$f":"IF(B231=\"\",\"\",COUNTA($B$3:B231))","v":""},null,null,null,null,null,null,null,null,null,null,null,null,0]
[{"$f":"IF(B232=\"\",\"\",COUNTA($B$3:B232))","v":""},null,null,null,null,null,null,null,null,null,null,null,null,0]
[{"$f":"IF(B233=\"\",\"\",COUNTA($B$3:B233))","v":""},null,null,null,null,null,null,null,null,null,null,null,null,0]
[{"$f":"IF(B234=\"\",\"\",COUNTA($B$3:B234))","v":""},null,null,null,null,null,null,null,null,null,null,null,null,0]
[{"$f":"IF(B235=\"\",\"\",COUNTA($B$3:B235))","v":""},null,null,null,null,null,null,null,null,null,null,null,null,0]
[{"$f":"IF(B236=\"\",\"\",COUNTA($B$3:B236))","v":""},null,null,null,null,null,null,null,null,null,null,null,null,0]
[{"$f":"IF(B237=\"\",\"\",COUNTA($B$3:B237))","v":""},null,null,null,null,null,null,null,null,null,null,null,null,0]
[{"$f":"IF(B238=\"\",\"\",COUNTA($B$3:B238))","v":""},null,null,null,null,null,null,null,null,null,null,null,null,0]
[{"$f":"IF(B239=\"\",\"\",COUNTA($B$3:B239))","v":""},null,null,null,null,null,null,null,null,null,null,null,null,0]
[{"$f":"IF(B240=\"\",\"\",COUNTA($B$3:B240))","v":""},null,null,null,null,null,null,null,null,null,null,null,null,0]
[{"$f":"IF(B241=\"\",\"\",COUNTA($B$3:B241))","v":""},null,null,null,null,null,null,null,null,null,null,null,null,0]
[{"$f":"IF(B242=\"\",\"\",COUNTA($B$3:B242))","v":""},null,null,null,null,null,null,null,null,null,null,null,null,0]
[{"$f":"IF(B243=\"\",\"\",COUNTA($B$3:B243))","v":""},null,null,null,null,null,null,null,null,null,null,null,null,0]
[{"$f":"IF(B244=\"\",\"\",COUNTA($B$3:B244))","v":""},null,null,null,null,null,null,null,null,null,null,null,null,0]
[{"$f":"IF(B245=\"\",\"\",COUNTA($B$3:B245))","v":""},null,null,null,null,null,null,null,null,null,null,null,null,0]
[{"$f":"IF(B246=\"\",\"\",COUNTA($B$3:B246))","v":""},null,null,null,null,null,null,null,null,null,null,null,null,0]
[{"$f":"IF(B247=\"\",\"\",COUNTA($B$3:B247))","v":""},null,null,null,null,null,null,null,null,null,null,null,null,0]
[{"$f":"IF(B248=\"\",\"\",COUNTA($B$3:B248))","v":""},null,null,null,null,null,null,null,null,null,null,null,null,0]
[{"$f":"IF(B249=\"\",\"\",COUNTA($B$3:B249))","v":""},null,null,null,null,null,null,null,null,null,null,null,null,0]
[{"$f":"IF(B250=\"\",\"\",COUNTA($B$3:B250))","v":""},null,null,null,null,null,null,null,null,null,null,null,null,0]
[{"$f":"IF(B251=\"\",\"\",COUNTA($B$3:B251))","v":""},null,null,null,null,null,null,null,null,null,null,null,null,0]
[{"$f":"IF(B252=\"\",\"\",COUNTA($B$3:B252))","v":""},null,null,null,null,null,null,null,null,null,null,null,null,0]
[{"$f":"IF(B253=\"\",\"\",COUNTA($B$3:B253))","v":""},null,null,null,null,null,null,null,null,null,null,null,null,0]
[{"$f":"IF(B254=\"\",\"\",COUNTA($B$3:B254))","v":""},null,null,null,null,null,null,null,null,null,null,null,null,0]
[{"$f":"IF(B255=\"\",\"\",COUNTA($B$3:B255))","v":""},null,null,null,null,null,null,null,null,null,null,null,null,0]
[{"$f":"IF(B256=\"\",\"\",COUNTA($B$3:B256))","v":""},null,null,null,null,null,null,null,null,null,null,null,null,0]
[{"$f":"IF(B257=\"\",\"\",COUNTA($B$3:B257))","v":""},null,null,null,null,null,null,null,null,null,null,null,null,0]
[{"$f":"IF(B258=\"\",\"\",COUNTA($B$3:B258))","v":""},null,null,null,null,null,null,null,null,null,null,null,null,0]
[{"$f":"IF(B259=\"\",\"\",COUNTA($B$3:B259))","v":""},null,null,null,null,null,null,null,null,null,null,null,null,0]
[{"$f":"IF(B260=\"\",\"\",COUNTA($B$3:B260))","v":""},null,null,null,null,null,null,null,null,null,null,null,null,{"$f":"M260-(L260*J260)","v":0}]
[{"$f":"IF(B261=\"\",\"\",COUNTA($B$3:B261))","v":""},null,null,null,null,null,null,null,null,null,null,null,null,0]
[{"$f":"IF(B262=\"\",\"\",COUNTA($B$3:B262))","v":""},null,null,null,null,null,null,null,null,null,null,null,null,0]
[{"$f":"IF(B263=\"\",\"\",COUNTA($B$3:B263))","v":""},null,null,null,null,null,null,null,null,null,null,null,null,0]
[{"$f":"IF(B264=\"\",\"\",COUNTA($B$3:B264))","v":""},null,null,null,null,null,null,null,null,null,null,null,null,0]
[{"$f":"IF(B265=\"\",\"\",COUNTA($B$3:B265))","v":""},null,null,null,null,null,null,null,null,null,null,null,null,0]
[{"$f":"IF(B266=\"\",\"\",COUNTA($B$3:B266))","v":""},null,null,null,null,null,null,null,null,null,null,null,null,0]
[{"$f":"IF(B267=\"\",\"\",COUNTA($B$3:B267))","v":""},null,null,null,null,null,null,null,null,null,null,null,null,0]
[{"$f":"IF(B268=\"\",\"\",COUNTA($B$3:B268))","v":""},null,null,null,null,null,null,null,null,null,null,null,null,0]
[{"$f":"IF(B269=\"\",\"\",COUNTA($B$3:B269))","v":""},null,null,null,null,null,null,null,null,null,null,null,null,0]
[{"$f":"IF(B270=\"\",\"\",COUNTA($B$3:B270))","v":""},null,null,null,null,null,null,null,null,null,null,null,null,0]
[{"$f":"IF(B271=\"\",\"\",COUNTA($B$3:B271))","v":""},null,null,null,null,null,null,null,null,null,null,null,null,0]
[{"$f":"IF(B272=\"\",\"\",COUNTA($B$3:B272))","v":""},null,null,null,null,null,null,null,null,null,null,null,null,0]
[{"$f":"IF(B273=\"\",\"\",COUNTA($B$3:B273))","v":""},null,null,null,null,null,null,null,null,null,null,null,null,0]
[{"$f":"IF(B274=\"\",\"\",COUNTA($B$3:B274))","v":""},null,null,null,null,null,null,null,null,null,null,null,null,0]
[{"$f":"IF(B275=\"\",\"\",COUNTA($B$3:B275))","v":""},null,null,null,null,null,null,null,null,null,null,null,null,0]
[{"$f":"IF(B276=\"\",\"\",COUNTA($B$3:B276))","v":""},null,null,null,null,null,null,null,null,null,null,null,null,0]
[{"$f":"IF(B277=\"\",\"\",COUNTA($B$3:B277))","v":""},null,null,null,null,null,null,null,null,null,null,null,null,0]
[{"$f":"IF(B278=\"\",\"\",COUNTA($B$3:B278))","v":""},null,null,null,null,null,null,null,null,null,null,null,null,0]
[{"$f":"IF(B279=\"\",\"\",COUNTA($B$3:B279))","v":""},null,null,null,null,null,null,null,null,null,null,null,null,0]
[{"$f":"IF(B280=\"\",\"\",COUNTA($B$3:B280))","v":""},null,null,null,null,null,null,null,null,null,null,null,null,0]
[null,null,null,null,null,null,null,null,null,null,null,null,null,0]
[null,null,null,null,null,null,null,null,null,null,null,null,null,0]
[null,null,null,null,null,null,null,null,null,null,null,null,null,0]
[null,null,null,null,null,null,null,null,null,null,null,null,null,0]
[null,null,null,null,null,null,null,null,null,null,null,null,null,0]
[null,null,null,null,null,null,null,null,null,null,null,null,null,0]
[null,null,null,null,null,null,null,null,null,null,null,null,null,0]
[null,null,null,null,null,null,null,null,null,null,null,null,null,0]
[null,null,null,null,null,null,null,null,null,null,null,null,null,0]
[null,null,null,null,null,null,null,null,null,null,null,null,null,0]
[null,null,null,null,null,null,null,null,null,null,null,null,null,0]
[null,null,null,null,null,null,null,null,null,null,null,null,null,0]
[null,null,null,null,null,null,null,null,null,null,null,null,null,0]
[null,null,null,null,null,null,null,null,null,null,null,null,null,0]
[null,null,null,null,null,null,null,null,null,null,null,null,null,0]
[null,null,null,null,null,null,null,null,null,null,null,null,null,0]
[null,null,null,null,null,null,null,null,null,null,null,null,null,0]
[null,null,null,null,null,null,null,null,null,null,null,null,null,0]
[null,null,null,null,null,null,null,null,null,null,null,null,null,0]
[null,null,null,null,null,null,null,null,null,null,null,null,null,0]
[null,null,null,null,null,null,null,null,null,null,null,null,null,0]
[null,null,null,null,null,null,null,null,null,null,null,null,null,0]
[null,null,null,null,null,null,null,null,null,null,null,null,null,0]
[null,null,null,null,null,null,null,null,null,null,null,null,null,0]
[null,null,null,null,null,null,null,null,null,null,null,null,null,0]
[null,null,null,null,null,null,null,null,null,null,null,null,null,0]
[null,null,null,null,null,null,null,null,null,null,null,null,null,0]
[null,null,null,null,null,null,null,null,null,null,null,null,null,0]
[null,null,null,null,null,null,null,null,null,null,null,null,null,0]
[null,null,null,null,null,null,null,null,null,null,null,null,null,0]
[null,null,null,null,null,null,null,null,null,null,null,null,null,0]
[null,null,null,null,null,null,null,null,null,null,null,null,null,0]
[null,null,null,null,null,null,null,null,null,null,null,null,null,0]
[null,null,null,null,null,null,null,null,null,null,null,null,null,0]
[null,null,null,null,null,null,null,null,null,null,null,null,null,0]
[null,null,null,null,null,null,null,null,null,null,null,null,null,0]
[null,null,null,null,null,null,null,null,null,null,null,null,null,0]
[null,null,null,null,null,null,null,null,null,null,null,null,null,0]
[null,null,null,null,null,null,null,null,null,null,null,null,null,0]
[null,null,null,null,null,null,null,null,null,null,null,null,null,0]
[null,null,null,null,null,null,null,null,null,null,null,null,null,0]
[null,null,null,null,null,null,null,null,null,null,null,null,null,0]
[null,null,null,null,null,null,null,null,null,null,null,null,null,0]
[null,null,null,null,null,null,null,null,null,null,null,null,null,{"$f":"M324-(L324*J324)","v":0}]
[null,null,null,null,null,null,null,null,null,null,null,null,null,0]
[null,null,null,null,null,null,null,null,null,null,null,null,null,0]
[null,null,null,null,null,null,null,null,null,null,null,null,null,0]
[null,null,null,null,null,null,null,null,null,null,null,null,null,0]
[null,null,null,null,null,null,null,null,null,null,null,null,null,0]
[null,null,null,null,null,null,null,null,null,null,null,null,null,0]
[null,null,null,null,null,null,null,null,null,null,null,null,null,0]
[null,null,null,null,null,null,null,null,null,null,null,null,null,0]
[null,null,null,null,null,null,null,null,null,null,null,null,null,0]
[null,null,null,null,null,null,null,null,null,null,null,null,null,0]
[null,null,null,null,null,null,null,null,null,null,null,null,null,0]
[null,null,null,null,null,null,null,null,null,null,null,null,null,0]
[null,null,null,null,null,null,null,null,null,null,null,null,null,0]
[null,null,null,null,null,null,null,null,null,null,null,null,null,0]
[null,null,null,null,null,null,null,null,null,null,null,null,null,0]
[null,null,null,null,null,null,null,null,null,null,null,null,null,0]
[null,null,null,null,null,null,null,null,null,null,null,null,null,0]
[null,null,null,null,null,null,null,null,null,null,null,null,null,0]
[null,null,null,null,null,null,null,null,null,null,null,null,null,0]
[null,null,null,null,null,null,null,null,null,null,null,null,null,0]
[null,null,null,null,null,null,null,null,null,null,null,null,null,0]
[null,null,null,null,null,null,null,null,null,null,null,null,null,0]
[null,null,null,null,null,null,null,null,null,null,null,null,null,0]
[null,null,null,null,null,null,null,null,null,null,null,null,null,0]
[null,null,null,null,null,null,null,null,null,null,null,null,null,0]
[null,null,null,null,null,null,null,null,null,null,null,null,null,0]
[null,null,null,null,null,null,null,null,null,null,null,null,null,0]
[null,null,null,null,null,null,null,null,null,null,null,null,null,0]
[null,null,null,null,null,null,null,null,null,null,null,null,null,0]
[null,null,null,null,null,null,null,null,null,null,null,null,null,0]
[null,null,null,null,null,null,null,null,null,null,null,null,null,0]
[null,null,null,null,null,null,null,null,null,null,null,null,null,0]
[null,null,null,null,null,null,null,null,null,null,null,null,null,0]
[null,null,null,null,null,null,null,null,null,null,null,null,null,0]
[null,null,null,null,null,null,null,null,null,null,null,null,null,0]
[null,null,null,null,null,null,null,null,null,null,null,null,null,0]
[null,null,null,null,null,null,null,null,null,null,null,null,null,0]
[null,null,null,null,null,null,null,null,null,null,null,null,null,0]
[null,null,null,null,null,null,null,null,null,null,null,null,null,0]
[null,null,null,null,null,null,null,null,null,null,null,null,null,0]
[null,null,null,null,null,null,null,null,null,null,null,null,null,0]
[null,null,null,null,null,null,null,null,null,null,null,null,null,0]
[null,null,null,null,null,null,null,null,null,null,null,null,null,0]
[null,null,null,null,null,null,null,null,null,null,null,null,null,0]
[null,null,null,null,null,null,null,null,null,null,null,null,null,0]
[null,null,null,null,null,null,null,null,null,null,null,null,null,0]
[null,null,null,null,null,null,null,null,null,null,null,null,null,0]
[null,null,null,null,null,null,null,null,null,null,null,null,null,0]
[null,null,null,null,null,null,null,null,null,null,null,null,null,0]
[null,null,null,null,null,null,null,null,null,null,null,null,null,0]
[null,null,null,null,null,null,null,null,null,null,null,null,null,0]
[null,null,null,null,null,null,null,null,null,null,null,null,null,0]
[null,null,null,null,null,null,null,null,null,null,null,null,null,0]
[null,null,null,null,null,null,null,null,null,null,null,null,null,0]
[null,null,null,null,null,null,null,null,null,null,null,null,null,0]
[null,null,null,null,null,null,null,null,null,null,null,null,null,0]
[null,null,null,null,null,null,null,null,null,null,null,null,null,0]
[null,null,null,null,null,null,null,null,null,null,null,null,null,0]
[null,null,null,null,null,null,null,null,null,null,null,null,null,0]
[null,null,null,null,null,null,null,null,null,null,null,null,null,0]
[null,null,null,null,null,null,null,null,null,null,null,null,null,0]

{"sheet":"عمرة المولد النبوى","index":4,"n_rows":385,"n_cols":17,"rows_kept":385,"cut":false,"hidden":false,"merged":[[0,1,0,13]]}
[null,"البيانات الأساسية للسادة الحجاج والمعتمرين",null,null,null,null,null,null,null,null,null,null,null,null,null,"الاسم","رقم الصف"]
["م","الرقم القومى","اسم الحاج","الجنسية","رقم جواز السفر","رقم بطاقة الإقامة","تاريخ انتهاء الإقامة","تليفون خاص بالحاج","إسم الفندق","تكلفة الحج أو العمرة","رسوم الحج أوالعمرة","عدد المرافقين","إجمالى المبلغ","ربح / خسارة",null,"محمد أحمد سعيد",{"$f":"MATCH(P2,C:C,0)","v":3}]
[{"$f":"IF(B3=\"\",\"\",COUNTA($B$3:B3))","v":1},32211165221,"محمد أحمد سعيد","مصري",123,222222,"2025-12-14",1010256320,null,null,80000,3,null,{"$f":"M3-(L3*J3)","v":0}]
[{"$f":"IF(B4=\"\",\"\",COUNTA($B$3:B4))","v":2},269092272800665,"نعمة أدم حسن عقيد","مصري","A36900868",6118251827,"2024-06-06",1017181537,null,null,18000,1,null,{"$f":"M4-(L4*J4)","v":0}]
[{"$f":"IF(B5=\"\",\"\",COUNTA($B$3:B5))","v":""},null,null,null,null,null,null,null,null,null,null,null,null,0]
[{"$f":"IF(B6=\"\",\"\",COUNTA($B$3:B6))","v":""},null,null,null,null,null,null,null,null,null,null,null,null,0]
[{"$f":"IF(B7=\"\",\"\",COUNTA($B$3:B7))","v":""},null,null,null,null,null,null,null,null,null,null,null,null,0]
[{"$f":"IF(B8=\"\",\"\",COUNTA($B$3:B8))","v":""},null,null,null,null,null,null,null,null,null,null,null,null,0]
[{"$f":"IF(B9=\"\",\"\",COUNTA($B$3:B9))","v":""},null,null,null,null,null,null,null,null,null,null,null,null,0]
[{"$f":"IF(B10=\"\",\"\",COUNTA($B$3:B10))","v":""},null,null,null,null,null,null,null,null,null,null,null,null,0]
[{"$f":"IF(B11=\"\",\"\",COUNTA($B$3:B11))","v":""},null,null,null,null,null,null,null,null,null,null,null,null,0]
[{"$f":"IF(B12=\"\",\"\",COUNTA($B$3:B12))","v":""},null,null,null,null,null,null,null,null,null,null,null,null,0]
[{"$f":"IF(B13=\"\",\"\",COUNTA($B$3:B13))","v":""},null,null,null,null,null,null,null,null,null,null,null,null,0]
[{"$f":"IF(B14=\"\",\"\",COUNTA($B$3:B14))","v":""},null,null,null,null,null,null,null,null,null,null,null,null,0]
[{"$f":"IF(B15=\"\",\"\",COUNTA($B$3:B15))","v":""},null,null,null,null,null,null,null,null,null,null,null,null,0]
[{"$f":"IF(B16=\"\",\"\",COUNTA($B$3:B16))","v":""},null,null,null,null,null,null,null,null,null,null,null,null,0]
[{"$f":"IF(B17=\"\",\"\",COUNTA($B$3:B17))","v":""},null,null,null,null,null,null,null,null,null,null,null,null,0]
[{"$f":"IF(B18=\"\",\"\",COUNTA($B$3:B18))","v":""},null,null,null,null,null,null,null,null,null,null,null,null,0]
[{"$f":"IF(B19=\"\",\"\",COUNTA($B$3:B19))","v":""},null,null,null,null,null,null,null,null,null,null,null,null,0]
[{"$f":"IF(B20=\"\",\"\",COUNTA($B$3:B20))","v":""},null,null,null,null,null,null,null,null,null,null,null,null,0]
[{"$f":"IF(B21=\"\",\"\",COUNTA($B$3:B21))","v":""},null,null,null,null,null,null,null,null,null,null,null,null,0]
[{"$f":"IF(B22=\"\",\"\",COUNTA($B$3:B22))","v":""},null,null,null,null,null,null,null,null,null,null,null,null,0]
[{"$f":"IF(B23=\"\",\"\",COUNTA($B$3:B23))","v":""},null,null,null,null,null,null,null,null,null,null,null,null,0]
[{"$f":"IF(B24=\"\",\"\",COUNTA($B$3:B24))","v":""},null,null,null,null,null,null,null,null,null,null,null,null,0]
[{"$f":"IF(B25=\"\",\"\",COUNTA($B$3:B25))","v":""},null,null,null,null,null,null,null,null,null,null,null,null,0]
[{"$f":"IF(B26=\"\",\"\",COUNTA($B$3:B26))","v":""},null,null,null,null,null,null,null,null,null,null,null,null,0]
[{"$f":"IF(B27=\"\",\"\",COUNTA($B$3:B27))","v":""},null,null,null,null,null,null,null,null,null,null,null,null,0]
[{"$f":"IF(B28=\"\",\"\",COUNTA($B$3:B28))","v":""},null,null,null,null,null,null,null,null,null,null,null,null,0]
[{"$f":"IF(B29=\"\",\"\",COUNTA($B$3:B29))","v":""},null,null,null,null,null,null,null,null,null,null,null,null,0]
[{"$f":"IF(B30=\"\",\"\",COUNTA($B$3:B30))","v":""},null,null,null,null,null,null,null,null,null,null,null,null,0]
[{"$f":"IF(B31=\"\",\"\",COUNTA($B$3:B31))","v":""},null,null,null,null,null,null,null,null,null,null,null,null,0]
[{"$f":"IF(B32=\"\",\"\",COUNTA($B$3:B32))","v":""},null,null,null,null,null,null,null,null,null,null,null,null,0]
[{"$f":"IF(B33=\"\",\"\",COUNTA($B$3:B33))","v":""},null,null,null,null,null,null,null,null,null,null,null,null,0]
[{"$f":"IF(B34=\"\",\"\",COUNTA($B$3:B34))","v":""},null,null,null,null,null,null,null,null,null,null,null,null,0]
[{"$f":"IF(B35=\"\",\"\",COUNTA($B$3:B35))","v":""},null,null,null,null,null,null,null,null,null,null,null,null,0]
[{"$f":"IF(B36=\"\",\"\",COUNTA($B$3:B36))","v":""},null,null,null,null,null,null,null,null,null,null,null,null,0]
[{"$f":"IF(B37=\"\",\"\",COUNTA($B$3:B37))","v":""},null,null,null,null,null,null,null,null,null,null,null,null,0]
[{"$f":"IF(B38=\"\",\"\",COUNTA($B$3:B38))","v":""},null,null,null,null,null,null,null,null,null,null,null,null,0]
[{"$f":"IF(B39=\"\",\"\",COUNTA($B$3:B39))","v":""},null,null,null,null,null,null,null,null,null,null,null,null,0]
[{"$f":"IF(B40=\"\",\"\",COUNTA($B$3:B40))","v":""},null,null,null,null,null,null,null,null,null,null,null,null,0]
[{"$f":"IF(B41=\"\",\"\",COUNTA($B$3:B41))","v":""},null,null,null,null,null,null,null,null,null,null,null,null,0]
[{"$f":"IF(B42=\"\",\"\",COUNTA($B$3:B42))","v":""},null,null,null,null,null,null,null,null,null,null,null,null,0]
[{"$f":"IF(B43=\"\",\"\",COUNTA($B$3:B43))","v":""},null,null,null,null,null,null,null,null,null,null,null,null,0]
[{"$f":"IF(B44=\"\",\"\",COUNTA($B$3:B44))","v":""},null,null,null,null,null,null,null,null,null,null,null,null,0]
[{"$f":"IF(B45=\"\",\"\",COUNTA($B$3:B45))","v":""},null,null,null,null,null,null,null,null,null,null,null,null,0]
[{"$f":"IF(B46=\"\",\"\",COUNTA($B$3:B46))","v":""},null,null,null,null,null,null,null,null,null,null,null,null,0]
[{"$f":"IF(B47=\"\",\"\",COUNTA($B$3:B47))","v":""},null,null,null,null,null,null,null,null,null,null,null,null,0]
[{"$f":"IF(B48=\"\",\"\",COUNTA($B$3:B48))","v":""},null,null,null,null,null,null,null,null,null,null,null,null,0]
[{"$f":"IF(B49=\"\",\"\",COUNTA($B$3:B49))","v":""},null,null,null,null,null,null,null,null,null,null,null,null,0]
[{"$f":"IF(B50=\"\",\"\",COUNTA($B$3:B50))","v":""},null,null,null,null,null,null,null,null,null,null,null,null,0]
[{"$f":"IF(B51=\"\",\"\",COUNTA($B$3:B51))","v":""},null,null,null,null,null,null,null,null,null,null,null,null,0]
[{"$f":"IF(B52=\"\",\"\",COUNTA($B$3:B52))","v":""},null,null,null,null,null,null,null,null,null,null,null,null,0]
[{"$f":"IF(B53=\"\",\"\",COUNTA($B$3:B53))","v":""},null,null,null,null,null,null,null,null,null,null,null,null,0]
[{"$f":"IF(B54=\"\",\"\",COUNTA($B$3:B54))","v":""},null,null,null,null,null,null,null,null,null,null,null,null,0]
[{"$f":"IF(B55=\"\",\"\",COUNTA($B$3:B55))","v":""},null,null,null,null,null,null,null,null,null,null,null,null,0]
[{"$f":"IF(B56=\"\",\"\",COUNTA($B$3:B56))","v":""},null,null,null,null,null,null,null,null,null,null,null,null,0]
[{"$f":"IF(B57=\"\",\"\",COUNTA($B$3:B57))","v":""},null,null,null,null,null,null,null,null,null,null,null,null,0]
[{"$f":"IF(B58=\"\",\"\",COUNTA($B$3:B58))","v":""},null,null,null,null,null,null,null,null,null,null,null,null,0]
[{"$f":"IF(B59=\"\",\"\",COUNTA($B$3:B59))","v":""},null,null,null,null,null,null,null,null,null,null,null,null,0]
[{"$f":"IF(B60=\"\",\"\",COUNTA($B$3:B60))","v":""},null,null,null,null,null,null,null,null,null,null,null,null,0]
[{"$f":"IF(B61=\"\",\"\",COUNTA($B$3:B61))","v":""},null,null,null,null,null,null,null,null,null,null,null,null,0]
[{"$f":"IF(B62=\"\",\"\",COUNTA($B$3:B62))","v":""},null,null,null,null,null,null,null,null,null,null,null,null,0]
[{"$f":"IF(B63=\"\",\"\",COUNTA($B$3:B63))","v":""},null,null,null,null,null,null,null,null,null,null,null,null,0]
[{"$f":"IF(B64=\"\",\"\",COUNTA($B$3:B64))","v":""},null,null,null,null,null,null,null,null,null,null,null,null,0]
[{"$f":"IF(B65=\"\",\"\",COUNTA($B$3:B65))","v":""},null,null,null,null,null,null,null,null,null,null,null,null,0]
[{"$f":"IF(B66=\"\",\"\",COUNTA($B$3:B66))","v":""},null,null,null,null,null,null,null,null,null,null,null,null,0]
[{"$f":"IF(B67=\"\",\"\",COUNTA($B$3:B67))","v":""},null,null,null,null,null,null,null,null,null,null,null,null,0]
[{"$f":"IF(B68=\"\",\"\",COUNTA($B$3:B68))","v":""},null,null,null,null,null,null,null,null,null,null,null,null,{"$f":"M68-(L68*J68)","v":0}]
[{"$f":"IF(B69=\"\",\"\",COUNTA($B$3:B69))","v":""},null,null,null,null,null,null,null,null,null,null,null,null,0]
[{"$f":"IF(B70=\"\",\"\",COUNTA($B$3:B70))","v":""},null,null,null,null,null,null,null,null,null,null,null,null,0]
[{"$f":"IF(B71=\"\",\"\",COUNTA($B$3:B71))","v":""},null,null,null,null,null,null,null,null,null,null,null,null,0]
[{"$f":"IF(B72=\"\",\"\",COUNTA($B$3:B72))","v":""},null,null,null,null,null,null,null,null,null,null,null,null,0]
[{"$f":"IF(B73=\"\",\"\",COUNTA($B$3:B73))","v":""},null,null,null,null,null,null,null,null,null,null,null,null,0]
[{"$f":"IF(B74=\"\",\"\",COUNTA($B$3:B74))","v":""},null,null,null,null,null,null,null,null,null,null,null,null,0]
[{"$f":"IF(B75=\"\",\"\",COUNTA($B$3:B75))","v":""},null,null,null,null,null,null,null,null,null,null,null,null,0]
[{"$f":"IF(B76=\"\",\"\",COUNTA($B$3:B76))","v":""},null,null,null,null,null,null,null,null,null,null,null,null,0]
[{"$f":"IF(B77=\"\",\"\",COUNTA($B$3:B77))","v":""},null,null,null,null,null,null,null,null,null,null,null,null,0]
[{"$f":"IF(B78=\"\",\"\",COUNTA($B$3:B78))","v":""},null,null,null,null,null,null,null,null,null,null,null,null,0]
[{"$f":"IF(B79=\"\",\"\",COUNTA($B$3:B79))","v":""},null,null,null,null,null,null,null,null,null,null,null,null,0]
[{"$f":"IF(B80=\"\",\"\",COUNTA($B$3:B80))","v":""},null,null,null,null,null,null,null,null,null,null,null,null,0]
[{"$f":"IF(B81=\"\",\"\",COUNTA($B$3:B81))","v":""},null,null,null,null,null,null,null,null,null,null,null,null,0]
[{"$f":"IF(B82=\"\",\"\",COUNTA($B$3:B82))","v":""},null,null,null,null,null,null,null,null,null,null,null,null,0]
[{"$f":"IF(B83=\"\",\"\",COUNTA($B$3:B83))","v":""},null,null,null,null,null,null,null,null,null,null,null,null,0]
[{"$f":"IF(B84=\"\",\"\",COUNTA($B$3:B84))","v":""},null,null,null,null,null,null,null,null,null,null,null,null,0]
[{"$f":"IF(B85=\"\",\"\",COUNTA($B$3:B85))","v":""},null,null,null,null,null,null,null,null,null,null,null,null,0]
[{"$f":"IF(B86=\"\",\"\",COUNTA($B$3:B86))","v":""},null,null,null,null,null,null,null,null,null,null,null,null,0]
[{"$f":"IF(B87=\"\",\"\",COUNTA($B$3:B87))","v":""},null,null,null,null,null,null,null,null,null,null,null,null,0]
[{"$f":"IF(B88=\"\",\"\",COUNTA($B$3:B88))","v":""},null,null,null,null,null,null,null,null,null,null,null,null,0]
[{"$f":"IF(B89=\"\",\"\",COUNTA($B$3:B89))","v":""},null,null,null,null,null,null,null,null,null,null,null,null,0]
[{"$f":"IF(B90=\"\",\"\",COUNTA($B$3:B90))","v":""},null,null,null,null,null,null,null,null,null,null,null,null,0]
[{"$f":"IF(B91=\"\",\"\",COUNTA($B$3:B91))","v":""},null,null,null,null,null,null,null,null,null,null,null,null,0]
[{"$f":"IF(B92=\"\",\"\",COUNTA($B$3:B92))","v":""},null,null,null,null,null,null,null,null,null,null,null,null,0]
[{"$f":"IF(B93=\"\",\"\",COUNTA($B$3:B93))","v":""},null,null,null,null,null,null,null,null,null,null,null,null,0]
[{"$f":"IF(B94=\"\",\"\",COUNTA($B$3:B94))","v":""},null,null,null,null,null,null,null,null,null,null,null,null,0]
[{"$f":"IF(B95=\"\",\"\",COUNTA($B$3:B95))","v":""},null,null,null,null,null,null,null,null,null,null,null,null,0]
[{"$f":"IF(B96=\"\",\"\",COUNTA($B$3:B96))","v":""},null,null,null,null,null,null,null,null,null,null,null,null,0]
[{"$f":"IF(B97=\"\",\"\",COUNTA($B$3:B97))","v":""},null,null,null,null,null,null,null,null,null,null,null,null,0]
[{"$f":"IF(B98=\"\",\"\",COUNTA($B$3:B98))","v":""},null,null,null,null,null,null,null,null,null,null,null,null,0]
[{"$f":"IF(B99=\"\",\"\",COUNTA($B$3:B99))","v":""},null,null,null,null,null,null,null,null,null,null,null,null,0]
[{"$f":"IF(B100=\"\",\"\",COUNTA($B$3:B100))","v":""},null,null,null,null,null,null,null,null,null,null,null,null,0]
[{"$f":"IF(B101=\"\",\"\",COUNTA($B$3:B101))","v":""},null,null,null,null,null,null,null,null,null,null,null,null,0]
[{"$f":"IF(B102=\"\",\"\",COUNTA($B$3:B102))","v":""},null,null,null,null,null,null,null,null,null,null,null,null,0]
[{"$f":"IF(B103=\"\",\"\",COUNTA($B$3:B103))","v":""},null,null,null,null,null,null,null,null,null,null,null,null,0]
[{"$f":"IF(B104=\"\",\"\",COUNTA($B$3:B104))","v":""},null,null,null,null,null,null,null,null,null,null,null,null,0]
[{"$f":"IF(B105=\"\",\"\",COUNTA($B$3:B105))","v":""},null,null,null,null,null,null,null,null,null,null,null,null,0]
[{"$f":"IF(B106=\"\",\"\",COUNTA($B$3:B106))","v":""},null,null,null,null,null,null,null,null,null,null,null,null,0]
[{"$f":"IF(B107=\"\",\"\",COUNTA($B$3:B107))","v":""},null,null,null,null,null,null,null,null,null,null,null,null,0]
[{"$f":"IF(B108=\"\",\"\",COUNTA($B$3:B108))","v":""},null,null,null,null,null,null,null,null,null,null,null,null,0]
[{"$f":"IF(B109=\"\",\"\",COUNTA($B$3:B109))","v":""},null,null,null,null,null,null,null,null,null,null,null,null,0]
[{"$f":"IF(B110=\"\",\"\",COUNTA($B$3:B110))","v":""},null,null,null,null,null,null,null,null,null,null,null,null,0]
[{"$f":"IF(B111=\"\",\"\",COUNTA($B$3:B111))","v":""},null,null,null,null,null,null,null,null,null,null,null,null,0]
[{"$f":"IF(B112=\"\",\"\",COUNTA($B$3:B112))","v":""},null,null,null,null,null,null,null,null,null,null,null,null,0]
[{"$f":"IF(B113=\"\",\"\",COUNTA($B$3:B113))","v":""},null,null,null,null,null,null,null,null,null,null,null,null,0]
[{"$f":"IF(B114=\"\",\"\",COUNTA($B$3:B114))","v":""},null,null,null,null,null,null,null,null,null,null,null,null,0]
[{"$f":"IF(B115=\"\",\"\",COUNTA($B$3:B115))","v":""},null,null,null,null,null,null,null,null,null,null,null,null,0]
[{"$f":"IF(B116=\"\",\"\",COUNTA($B$3:B116))","v":""},null,null,null,null,null,null,null,null,null,null,null,null,0]
[{"$f":"IF(B117=\"\",\"\",COUNTA($B$3:B117))","v":""},null,null,null,null,null,null,null,null,null,null,null,null,0]
[{"$f":"IF(B118=\"\",\"\",COUNTA($B$3:B118))","v":""},null,null,null,null,null,null,null,null,null,null,null,null,0]
[{"$f":"IF(B119=\"\",\"\",COUNTA($B$3:B119))","v":""},null,null,null,null,null,null,null,null,null,null,null,null,0]
[{"$f":"IF(B120=\"\",\"\",COUNTA($B$3:B120))","v":""},null,null,null,null,null,null,null,null,null,null,null,null,0]
[{"$f":"IF(B121=\"\",\"\",COUNTA($B$3:B121))","v":""},null,null,null,null,null,null,null,null,null,null,null,null,0]
[{"$f":"IF(B122=\"\",\"\",COUNTA($B$3:B122))","v":""},null,null,null,null,null,null,null,null,null,null,null,null,0]
[{"$f":"IF(B123=\"\",\"\",COUNTA($B$3:B123))","v":""},null,null,null,null,null,null,null,null,null,null,null,null,0]
[{"$f":"IF(B124=\"\",\"\",COUNTA($B$3:B124))","v":""},null,null,null,null,null,null,null,null,null,null,null,null,0]
[{"$f":"IF(B125=\"\",\"\",COUNTA($B$3:B125))","v":""},null,null,null,null,null,null,null,null,null,null,null,null,0]
[{"$f":"IF(B126=\"\",\"\",COUNTA($B$3:B126))","v":""},null,null,null,null,null,null,null,null,null,null,null,null,0]
[{"$f":"IF(B127=\"\",\"\",COUNTA($B$3:B127))","v":""},null,null,null,null,null,null,null,null,null,null,null,null,0]
[{"$f":"IF(B128=\"\",\"\",COUNTA($B$3:B128))","v":""},null,null,null,null,null,null,null,null,null,null,null,null,0]
[{"$f":"IF(B129=\"\",\"\",COUNTA($B$3:B129))","v":""},null,null,null,null,null,null,null,null,null,null,null,null,0]
[{"$f":"IF(B130=\"\",\"\",COUNTA($B$3:B130))","v":""},null,null,null,null,null,null,null,null,null,null,null,null,0]
[{"$f":"IF(B131=\"\",\"\",COUNTA($B$3:B131))","v":""},null,null,null,null,null,null,null,null,null,null,null,null,0]
[{"$f":"IF(B132=\"\",\"\",COUNTA($B$3:B132))","v":""},null,null,null,null,null,null,null,null,null,null,null,null,{"$f":"M132-(L132*J132)","v":0}]
[{"$f":"IF(B133=\"\",\"\",COUNTA($B$3:B133))","v":""},null,null,null,null,null,null,null,null,null,null,null,null,0]
[{"$f":"IF(B134=\"\",\"\",COUNTA($B$3:B134))","v":""},null,null,null,null,null,null,null,null,null,null,null,null,0]
[{"$f":"IF(B135=\"\",\"\",COUNTA($B$3:B135))","v":""},null,null,null,null,null,null,null,null,null,null,null,null,0]
[{"$f":"IF(B136=\"\",\"\",COUNTA($B$3:B136))","v":""},null,null,null,null,null,null,null,null,null,null,null,null,0]
[{"$f":"IF(B137=\"\",\"\",COUNTA($B$3:B137))","v":""},null,null,null,null,null,null,null,null,null,null,null,null,0]
[{"$f":"IF(B138=\"\",\"\",COUNTA($B$3:B138))","v":""},null,null,null,null,null,null,null,null,null,null,null,null,0]
[{"$f":"IF(B139=\"\",\"\",COUNTA($B$3:B139))","v":""},null,null,null,null,null,null,null,null,null,null,null,null,0]
[{"$f":"IF(B140=\"\",\"\",COUNTA($B$3:B140))","v":""},null,null,null,null,null,null,null,null,null,null,null,null,0]
[{"$f":"IF(B141=\"\",\"\",COUNTA($B$3:B141))","v":""},null,null,null,null,null,null,null,null,null,null,null,null,0]
[{"$f":"IF(B142=\"\",\"\",COUNTA($B$3:B142))","v":""},null,null,null,null,null,null,null,null,null,null,null,null,0]
[{"$f":"IF(B143=\"\",\"\",COUNTA($B$3:B143))","v":""},null,null,null,null,null,null,null,null,null,null,null,null,0]
[{"$f":"IF(B144=\"\",\"\",COUNTA($B$3:B144))","v":""},null,null,null,null,null,null,null,null,null,null,null,null,0]
[{"$f":"IF(B145=\"\",\"\",COUNTA($B$3:B145))","v":""},null,null,null,null,null,null,null,null,null,null,null,null,0]
[{"$f":"IF(B146=\"\",\"\",COUNTA($B$3:B146))","v":""},null,null,null,null,null,null,null,null,null,null,null,null,0]
[{"$f":"IF(B147=\"\",\"\",COUNTA($B$3:B147))","v":""},null,null,null,null,null,null,null,null,null,null,null,null,0]
[{"$f":"IF(B148=\"\",\"\",COUNTA($B$3:B148))","v":""},null,null,null,null,null,null,null,null,null,null,null,null,0]
[{"$f":"IF(B149=\"\",\"\",COUNTA($B$3:B149))","v":""},null,null,null,null,null,null,null,null,null,null,null,null,0]
[{"$f":"IF(B150=\"\",\"\",COUNTA($B$3:B150))","v":""},null,null,null,null,null,null,null,null,null,null,null,null,0]
[{"$f":"IF(B151=\"\",\"\",COUNTA($B$3:B151))","v":""},null,null,null,null,null,null,null,null,null,null,null,null,0]
[{"$f":"IF(B152=\"\",\"\",COUNTA($B$3:B152))","v":""},null,null,null,null,null,null,null,null,null,null,null,null,0]
[{"$f":"IF(B153=\"\",\"\",COUNTA($B$3:B153))","v":""},null,null,null,null,null,null,null,null,null,null,null,null,0]
[{"$f":"IF(B154=\"\",\"\",COUNTA($B$3:B154))","v":""},null,null,null,null,null,null,null,null,null,null,null,null,0]
[{"$f":"IF(B155=\"\",\"\",COUNTA($B$3:B155))","v":""},null,null,null,null,null,null,null,null,null,null,null,null,0]
[{"$f":"IF(B156=\"\",\"\",COUNTA($B$3:B156))","v":""},null,null,null,null,null,null,null,null,null,null,null,null,0]
[{"$f":"IF(B157=\"\",\"\",COUNTA($B$3:B157))","v":""},null,null,null,null,null,null,null,null,null,null,null,null,0]
[{"$f":"IF(B158=\"\",\"\",COUNTA($B$3:B158))","v":""},null,null,null,null,null,null,null,null,null,null,null,null,0]
[{"$f":"IF(B159=\"\",\"\",COUNTA($B$3:B159))","v":""},null,null,null,null,null,null,null,null,null,null,null,null,0]
[{"$f":"IF(B160=\"\",\"\",COUNTA($B$3:B160))","v":""},null,null,null,null,null,null,null,null,null,null,null,null,0]
[{"$f":"IF(B161=\"\",\"\",COUNTA($B$3:B161))","v":""},null,null,null,null,null,null,null,null,null,null,null,null,0]
[{"$f":"IF(B162=\"\",\"\",COUNTA($B$3:B162))","v":""},null,null,null,null,null,null,null,null,null,null,null,null,0]
[{"$f":"IF(B163=\"\",\"\",COUNTA($B$3:B163))","v":""},null,null,null,null,null,null,null,null,null,null,null,null,0]
[{"$f":"IF(B164=\"\",\"\",COUNTA($B$3:B164))","v":""},null,null,null,null,null,null,null,null,null,null,null,null,0]
[{"$f":"IF(B165=\"\",\"\",COUNTA($B$3:B165))","v":""},null,null,null,null,null,null,null,null,null,null,null,null,0]
[{"$f":"IF(B166=\"\",\"\",COUNTA($B$3:B166))","v":""},null,null,null,null,null,null,null,null,null,null,null,null,0]
[{"$f":"IF(B167=\"\",\"\",COUNTA($B$3:B167))","v":""},null,null,null,null,null,null,null,null,null,null,null,null,0]
[{"$f":"IF(B168=\"\",\"\",COUNTA($B$3:B168))","v":""},null,null,null,null,null,null,null,null,null,null,null,null,0]
[{"$f":"IF(B169=\"\",\"\",COUNTA($B$3:B169))","v":""},null,null,null,null,null,null,null,null,null,null,null,null,0]
[{"$f":"IF(B170=\"\",\"\",COUNTA($B$3:B170))","v":""},null,null,null,null,null,null,null,null,null,null,null,null,0]
[{"$f":"IF(B171=\"\",\"\",COUNTA($B$3:B171))","v":""},null,null,null,null,null,null,null,null,null,null,null,null,0]
[{"$f":"IF(B172=\"\",\"\",COUNTA($B$3:B172))","v":""},null,null,null,null,null,null,null,null,null,null,null,null,0]
[{"$f":"IF(B173=\"\",\"\",COUNTA($B$3:B173))","v":""},null,null,null,null,null,null,null,null,null,null,null,null,0]
[{"$f":"IF(B174=\"\",\"\",COUNTA($B$3:B174))","v":""},null,null,null,null,null,null,null,null,null,null,null,null,0]
[{"$f":"IF(B175=\"\",\"\",COUNTA($B$3:B175))","v":""},null,null,null,null,null,null,null,null,null,null,null,null,0]
[{"$f":"IF(B176=\"\",\"\",COUNTA($B$3:B176))","v":""},null,null,null,null,null,null,null,null,null,null,null,null,0]
[{"$f":"IF(B177=\"\",\"\",COUNTA($B$3:B177))","v":""},null,null,null,null,null,null,null,null,null,null,null,null,0]
[{"$f":"IF(B178=\"\",\"\",COUNTA($B$3:B178))","v":""},null,null,null,null,null,null,null,null,null,null,null,null,0]
[{"$f":"IF(B179=\"\",\"\",COUNTA($B$3:B179))","v":""},null,null,null,null,null,null,null,null,null,null,null,null,0]
[{"$f":"IF(B180=\"\",\"\",COUNTA($B$3:B180))","v":""},null,null,null,null,null,null,null,null,null,null,null,null,0]
[{"$f":"IF(B181=\"\",\"\",COUNTA($B$3:B181))","v":""},null,null,null,null,null,null,null,null,null,null,null,null,0]
[{"$f":"IF(B182=\"\",\"\",COUNTA($B$3:B182))","v":""},null,null,null,null,null,null,null,null,null,null,null,null,0]
[{"$f":"IF(B183=\"\",\"\",COUNTA($B$3:B183))","v":""},null,null,null,null,null,null,null,null,null,null,null,null,0]
[{"$f":"IF(B184=\"\",\"\",COUNTA($B$3:B184))","v":""},null,null,null,null,null,null,null,null,null,null,null,null,0]
[{"$f":"IF(B185=\"\",\"\",COUNTA($B$3:B185))","v":""},null,null,null,null,null,null,null,null,null,null,null,null,0]
[{"$f":"IF(B186=\"\",\"\",COUNTA($B$3:B186))","v":""},null,null,null,null,null,null,null,null,null,null,null,null,0]
[{"$f":"IF(B187=\"\",\"\",COUNTA($B$3:B187))","v":""},null,null,null,null,null,null,null,null,null,null,null,null,0]
[{"$f":"IF(B188=\"\",\"\",COUNTA($B$3:B188))","v":""},null,null,null,null,null,null,null,null,null,null,null,null,0]
[{"$f":"IF(B189=\"\",\"\",COUNTA($B$3:B189))","v":""},null,null,null,null,null,null,null,null,null,null,null,null,0]
[{"$f":"IF(B190=\"\",\"\",COUNTA($B$3:B190))","v":""},null,null,null,null,null,null,null,null,null,null,null,null,0]
[{"$f":"IF(B191=\"\",\"\",COUNTA($B$3:B191))","v":""},null,null,null,null,null,null,null,null,null,null,null,null,0]
[{"$f":"IF(B192=\"\",\"\",COUNTA($B$3:B192))","v":""},null,null,null,null,null,null,null,null,null,null,null,null,0]
[{"$f":"IF(B193=\"\",\"\",COUNTA($B$3:B193))","v":""},null,null,null,null,null,null,null,null,null,null,null,null,0]
[{"$f":"IF(B194=\"\",\"\",COUNTA($B$3:B194))","v":""},null,null,null,null,null,null,null,null,null,null,null,null,0]
[{"$f":"IF(B195=\"\",\"\",COUNTA($B$3:B195))","v":""},null,null,null,null,null,null,null,null,null,null,null,null,0]
[{"$f":"IF(B196=\"\",\"\",COUNTA($B$3:B196))","v":""},null,null,null,null,null,null,null,null,null,null,null,null,{"$f":"M196-(L196*J196)","v":0}]
[{"$f":"IF(B197=\"\",\"\",COUNTA($B$3:B197))","v":""},null,null,null,null,null,null,null,null,null,null,null,null,0]
[{"$f":"IF(B198=\"\",\"\",COUNTA($B$3:B198))","v":""},null,null,null,null,null,null,null,null,null,null,null,null,0]
[{"$f":"IF(B199=\"\",\"\",COUNTA($B$3:B199))","v":""},null,null,null,null,null,null,null,null,null,null,null,null,0]
[{"$f":"IF(B200=\"\",\"\",COUNTA($B$3:B200))","v":""},null,null,null,null,null,null,null,null,null,null,null,null,0]
[{"$f":"IF(B201=\"\",\"\",COUNTA($B$3:B201))","v":""},null,null,null,null,null,null,null,null,null,null,null,null,0]
[{"$f":"IF(B202=\"\",\"\",COUNTA($B$3:B202))","v":""},null,null,null,null,null,null,null,null,null,null,null,null,0]
[{"$f":"IF(B203=\"\",\"\",COUNTA($B$3:B203))","v":""},null,null,null,null,null,null,null,null,null,null,null,null,0]
[{"$f":"IF(B204=\"\",\"\",COUNTA($B$3:B204))","v":""},null,null,null,null,null,null,null,null,null,null,null,null,0]
[{"$f":"IF(B205=\"\",\"\",COUNTA($B$3:B205))","v":""},null,null,null,null,null,null,null,null,null,null,null,null,0]
[{"$f":"IF(B206=\"\",\"\",COUNTA($B$3:B206))","v":""},null,null,null,null,null,null,null,null,null,null,null,null,0]
[{"$f":"IF(B207=\"\",\"\",COUNTA($B$3:B207))","v":""},null,null,null,null,null,null,null,null,null,null,null,null,0]
[{"$f":"IF(B208=\"\",\"\",COUNTA($B$3:B208))","v":""},null,null,null,null,null,null,null,null,null,null,null,null,0]
[{"$f":"IF(B209=\"\",\"\",COUNTA($B$3:B209))","v":""},null,null,null,null,null,null,null,null,null,null,null,null,0]
[{"$f":"IF(B210=\"\",\"\",COUNTA($B$3:B210))","v":""},null,null,null,null,null,null,null,null,null,null,null,null,0]
[{"$f":"IF(B211=\"\",\"\",COUNTA($B$3:B211))","v":""},null,null,null,null,null,null,null,null,null,null,null,null,0]
[{"$f":"IF(B212=\"\",\"\",COUNTA($B$3:B212))","v":""},null,null,null,null,null,null,null,null,null,null,null,null,0]
[{"$f":"IF(B213=\"\",\"\",COUNTA($B$3:B213))","v":""},null,null,null,null,null,null,null,null,null,null,null,null,0]
[{"$f":"IF(B214=\"\",\"\",COUNTA($B$3:B214))","v":""},null,null,null,null,null,null,null,null,null,null,null,null,0]
[{"$f":"IF(B215=\"\",\"\",COUNTA($B$3:B215))","v":""},null,null,null,null,null,null,null,null,null,null,null,null,0]
[{"$f":"IF(B216=\"\",\"\",COUNTA($B$3:B216))","v":""},null,null,null,null,null,null,null,null,null,null,null,null,0]
[{"$f":"IF(B217=\"\",\"\",COUNTA($B$3:B217))","v":""},null,null,null,null,null,null,null,null,null,null,null,null,0]
[{"$f":"IF(B218=\"\",\"\",COUNTA($B$3:B218))","v":""},null,null,null,null,null,null,null,null,null,null,null,null,0]
[{"$f":"IF(B219=\"\",\"\",COUNTA($B$3:B219))","v":""},null,null,null,null,null,null,null,null,null,null,null,null,0]
[{"$f":"IF(B220=\"\",\"\",COUNTA($B$3:B220))","v":""},null,null,null,null,null,null,null,null,null,null,null,null,0]
[{"$f":"IF(B221=\"\",\"\",COUNTA($B$3:B221))","v":""},null,null,null,null,null,null,null,null,null,null,null,null,0]
[{"$f":"IF(B222=\"\",\"\",COUNTA($B$3:B222))","v":""},null,null,null,null,null,null,null,null,null,null,null,null,0]
[{"$f":"IF(B223=\"\",\"\",COUNTA($B$3:B223))","v":""},null,null,null,null,null,null,null,null,null,null,null,null,0]
[{"$f":"IF(B224=\"\",\"\",COUNTA($B$3:B224))","v":""},null,null,null,null,null,null,null,null,null,null,null,null,0]
[{"$f":"IF(B225=\"\",\"\",COUNTA($B$3:B225))","v":""},null,null,null,null,null,null,null,null,null,null,null,null,0]
[{"$f":"IF(B226=\"\",\"\",COUNTA($B$3:B226))","v":""},null,null,null,null,null,null,null,null,null,null,null,null,0]
[{"$f":"IF(B227=\"\",\"\",COUNTA($B$3:B227))","v":""},null,null,null,null,null,null,null,null,null,null,null,null,0]
[{"$f":"IF(B228=\"\",\"\",COUNTA($B$3:B228))","v":""},null,null,null,null,null,null,null,null,null,null,null,null,0]
[{"$f":"IF(B229=\"\",\"\",COUNTA($B$3:B229))","v":""},null,null,null,null,null,null,null,null,null,null,null,null,0]
[{"$f":"IF(B230=\"\",\"\",COUNTA($B$3:B230))","v":""},null,null,null,null,null,null,null,null,null,null,null,null,0]
[{"$f":"IF(B231=\"\",\"\",COUNTA($B$3:B231))","v":""},null,null,null,null,null,null,null,null,null,null,null,null,0]
[{"$f":"IF(B232=\"\",\"\",COUNTA($B$3:B232))","v":""},null,null,null,null,null,null,null,null,null,null,null,null,0]
[{"$f":"IF(B233=\"\",\"\",COUNTA($B$3:B233))","v":""},null,null,null,null,null,null,null,null,null,null,null,null,0]
[{"$f":"IF(B234=\"\",\"\",COUNTA($B$3:B234))","v":""},null,null,null,null,null,null,null,null,null,null,null,null,0]
[{"$f":"IF(B235=\"\",\"\",COUNTA($B$3:B235))","v":""},null,null,null,null,null,null,null,null,null,null,null,null,0]
[{"$f":"IF(B236=\"\",\"\",COUNTA($B$3:B236))","v":""},null,null,null,null,null,null,null,null,null,null,null,null,0]
[{"$f":"IF(B237=\"\",\"\",COUNTA($B$3:B237))","v":""},null,null,null,null,null,null,null,null,null,null,null,null,0]
[{"$f":"IF(B238=\"\",\"\",COUNTA($B$3:B238))","v":""},null,null,null,null,null,null,null,null,null,null,null,null,0]
[{"$f":"IF(B239=\"\",\"\",COUNTA($B$3:B239))","v":""},null,null,null,null,null,null,null,null,null,null,null,null,0]
[{"$f":"IF(B240=\"\",\"\",COUNTA($B$3:B240))","v":""},null,null,null,null,null,null,null,null,null,null,null,null,0]
[{"$f":"IF(B241=\"\",\"\",COUNTA($B$3:B241))","v":""},null,null,null,null,null,null,null,null,null,null,null,null,0]
[{"$f":"IF(B242=\"\",\"\",COUNTA($B$3:B242))","v":""},null,null,null,null,null,null,null,null,null,null,null,null,0]
[{"$f":"IF(B243=\"\",\"\",COUNTA($B$3:B243))","v":""},null,null,null,null,null,null,null,null,null,null,null,null,0]
[{"$f":"IF(B244=\"\",\"\",COUNTA($B$3:B244))","v":""},null,null,null,null,null,null,null,null,null,null,null,null,0]
[{"$f":"IF(B245=\"\",\"\",COUNTA($B$3:B245))","v":""},null,null,null,null,null,null,null,null,null,null,null,null,0]
[{"$f":"IF(B246=\"\",\"\",COUNTA($B$3:B246))","v":""},null,null,null,null,null,null,null,null,null,null,null,null,0]
[{"$f":"IF(B247=\"\",\"\",COUNTA($B$3:B247))","v":""},null,null,null,null,null,null,null,null,null,null,null,null,0]
[{"$f":"IF(B248=\"\",\"\",COUNTA($B$3:B248))","v":""},null,null,null,null,null,null,null,null,null,null,null,null,0]
[{"$f":"IF(B249=\"\",\"\",COUNTA($B$3:B249))","v":""},null,null,null,null,null,null,null,null,null,null,null,null,0]
[{"$f":"IF(B250=\"\",\"\",COUNTA($B$3:B250))","v":""},null,null,null,null,null,null,null,null,null,null,null,null,0]
[{"$f":"IF(B251=\"\",\"\",COUNTA($B$3:B251))","v":""},null,null,null,null,null,null,null,null,null,null,null,null,0]
[{"$f":"IF(B252=\"\",\"\",COUNTA($B$3:B252))","v":""},null,null,null,null,null,null,null,null,null,null,null,null,0]
[{"$f":"IF(B253=\"\",\"\",COUNTA($B$3:B253))","v":""},null,null,null,null,null,null,null,null,null,null,null,null,0]
[{"$f":"IF(B254=\"\",\"\",COUNTA($B$3:B254))","v":""},null,null,null,null,null,null,null,null,null,null,null,null,0]
[{"$f":"IF(B255=\"\",\"\",COUNTA($B$3:B255))","v":""},null,null,null,null,null,null,null,null,null,null,null,null,0]
[{"$f":"IF(B256=\"\",\"\",COUNTA($B$3:B256))","v":""},null,null,null,null,null,null,null,null,null,null,null,null,0]
[{"$f":"IF(B257=\"\",\"\",COUNTA($B$3:B257))","v":""},null,null,null,null,null,null,null,null,null,null,null,null,0]
[{"$f":"IF(B258=\"\",\"\",COUNTA($B$3:B258))","v":""},null,null,null,null,null,null,null,null,null,null,null,null,0]
[{"$f":"IF(B259=\"\",\"\",COUNTA($B$3:B259))","v":""},null,null,null,null,null,null,null,null,null,null,null,null,0]
[{"$f":"IF(B260=\"\",\"\",COUNTA($B$3:B260))","v":""},null,null,null,null,null,null,null,null,null,null,null,null,{"$f":"M260-(L260*J260)","v":0}]
[{"$f":"IF(B261=\"\",\"\",COUNTA($B$3:B261))","v":""},null,null,null,null,null,null,null,null,null,null,null,null,0]
[{"$f":"IF(B262=\"\",\"\",COUNTA($B$3:B262))","v":""},null,null,null,null,null,null,null,null,null,null,null,null,0]
[{"$f":"IF(B263=\"\",\"\",COUNTA($B$3:B263))","v":""},null,null,null,null,null,null,null,null,null,null,null,null,0]
[{"$f":"IF(B264=\"\",\"\",COUNTA($B$3:B264))","v":""},null,null,null,null,null,null,null,null,null,null,null,null,0]
[{"$f":"IF(B265=\"\",\"\",COUNTA($B$3:B265))","v":""},null,null,null,null,null,null,null,null,null,null,null,null,0]
[{"$f":"IF(B266=\"\",\"\",COUNTA($B$3:B266))","v":""},null,null,null,null,null,null,null,null,null,null,null,null,0]
[{"$f":"IF(B267=\"\",\"\",COUNTA($B$3:B267))","v":""},null,null,null,null,null,null,null,null,null,null,null,null,0]
[{"$f":"IF(B268=\"\",\"\",COUNTA($B$3:B268))","v":""},null,null,null,null,null,null,null,null,null,null,null,null,0]
[{"$f":"IF(B269=\"\",\"\",COUNTA($B$3:B269))","v":""},null,null,null,null,null,null,null,null,null,null,null,null,0]
[{"$f":"IF(B270=\"\",\"\",COUNTA($B$3:B270))","v":""},null,null,null,null,null,null,null,null,null,null,null,null,0]
[{"$f":"IF(B271=\"\",\"\",COUNTA($B$3:B271))","v":""},null,null,null,null,null,null,null,null,null,null,null,null,0]
[{"$f":"IF(B272=\"\",\"\",COUNTA($B$3:B272))","v":""},null,null,null,null,null,null,null,null,null,null,null,null,0]
[{"$f":"IF(B273=\"\",\"\",COUNTA($B$3:B273))","v":""},null,null,null,null,null,null,null,null,null,null,null,null,0]
[{"$f":"IF(B274=\"\",\"\",COUNTA($B$3:B274))","v":""},null,null,null,null,null,null,null,null,null,null,null,null,0]
[{"$f":"IF(B275=\"\",\"\",COUNTA($B$3:B275))","v":""},null,null,null,null,null,null,null,null,null,null,null,null,0]
[{"$f":"IF(B276=\"\",\"\",COUNTA($B$3:B276))","v":""},null,null,null,null,null,null,null,null,null,null,null,null,0]
[{"$f":"IF(B277=\"\",\"\",COUNTA($B$3:B277))","v":""},null,null,null,null,null,null,null,null,null,null,null,null,0]
[{"$f":"IF(B278=\"\",\"\",COUNTA($B$3:B278))","v":""},null,null,null,null,null,null,null,null,null,null,null,null,0]
[{"$f":"IF(B279=\"\",\"\",COUNTA($B$3:B279))","v":""},null,null,null,null,null,null,null,null,null,null,null,null,0]
[{"$f":"IF(B280=\"\",\"\",COUNTA($B$3:B280))","v":""},null,null,null,null,null,null,null,null,null,null,null,null,0]
[null,null,null,null,null,null,null,null,null,null,null,null,null,0]
[null,null,null,null,null,null,null,null,null,null,null,null,null,0]
[null,null,null,null,null,null,null,null,null,null,null,null,null,0]
[null,null,null,null,null,null,null,null,null,null,null,null,null,0]
[null,null,null,null,null,null,null,null,null,null,null,null,null,0]
[null,null,null,null,null,null,null,null,null,null,null,null,null,0]
[null,null,null,null,null,null,null,null,null,null,null,null,null,0]
[null,null,null,null,null,null,null,null,null,null,null,null,null,0]
[null,null,null,null,null,null,null,null,null,null,null,null,null,0]
[null,null,null,null,null,null,null,null,null,null,null,null,null,0]
[null,null,null,null,null,null,null,null,null,null,null,null,null,0]
[null,null,null,null,null,null,null,null,null,null,null,null,null,0]
[null,null,null,null,null,null,null,null,null,null,null,null,null,0]
[null,null,null,null,null,null,null,null,null,null,null,null,null,0]
[null,null,null,null,null,null,null,null,null,null,null,null,null,0]
[null,null,null,null,null,null,null,null,null,null,null,null,null,0]
[null,null,null,null,null,null,null,null,null,null,null,null,null,0]
[null,null,null,null,null,null,null,null,null,null,null,null,null,0]
[null,null,null,null,null,null,null,null,null,null,null,null,null,0]
[null,null,null,null,null,null,null,null,null,null,null,null,null,0]
[null,null,null,null,null,null,null,null,null,null,null,null,null,0]
[null,null,null,null,null,null,null,null,null,null,null,null,null,0]
[null,null,null,null,null,null,null,null,null,null,null,null,null,0]
[null,null,null,null,null,null,null,null,null,null,null,null,null,0]
[null,null,null,null,null,null,null,null,null,null,null,null,null,0]
[null,null,null,null,null,null,null,null,null,null,null,null,null,0]
[null,null,null,null,null,null,null,null,null,null,null,null,null,0]
[null,null,null,null,null,null,null,null,null,null,null,null,null,0]
[null,null,null,null,null,null,null,null,null,null,null,null,null,0]
[null,null,null,null,null,null,null,null,null,null,null,null,null,0]
[null,null,null,null,null,null,null,null,null,null,null,null,null,0]
[null,null,null,null,null,null,null,null,null,null,null,null,null,0]
[null,null,null,null,null,null,null,null,null,null,null,null,null,0]
[null,null,null,null,null,null,null,null,null,null,null,null,null,0]
[null,null,null,null,null,null,null,null,null,null,null,null,null,0]
[null,null,null,null,null,null,null,null,null,null,null,null,null,0]
[null,null,null,null,null,null,null,null,null,null,null,null,null,0]
[null,null,null,null,null,null,null,null,null,null,null,null,null,0]
[null,null,null,null,null,null,null,null,null,null,null,null,null,0]
[null,null,null,null,null,null,null,null,null,null,null,null,null,0]
[null,null,null,null,null,null,null,null,null,null,null,null,null,0]
[null,null,null,null,null,null,null,null,null,null,null,null,null,0]
[null,null,null,null,null,null,null,null,null,null,null,null,null,0]
[null,null,null,null,null,null,null,null,null,null,null,null,null,{"$f":"M324-(L324*J324)","v":0}]
[null,null,null,null,null,null,null,null,null,null,null,null,null,0]
[null,null,null,null,null,null,null,null,null,null,null,null,null,0]
[null,null,null,null,null,null,null,null,null,null,null,null,null,0]
[null,null,null,null,null,null,null,null,null,null,null,null,null,0]
[null,null,null,null,null,null,null,null,null,null,null,null,null,0]
[null,null,null,null,null,null,null,null,null,null,null,null,null,0]
[null,null,null,null,null,null,null,null,null,null,null,null,null,0]
[null,null,null,null,null,null,null,null,null,null,null,null,null,0]
[null,null,null,null,null,null,null,null,null,null,null,null,null,0]
[null,null,null,null,null,null,null,null,null,null,null,null,null,0]
[null,null,null,null,null,null,null,null,null,null,null,null,null,0]
[null,null,null,null,null,null,null,null,null,null,null,null,null,0]
[null,null,null,null,null,null,null,null,null,null,null,null,null,0]
[null,null,null,null,null,null,null,null,null,null,null,null,null,0]
[null,null,null,null,null,null,null,null,null,null,null,null,null,0]
[null,null,null,null,null,null,null,null,null,null,null,null,null,0]
[null,null,null,null,null,null,null,null,null,null,null,null,null,0]
[null,null,null,null,null,null,null,null,null,null,null,null,null,0]
[null,null,null,null,null,null,null,null,null,null,null,null,null,0]
[null,null,null,null,null,null,null,null,null,null,null,null,null,0]
[null,null,null,null,null,null,null,null,null,null,null,null,null,0]
[null,null,null,null,null,null,null,null,null,null,null,null,null,0]
[null,null,null,null,null,null,null,null,null,null,null,null,null,0]
[null,null,null,null,null,null,null,null,null,null,null,null,null,0]
[null,null,null,null,null,null,null,null,null,null,null,null,null,0]
[null,null,null,null,null,null,null,null,null,null,null,null,null,0]
[null,null,null,null,null,null,null,null,null,null,null,null,null,0]
[null,null,null,null,null,null,null,null,null,null,null,null,null,0]
[null,null,null,null,null,null,null,null,null,null,null,null,null,0]
[null,null,null,null,null,null,null,null,null,null,null,null,null,0]
[null,null,null,null,null,null,null,null,null,null,null,null,null,0]
[null,null,null,null,null,null,null,null,null,null,null,null,null,0]
[null,null,null,null,null,null,null,null,null,null,null,null,null,0]
[null,null,null,null,null,null,null,null,null,null,null,null,null,0]
[null,null,null,null,null,null,null,null,null,null,null,null,null,0]
[null,null,null,null,null,null,null,null,null,null,null,null,null,0]
[null,null,null,null,null,null,null,null,null,null,null,null,null,0]
[null,null,null,null,null,null,null,null,null,null,null,null,null,0]
[null,null,null,null,null,null,null,null,null,null,null,null,null,0]
[null,null,null,null,null,null,null,null,null,null,null,null,null,0]
[null,null,null,null,null,null,null,null,null,null,null,null,null,0]
[null,null,null,null,null,null,null,null,null,null,null,null,null,0]
[null,null,null,null,null,null,null,null,null,null,null,null,null,0]
[null,null,null,null,null,null,null,null,null,null,null,null,null,0]
[null,null,null,null,null,null,null,null,null,null,null,null,null,0]
[null,null,null,null,null,null,null,null,null,null,null,null,null,0]
[null,null,null,null,null,null,null,null,null,null,null,null,null,0]
[null,null,null,null,null,null,null,null,null,null,null,null,null,0]
[null,null,null,null,null,null,null,null,null,null,null,null,null,0]
[null,null,null,null,null,null,null,null,null,null,null,null,null,0]
[null,null,null,null,null,null,null,null,null,null,null,null,null,0]
[null,null,null,null,null,null,null,null,null,null,null,null,null,0]
[null,null,null,null,null,null,null,null,null,null,null,null,null,0]
[null,null,null,null,null,null,null,null,null,null,null,null,null,0]
[null,null,null,null,null,null,null,null,null,null,null,null,null,0]
[null,null,null,null,null,null,null,null,null,null,null,null,null,0]
[null,null,null,null,null,null,null,null,null,null,null,null,null,0]
[null,null,null,null,null,null,null,null,null,null,null,null,null,0]
[null,null,null,null,null,null,null,null,null,null,null,null,null,0]
[null,null,null,null,null,null,null,null,null,null,null,null,null,0]
[null,null,null,null,null,null,null,null,null,null,null,null,null,0]

{"sheet":"Entry","index":5,"n_rows":16,"n_cols":13,"rows_kept":16,"cut":false,"hidden":false,"merged":[[3,7,3,8],[1,4,1,10],[17,4,17,10],[1,12,1,13]]}
[]
[null,null,null,null,null,null,null,null,null,null,null,null,{"$f":"J16-(G16*G14)","v":0}]
[]
[null,null,null,null,null,null,"بحث بالاسم","نعمة أدم حسن عقيد",null,"حج"]
[]
[null,null,null,null,null,"الرقم القومى",null,null,"رقم بطاقة الإقامة"]
[]
[null,null,null,null,null,"اسم الحاج",null,null,"تاريخ انتهاء الإقامة"]
[]
[null,null,null,null,null,"الجنسية",null,null,"تليفون خاص بالحاج"]
[]
[null,null,null,null,null,"رقم جواز السفر",null,null,"اسم الفندق",""]
[]
[null,null,null,null,null,"تكلفة الحج أو العمرة",null,null,"رسوم الحج أوالعمرة"]
[]
[null,null,null,null,null,"عدد المرافقين",null,null,"إجمالي المبلغ"]